Workbook

Sheet Ingreso - General
A1: MODELO PARA LA EVALUACION PRIVADA PROYECTOS DE ELECTRIFICACION RESIDENCIAL RURAL CON CONEXION A RED DETERMINACION DEL FINANCIAMIENTO
A3: IMPORTANTE : | B3: Toda celda cuyo fondo sea de color amarillo indica con ello, que el valor que contiene es propio de cada proyecto y que debe ser revisado y/o modificado por el evaluador.
A5: PARTE I | B5: =+'Ingreso - General'!A8 -> 0 | G5: Atribuido | H5: Semi integrado
A6: DATOS GENERALES | F6: 2015
A7: Nombre del Proyecto | D7: Código BIP | F7: 2016
F8: 2017
A9: Descripción | C9: Unidad | D9: Valor | F9: 2018 o posterior
A10: GENERALES
A11: Tasa Crecimiento Anual Vivienda | C11: [%] | D11: 0.0052 | F11: Regimen Atribuido
A12: Régimen Tributario | D12: Régimen Semi Integrado | F12: Régimen Semi Integrado
A13: Primer Año de Operación | C13: [año] | D13: 2015
A14: Tasa descuento Privada | C14: [%] | D14: 0.1 | H14: ='Salida - Evaluación Privada OCU'!H5 -> -1173.980195
A15: Tasa descuento Social | C15: [%] | H15: ='Salida - Evaluación Privada OCU'!H6 -> -1211.876742
A16: Horizonte de Evaluación | C16: [años] | D16: 30 | H16: ='Salida - Evaluación Privada OCU'!H7 -> -1262.075073
A17: Tipo de Cambio | C17: [$/US$] | D17: 551.45 | H17: ='Salida - Evaluación Privada OCU'!H8 -> -1320.211666
A18: Valor UF | C18: [$] | D18: 23400 | H18: ='Salida - Evaluación Privada OCU'!H9 -> -1310.389135
A19: Fecha UF | C19: [DD-MM-AAAA] | D19: 2015-01-09
A20: TARIFA DE VENTA DE ELECTRICIDAD | H20: ='Salida - Evaluación Privada OCU'!$I$36 -> -123149.1707
A21: Tipo de Tarifa | D21: BT-1
A22: Cargo Fijo mensual | C22: [$] | D22: 849.24
A23: Precio Energía | C23: [$/kWh] | D23: 87.75
A24: TARIFA DE COMPRA DE ELECTRICIDAD
A25: Costo Energía pto. B | C25: [$/kWh] | D25: 46.4
A26: Costo Potencia pto. B | C26: [$/kW] | D26: 4134
A27: Costo Mantención, Administración y Otros | C27: [%] | D27: 0.01
A28: R.P.C - FACTORES ENERGIA ELECTRICA
A29: Factor Energía Eléctrica | D29: 1
A30: Factor Mano de Obra Semi - Calificada
A31: Factor Mano de Obra No Calificada
A32: R.P.C - FACTORES ENERGIA ELECTRICA
A33: Factor Energía Eléctrica | D33: 1
A35: Supuestos Técnicos Sistema Eléctrico
A36: Descripción | C36: Unidad | D36: Valor
A37: Factor de Carga Vivienda Rural | D37: 0.38
A38: Factor de Coincidencia o Simultaneidad | D38: 0.78
A41: ='Ingreso - General OCULTO'!A41:D41 -> Planilla de Evaluación Ministerio de Desarrollo Social - Versión 2016

Sheet Ingreso - General OCULTO (hidden)
A1: MODELO PARA LA EVALUACION PRIVADA Y SOCIAL DE PROYECTOS DE ELECTRIFICACION RESIDENCIAL RURAL CON CONEXION A RED Y DETERMINACION DEL FINANCIAMIENTO
A3: IMPORTANTE : | B3: Toda celda cuyo fondo sea de color amarillo indica con ello, que el valor que contiene es propio de cada proyecto y que debe ser revisado y/o modificado por el evaluador.
A5: PARTE I | B5: =+'Ingreso - General OCULTO'!A8 -> 0 | G5: Atribuido | H5: Semi integrado
A6: DATOS GENERALES | F6: 2014 | G6: 0.21 | H6: 0.21
A7: Nombre del Proyecto | D7: Código BIP | F7: 2015 | G7: 0.225 | H7: 0.225
A8: ='Ingreso - General'!A8:C8 -> 0 | D8: ='Ingreso - General'!D8 -> 0 | F8: 2016 | G8: 0.24 | H8: 0.24
A9: Descripción | C9: Unidad | D9: Valor | F9: 2017 | G9: 0.25 | H9: 0.255
A10: GENERALES | F10: 2018 o posterior | G10: 0.25 | H10: 0.27
A11: Tasa Crecimiento Anual Vivienda | C11: [%] | D11: ='Ingreso - General'!D11 -> 0.0052
A12: Régimen Tributario | D12: ='Ingreso - General'!D12 -> Régimen Semi Integrado | F12: Régimen Atribuido
A13: Primer Año de Operación | C13: [año] | D13: ='Ingreso - General'!D13 -> 2015 | F13: Régimen Semi Integrado
A14: Tasa descuento Privada | C14: [%] | D14: ='Ingreso - General'!D14 -> 0.1
A15: Tasa descuento Social | C15: [%]
A16: Horizonte de Evaluación | C16: [años] | D16: 30
A17: Tipo de Cambio | C17: [$/US$] | D17: ='Ingreso - General'!D17 -> 551.45
A18: Valor UF | C18: [$] | D18: ='Ingreso - General'!D18 -> 23400
A19: Fecha UF | C19: [DD-MM-AAAA] | D19: ='Ingreso - General'!D19 -> 2015-01-09
A20: TARIFA DE VENTA DE ELECTRICIDAD
A21: Tipo de Tarifa | D21: ='Ingreso - General'!D21 -> BT-1
A22: Cargo Fijo mensual | C22: [$] | D22: ='Ingreso - General'!D22 -> 849.24
A23: Precio Energía | C23: [$/kWh] | D23: ='Ingreso - General'!D23 -> 87.75
A24: TARIFA DE COMPRA DE ELECTRICIDAD
A25: Costo Energía pto. B | C25: [$/kWh] | D25: ='Ingreso - General'!D25 -> 46.4
A26: Costo Potencia pto. B | C26: [$/kW] | D26: ='Ingreso - General'!D26 -> 4134
A27: Costo Mantención, Administración y Otros | C27: [%] | D27: 0.01
A28: R.P.C - FACTORES ENERGIA ELECTRICA
A29: Factor Energía Eléctrica | D29: 1
A30: Factor Mano de Obra Semi - Calificada
A31: Factor Mano de Obra No Calificada
A32: R.P.C - FACTORES ENERGIA ELECTRICA
A33: Factor Energía Eléctrica | D33: 1
A35: Supuestos Técnicos Sistema Eléctrico
A36: Descripción | C36: Unidad | D36: Valor
A37: Factor de Carga Vivienda Rural | D37: 0.38
A38: Factor de Coincidencia o Simultaneidad | D38: 0.78
A41: Planilla de Evaluación Ministerio de Desarrollo Social - Versión 2016

Sheet Ingreso - Consumo
A1: PARTE II : | B1: =+'Ingreso - General OCULTO'!A8 -> 0
A2: DATOS DE CONSUMO VIVIENDAS RESIDENCIALES
B3: N° Viviendas | C3: CONSUMOS MENSUALES
A4: Socioeconómica | C4: Qsp | D4: Pcp | E4: Qcp (año 0)
A5: CAS ó Puntajes | C5: [kWh/Fam] | D5: [$/kWh] | E5: [kWh/Fam]
A6: Grupo1 (< 2072) | B6: 0 | C6: 3.3 | D6: ='Ingreso - General OCULTO'!$D$23 -> 87.75 | E6: ='Calculo - Consumo'!C6 -> 20
A7: Grupo2 (2.073 - 6294) | B7: 0 | C7: 4.6 | D7: ='Ingreso - General OCULTO'!$D$23 -> 87.75 | E7: ='Calculo - Consumo'!G6 -> 20
A8: Grupo Único | B8: 18 | D8: ='Ingreso - General OCULTO'!$D$23 -> 87.75 | E8: ='Calculo - Consumo'!K6 -> 30
A9: Grupo4 (> 12.355) | B9: 0 | C9: 9 | D9: ='Ingreso - General OCULTO'!$D$23 -> 87.75 | E9: ='Calculo - Consumo'!O6 -> 30
A10: Total | B10: =SUM(B6:B9) -> 18
A12: FACTORES PARA OBTENER CURVAS DE DEMANDA DE ENERGIA
A13: TIPO | B13: A | C13: B | D13: Landa (l)
A14: Grupo1 | B14: 42 | C14: 22 | D14: 2.13
A15: Grupo2 | B15: 68 | C15: 48 | D15: 1.89
A16: Parámetros Únicos | B16: 86 | C16: 56 | D16: 1.95
A17: Grupo4 | B17: 151 | C17: 121 | D17: 1.8
A19: DATOS DE CONSUMO PARA OTROS ESTABLECIMIENTOS
A20: Tipo de Establecimiento | B20: ¿Dispone de Sistema Propio de Generación Eléctrica? | C20: Cantidad de Establecimientos | D20: Consumo Energía Qsp [kWh/mes]
A21: Postas | B21: Sí | C21: 0 | D21: 0
B22: No | C22: 0 | D22: =1*C9 -> 9
A23: Escuelas | B23: Sí | C23: 0 | D23: 0
B24: No | C24: 0 | D24: =2*C9 -> 18
A25: Retenes | B25: Sí | C25: 0 | D25: 0
B26: No | C26: 0 | D26: =2*C9 -> 18
A27: Centros Comunitarios y/o Iglesias | B27: Sí | C27: 0 | D27: 0
B28: No | C28: 0 | D28: =+C9 -> 9
A29: Subtotal | B29: Sí | C29: =+C21+C23+C25+C27 -> 0 | D29: =+D21*C21+D23*C23+D25*C25+D27*C27 -> 0
B30: No | C30: =+C22+C24+C26+C28 -> 0 | D30: =+D22*C22+D24*C24+D26*C26+D28*C28 -> 0
A31: Total | C31: =+C30+C29 -> 0 | D31: =+D30+D29 -> 0
A33: USO PRODUCTIVO ELECTRICIDAD
A34: Demanda Productiva Transferida Corto Plazo
A35: Nº de Empalmes Productivos | C35: Nº | D35: 0
A36: Consumo Energía | C36: [kWh/mes] | D36: 0
A37: Consumo Potencia | C37: [kW] | D37: 0
A38: Demanda Productiva Generada Corto Plazo
A39: Consumo Energía (% Consumo residencial) | C39: % | D39: 0.03
A42: =+'Ingreso - General OCULTO'!A41:D41 -> Planilla de Evaluación Ministerio de Desarrollo Social - Versión 2016

Sheet Ingreso - Consumo OCULTO (hidden)
A1: PARTE II : | B1: =+'Ingreso - General OCULTO'!A8 -> 0
A2: DATOS DE CONSUMO VIVIENDAS RESIDENCIALES
A3: División Socioeconómica Puntaje | B3: Nº Familias por Grupo | C3: CONSUMOS MENSUALES
A4: Socioeconómica | C4: Qsp | D4: Pcp | E4: Qcp (año 0)
A5: CAS ó Puntajes | C5: [kWh/Fam] | D5: [$/kWh] | E5: [kWh/Fam]
A6: Grupo1 (< 2072) | B6: ='Ingreso - Consumo'!B6 -> 0 | C6: ='Ingreso - Consumo'!C6 -> 3.3 | D6: ='Ingreso - General OCULTO'!$D$23 -> 87.75 | E6: ='Calculo - Consumo'!C6 -> 20
A7: Grupo2 (2.073 - 6294) | B7: ='Ingreso - Consumo'!B7 -> 0 | C7: ='Ingreso - Consumo'!C7 -> 4.6 | D7: ='Ingreso - General OCULTO'!$D$23 -> 87.75 | E7: ='Calculo - Consumo'!G6 -> 20
A8: Grupo3 (6295 - 12.354) | B8: ='Ingreso - Consumo'!B8 -> 18 | C8: ='Ingreso - Consumo'!C8 -> 0 | D8: ='Ingreso - General OCULTO'!$D$23 -> 87.75 | E8: ='Calculo - Consumo'!K6 -> 30
A9: Grupo4 (> 12.355) | B9: ='Ingreso - Consumo'!B9 -> 0 | C9: ='Ingreso - Consumo'!C9 -> 9 | D9: ='Ingreso - General OCULTO'!$D$23 -> 87.75 | E9: ='Calculo - Consumo'!O6 -> 30
A10: Total Familias | B10: =SUM(B6:B9) -> 18
A12: FACTORES PARA OBTENER CURVAS DE DEMANDA DE ENERGIA
A13: TIPO | B13: A | C13: B | D13: Landa (l)
A14: Grupo1 | B14: ='Ingreso - Consumo'!B14 -> 42 | C14: ='Ingreso - Consumo'!C14 -> 22 | D14: ='Ingreso - Consumo'!D14 -> 2.13
A15: Grupo2 | B15: ='Ingreso - Consumo'!B15 -> 68 | C15: ='Ingreso - Consumo'!C15 -> 48 | D15: ='Ingreso - Consumo'!D15 -> 1.89
A16: Grupo3 | B16: ='Ingreso - Consumo'!B16 -> 86 | C16: ='Ingreso - Consumo'!C16 -> 56 | D16: ='Ingreso - Consumo'!D16 -> 1.95
A17: Grupo4 | B17: ='Ingreso - Consumo'!B17 -> 151 | C17: ='Ingreso - Consumo'!C17 -> 121 | D17: ='Ingreso - Consumo'!D17 -> 1.8
A19: DATOS DE CONSUMO PARA OTROS ESTABLECIMIENTOS
A20: Tipo de Establecimiento | B20: ¿Dispone de Sistema Propio de Generación Eléctrica? | C20: Cantidad de Establecimientos | D20: Consumo Energía Qsp [kWh/mes]
A21: Postas | B21: Sí | C21: ='Ingreso - Consumo'!C21 -> 0 | D21: ='Ingreso - Consumo'!D21 -> 0
B22: No | C22: ='Ingreso - Consumo'!C22 -> 0 | D22: =1*C9 -> 9
A23: Escuelas | B23: Sí | C23: ='Ingreso - Consumo'!C23 -> 0 | D23: ='Ingreso - Consumo'!D23 -> 0
B24: No | C24: ='Ingreso - Consumo'!C24 -> 0 | D24: =2*C9 -> 18
A25: Retenes | B25: Sí | C25: ='Ingreso - Consumo'!C25 -> 0 | D25: ='Ingreso - Consumo'!D25 -> 0
B26: No | C26: ='Ingreso - Consumo'!C26 -> 0 | D26: =2*C9 -> 18
A27: Centros Comunitarios y/o Iglesias | B27: Sí | C27: ='Ingreso - Consumo'!C27 -> 0 | D27: ='Ingreso - Consumo'!D27 -> 0
B28: No | C28: ='Ingreso - Consumo'!C28 -> 0 | D28: =+C9 -> 9
A29: Subtotal | B29: Sí | C29: =+C21+C23+C25+C27 -> 0 | D29: =+D21*C21+D23*C23+D25*C25+D27*C27 -> 0
B30: No | C30: =+C22+C24+C26+C28 -> 0 | D30: =+D22*C22+D24*C24+D26*C26+D28*C28 -> 0
A31: Total | C31: =+C30+C29 -> 0 | D31: =+D30+D29 -> 0
A33: USO PRODUCTIVO ELECTRICIDAD
A34: Demanda Productiva Transferida Corto Plazo
A35: Nº de Empalmes Productivos | C35: Nº | D35: ='Ingreso - Consumo'!D35 -> 0
A36: Consumo Energía | C36: [kWh/mes] | D36: ='Ingreso - Consumo'!D36 -> 0
A37: Consumo Potencia | C37: [kW] | D37: ='Ingreso - Consumo'!D37 -> 0
A38: Demanda Productiva Generada Corto Plazo
A39: Consumo Energía (% Consumo residencial) | C39: % | D39: 0.03
A42: =+'Ingreso - General OCULTO'!A41:D41 -> Planilla de Evaluación Ministerio de Desarrollo Social - Versión 2016

Sheet Ingreso - Inversión
A1: PARTE III : | B1: =+'Ingreso - General OCULTO'!A8 -> 0 | K1: Voltaje Linea M.T. [KV] | L1: N | M1: Tipo de Poste | N1: Tipo de Conductor | O1: Resistividad Conductor | P1: Perdidas Transformador Fierro
A2: DATOS DE INVERSION EN EQUIPOS (M$) | K2: 7.62 | L2: 1 | M2: Madera | N2: Cobre | O2: 0.017241 | P2: =+D31*F31+D32*F32+D33*F33+D34*F34+D35*F35+D36*F36+D37*F37+D38*F38+D39*F39+D40*F40+D41*F41+D42*F42+D43*F43+D44*F44+D45*F45+D46*F46+D47*F47+D48*F48+D49*F49+D50*F50 -> 405
A3: NOTA: LOS VALORES NO DEBEN INCLUIR IVA | K3: 13.2 | L3: 2 | M3: Hormigón | N3: Alumnio | O3: 0.028264
K4: 23 | L4: 3 | N4: Alumnio-Acero | O4: 0.03284
A5: COSTO Y CARACTERÍSTICAS DE LAS REDES DE DISTRIBUCIÓN
A6: Item | B6: Sub Item | C6: Linea Tramo BD | D6: Linea Media Tensión | E6: Linea Baja Tensión | G6: Unidades
E7: Postación Individual | F7: Postación Compartida
A8: Generales | B8: Tensión | C8: 23 | D8: 23 | E8: 0.22 | G8: [kv]
B9: Nº Fases | C9: 3 | D9: 2 | E9: 1 | F9: 1 | G9: (Máximo 2)
B10: Longitud de Red | C10: 30 | D10: 5.88259 | E10: 1.9 | F10: 1.23 | G10: [km]
A11: Conductor | B11: Cantidad de Conductores | C11: 3 | D11: 2 | E11: 2 | G11: [c/u]
B12: Tipo | C12: Cobre | D12: Cobre | E12: Cobre
B13: Resistividad Conductor | C13: =VLOOKUP(C12,$N$2:$O$4,2,FALSE) -> 0.017241 | D13: =VLOOKUP(D12,$N$2:$O$4,2,FALSE) -> 0.017241 | E13: =VLOOKUP(E12,$N$2:$O$4,2,FALSE) -> 0.017241 | G13: [Ω mm2 / m]
B14: Sección A | C14: 13.27 | D14: 13.27 | E14: 13.27 | G14: [mm2]
B15: cos(θ) | C15: 0.95 | D15: 0.95 | E15: 0.95
B16: Costo | D16: 617 | E16: 542 | G16: [$ / m ]
A17: Postes | B17: Material | D17: Hormigón | E17: Hormigón
B18: Altura | D18: 10 | E18: 8.7 | G18: [m]
B19: Cantidad | D19: 70 | E19: 31 | G19: [ c/u ]
B20: Costo | D20: 80.9278899 | E20: 68.377 | G20: [ M$ / c/u ]
A21: Costos Unitarios por Km | B21: Conductores | D21: =+D16*D11*1000/(1000) -> 1234 | E21: =+E16*E11*1000/(1000) -> 1084 | F21: =+E16*E11*1000/(1000) -> 1084 | G21: [ M$ / km de Extensión Red]]
D22: =IF(D11=0,0,+D21/D11) -> 617 | E22: =IF(E11=0,0,+E21/E11) -> 542 | F22: =IF(E11=0,0,+E21/E11) -> 542 | G22: [ M$ / km de Conductor]]
B23: Postes | D23: =IF(D10=0,0,+D19*D20/D10) -> 963.0030808 | E23: =IF(E10=0,0,+E19*E20/E10) -> 1115.624737 | G23: [ M$ / km]]
B24: Otros | D24: 8325.033333 | E24: 7992.43333 | F24: 7992.4 | G24: [ M$ / km]]
B25: Total | D25: =+D21+D23+D24 -> 10522.03641 | E25: =+E21+E23+E24 -> 10192.05807 | F25: =+F21+F24 -> 9076.4 | G25: [ M$ / km]]
A26: Costo Total | D26: =D10*D25 -> 61896.82619 | E26: =E10*E25 -> 19364.91033 | F26: =F10*F25 -> 11163.972 | G26: [ M$ ]
C27: =+D26+E26+F26 -> 92425.70851 | G27: [ M$ ]
A29: COSTO Y CARACTERÍSTICAS DE LAS SUB-ESTACIONES
A30: Sub Estación Potencia Nominal [KVA] | B30: Nº Fases | C30: Tensión [KV] | D30: Pérdidas Fe en Vacio [W] | E30: Pérdidas Cu Corriente Nominal [W] | F30: Cantidad | G30: Costo c/u [M$/c/u] | H30: Costo Total [M$] | K30: Sub Estación Potencia Nominal [VA] | L30: [ VAi2] | M30: [Ni * Wcunomi / VAi2]
A31: 1.5 | B31: 1 | C31: 7.62 | D31: 17 | E31: 49 | H31: =+F31*G31 -> 0 | K31: =+A31*1000 -> 1500 | L31: =+K31^2 -> 2250000 | M31: =+F31*E31/L31 -> 0
A32: 3 | B32: 1 | C32: 7.62 | D32: 26 | E32: 88 | H32: =+F32*G32 -> 0 | K32: =+$A$32*1000 -> 3000 | L32: =+K32^2 -> 9000000 | M32: =+F32*E32/L32 -> 0
B33: 2 | C33: 13.2 | D33: 27 | E33: 91 | H33: 0 | K33: =+$A$32*1000 -> 3000 | L33: 9000000 | M33: 0
C34: 23 | D34: 44 | E34: 127 | H34: 0 | K34: =+$A$32*1000 -> 3000 | L34: 9000000 | M34: 0
A35: 5 | B35: 1 | C35: 7.62 | D35: 31 | E35: 138 | H35: 0 | K35: =+$A$35*1000 -> 5000 | L35: 25000000 | M35: 0
B36: 2 | C36: 13.2 | D36: 37 | E36: 140 | H36: 0 | K36: =+$A$35*1000 -> 5000 | L36: 25000000 | M36: 0
C37: 23 | D37: 45 | E37: 149 | F37: 9 | G37: 504.54 | H37: 4540.86 | K37: =+$A$35*1000 -> 5000 | L37: 25000000 | M37: 5.364e-05
B38: 3 | C38: 13.2 | D38: 56 | E38: 183 | H38: 0 | K38: =+$A$35*1000 -> 5000 | L38: 25000000 | M38: 0
C39: 23 | D39: 42 | E39: 153 | H39: 0 | K39: =+$A$35*1000 -> 5000 | L39: 25000000 | M39: 0
A40: 10 | B40: 1 | C40: 7.62 | D40: 55 | E40: 227 | H40: 0 | K40: =+$A$40*1000 -> 10000 | L40: 100000000 | M40: 0
B41: 2 | C41: 13.2 | D41: 55 | E41: 202 | H41: 0 | K41: =+$A$40*1000 -> 10000 | L41: 100000000 | M41: 0
C42: 23 | D42: 65 | E42: 238 | H42: 0 | K42: =+$A$40*1000 -> 10000 | L42: 100000000 | M42: 0
B43: 3 | C43: 13.2 | D43: 93 | E43: 286 | H43: 0 | K43: =+$A$40*1000 -> 10000 | L43: 100000000 | M43: 0
C44: 23 | D44: 83 | E44: 352 | H44: 0 | K44: =+$A$40*1000 -> 10000 | L44: 100000000 | M44: 0
A45: 15 | B45: 1 | C45: 7.62 | D45: 65 | E45: 290 | H45: 0 | K45: =+$A$45*1000 -> 15000 | L45: 225000000 | M45: 0
B46: 2 | C46: 13.2 | D46: 95 | E46: 347 | F46: 0 | G46: 0 | H46: 0 | K46: 15000 | L46: 225000000 | M46: 0
C47: 23 | D47: 80 | E47: 326 | F47: 0 | G47: 693.52 | H47: 0 | K47: 15000 | L47: 225000000 | M47: 0
B48: 3 | C48: 13.2 | D48: 111 | E48: 392 | H48: 0 | K48: 15000 | L48: 225000000 | M48: 0
C49: 23 | D49: 137 | E49: 427 | H49: 0 | K49: 15000 | L49: 225000000 | M49: 0
A50: 0 | B50: 0 | C50: 0 | D50: 0 | E50: 0 | H50: 0 | K50: 15000 | L50: 225000000 | M50: =+F50*E50/L50 -> 0
H51: =SUM(H31:H50) -> 4540.86 | M51: =SUM(M31:M50) -> 5.364e-05
A53: COSTO Y CARACTERÍSTICAS DE LAS INSTALACIONES INTERIORES Y EMPALMES
A54: ITEM | B54: Cantidad | C54: Capacidad [A] | D54: Nº Circuitos | E54: Nº Centros | F54: L. Empalme [m] | G54: Costo Unitario [M$/c/u] | H54: Costo Total [M$]
A55: Empalme (Medidor y otros) | B55: 21 | C55: 10 | G55: 157 | H55: =G55*B55 -> 3297
A56: Instalación Interior | B56: 21 | C56: 10 | D56: 2 | E56: 6 | F56: 30 | G56: 120 | H56: =G56*B56 -> 2520
A57: Otro (especificar) | H57: =G57*B57 -> 0
A58: Especificación del Item "Otro" | H58: =SUM(H55:H57) -> 5817
A60: TOTAL INVERSIÓN EQUIPOS [M$] | D60: =H58+H51+C27 -> 102783.5685
A62: PARTE IV : | B62: =+'Ingreso - General OCULTO'!A8 -> 0
A63: DATOS DE INVERSION EN MANO DE OBRA (M$ s/IVA)
A64: ITEM | B64: Costos según calificación de Mano de Obra | E64: Total Privado [M$] | F64: Factores de Corrección de Mano de Obra | I64: Total (Social) [M$]
B65: Calificada | C65: Semi-calificada | D65: No calificada | F65: Calificada | G65: Semi-calificada | H65: No calificada
G66: =+'Ingreso - General OCULTO'!D30 -> 0 | H66: =+'Ingreso - General OCULTO'!D31 -> 0
A67: Linea A.T. | B67: 17581 | E67: =SUM(B67:D67) -> 17581 | F67: =B67*$F$66 -> 0 | G67: =C67*$G$66 -> 0 | H67: =D67*$H$66 -> 0 | I67: =SUM(F67:H67) -> 0
A68: Linea B.T.Pi | B68: 5535 | E68: 5535 | F68: 0 | G68: 0 | H68: 0 | I68: 0
A69: Línea B.T.Pc | B69: 1717 | E69: 1717 | F69: 0 | G69: 0 | H69: 0 | I69: HH
A70: Sub Estación 1.5 kVA | E70: 0 | F70: 0 | G70: 0 | H70: 0 | I70: 0
A71: Sub Estación 3.0 kVA | E71: 0 | F71: 0 | G71: 0 | H71: 0 | I71: 0
A72: Sub Estación 5.0 kVA | B72: 4541 | E72: 4541 | F72: 0 | G72: 0 | H72: 0 | I72: 0
A73: Sub Estación 7.5 kVA | E73: 0 | F73: 0 | G73: 0 | H73: 0 | I73: 0
A74: Sub Estación 10 kVA | E74: 0 | F74: 0 | G74: 0 | H74: 0 | I74: 0
A75: Sub Estación 15 kVA | E75: 0 | F75: 0 | G75: 0 | H75: 0 | I75: 0
A76: Otro | E76: 0 | F76: 0 | G76: 0 | H76: 0 | I76: 0
A77: Empalme (Medidor y otros) | B77: 483 | E77: 483 | F77: 0 | G77: 0 | H77: 0 | I77: 0
A78: Instalación Interior | B78: 630 | E78: 630 | F78: 0 | G78: 0 | H78: 0 | I78: 0
A79: Total | E79: =SUM(E67:E78) -> 30487 | I79: =SUM(I67:I78) -> 0
A81: TOTAL INVERSIÓN [M$] | D81: =+E79+D60 -> 133270.5685
A84: =+'Ingreso - General OCULTO'!A41:D41 -> Planilla de Evaluación Ministerio de Desarrollo Social - Versión 2016

Sheet Ingreso - Inversión OCULTO (hidden)
A1: PARTE III : | B1: =+'Ingreso - General OCULTO'!A8 -> 0 | K1: Voltaje Linea M.T. [KV] | L1: N | M1: Tipo de Poste | N1: Tipo de Conductor | O1: Resistividad Conductor | P1: Perdidas Transformador Fierro
A2: DATOS DE INVERSION EN EQUIPOS (M$) | K2: 7.62 | L2: 1 | M2: Madera | N2: Cobre | O2: 0.017241 | P2: =+D31*F31+D32*F32+D33*F33+D34*F34+D35*F35+D36*F36+D37*F37+D38*F38+D39*F39+D40*F40+D41*F41+D42*F42+D43*F43+D44*F44+D45*F45+D46*F46+D47*F47+D48*F48+D49*F49+D50*F50 -> 405
A3: NOTA: LOS VALORES NO DEBEN INCLUIR IVA | K3: 13.2 | L3: 2 | M3: Hormigón | N3: Alumnio | O3: 0.028264
K4: 23 | L4: 3 | N4: Alumnio-Acero | O4: 0.03284
A5: COSTO Y CARACTERÍSTICAS DE LAS REDES DE DISTRIBUCIÓN
A6: Item | B6: Sub Item | C6: Linea Tramo BD | D6: Linea Media Tensión | E6: Linea Baja Tensión | G6: Unidades
E7: Postación Individual | F7: Postación Compartida
A8: Generales | B8: Tensión | C8: ='Ingreso - Inversión'!C8 -> 23 | D8: ='Ingreso - Inversión'!D8 -> 23 | E8: 0.22 | G8: [kv]
B9: Nº Fases | C9: ='Ingreso - Inversión'!C9 -> 3 | D9: ='Ingreso - Inversión'!D9 -> 2 | E9: 1 | F9: 1 | G9: (Máximo 2)
B10: Longitud de Red | C10: ='Ingreso - Inversión'!C10 -> 30 | D10: ='Ingreso - Inversión'!D10 -> 5.88259 | E10: ='Ingreso - Inversión'!E10 -> 1.9 | F10: ='Ingreso - Inversión'!F10 -> 1.23 | G10: [km]
A11: Conductor | B11: Cantidad de Conductores | C11: ='Ingreso - Inversión'!C11 -> 3 | D11: ='Ingreso - Inversión'!D11 -> 2 | E11: 2 | G11: [c/u]
B12: Tipo | C12: ='Ingreso - Inversión'!C12 -> Cobre | D12: ='Ingreso - Inversión'!D12 -> Cobre | E12: ='Ingreso - Inversión'!E12:F12 -> Cobre
B13: Resistividad Conductor | C13: =VLOOKUP(C12,$N$2:$O$4,2,FALSE) -> 0.017241 | D13: =VLOOKUP(D12,$N$2:$O$4,2,FALSE) -> 0.017241 | E13: =VLOOKUP(E12,$N$2:$O$4,2,FALSE) -> 0.017241 | G13: [Ω mm2 / m]
B14: Sección A | C14: ='Ingreso - Inversión'!C14 -> 13.27 | D14: ='Ingreso - Inversión'!D14 -> 13.27 | E14: ='Ingreso - Inversión'!E14:F14 -> 13.27 | G14: [mm2]
B15: cos(θ) | C15: ='Ingreso - Inversión'!C15 -> 0.95 | D15: ='Ingreso - Inversión'!D15 -> 0.95 | E15: ='Ingreso - Inversión'!E15:F15 -> 0.95
B16: Costo | D16: ='Ingreso - Inversión'!D16 -> 617 | E16: ='Ingreso - Inversión'!E16:F16 -> 542 | G16: [$ / m ]
A17: Postes | B17: Material | D17: ='Ingreso - Inversión'!D17 -> Hormigón | E17: ='Ingreso - Inversión'!E17 -> Hormigón
B18: Altura | D18: ='Ingreso - Inversión'!D18 -> 10 | E18: ='Ingreso - Inversión'!E18 -> 8.7 | G18: [m]
B19: Cantidad | D19: ='Ingreso - Inversión'!D19 -> 70 | E19: ='Ingreso - Inversión'!E19 -> 31 | G19: [ c/u ]
B20: Costo | D20: ='Ingreso - Inversión'!D20 -> 80.9278899 | E20: ='Ingreso - Inversión'!E20 -> 68.377 | G20: [ M$ / c/u ]
A21: Costos Unitarios por Km | B21: Conductores | D21: =+D16*D11*1000/(1000) -> 1234 | E21: =+E16*E11*1000/(1000) -> 1084 | F21: =+E16*E11*1000/(1000) -> 1084 | G21: [ M$ / km de Extensión Red]]
D22: =IF(D11=0,0,+D21/D11) -> 617 | E22: =IF(E11=0,0,+E21/E11) -> 542 | F22: =IF(E11=0,0,+E21/E11) -> 542 | G22: [ M$ / km de Conductor]]
B23: Postes | D23: =IF(D10=0,0,+D19*D20/D10) -> 963.0030808 | E23: =IF(E10=0,0,+E19*E20/E10) -> 1115.624737 | G23: [ M$ / km]]
B24: Otros | D24: ='Ingreso - Inversión'!D24 -> 8325.033333 | E24: ='Ingreso - Inversión'!E24 -> 7992.43333 | F24: ='Ingreso - Inversión'!F24 -> 7992.4 | G24: [ M$ / km]]
B25: Total | D25: =+D21+D23+D24 -> 10522.03641 | E25: =+E21+E23+E24 -> 10192.05807 | F25: =+F21+F24 -> 9076.4 | G25: [ M$ / km]]
A26: Costo Total | D26: =D10*D25 -> 61896.82619 | E26: =E10*E25 -> 19364.91033 | F26: =F10*F25 -> 11163.972 | G26: [ M$ ]
C27: =+D26+E26+F26 -> 92425.70851 | G27: [ M$ ]
A29: COSTO Y CARACTERÍSTICAS DE LAS SUB-ESTACIONES
A30: Sub Estación Potencia Nominal [KVA] | B30: Nº Fases | C30: Tensión [KV] | D30: Pérdidas Fe en Vacio [W] | E30: Pérdidas Cu Corriente Nominal [W] | F30: Cantidad | G30: Costo c/u [M$/c/u] | H30: Costo Total [M$] | K30: Sub Estación Potencia Nominal [VA] | L30: [ VAi2] | M30: [Ni * Wcunomi / VAi2]
A31: 1.5 | B31: 1 | C31: 7.62 | D31: 17 | E31: 49 | F31: ='Ingreso - Inversión'!F31 -> 0 | G31: ='Ingreso - Inversión'!G31 -> 0 | H31: =+F31*G31 -> 0 | K31: =+A31*1000 -> 1500 | L31: =+K31^2 -> 2250000 | M31: =+F31*E31/L31 -> 0
A32: 3 | B32: 1 | C32: 7.62 | D32: 26 | E32: 88 | F32: ='Ingreso - Inversión'!F32 -> 0 | G32: ='Ingreso - Inversión'!G32 -> 0 | H32: =+F32*G32 -> 0 | K32: =+$A$32*1000 -> 3000 | L32: =+K32^2 -> 9000000 | M32: =+F32*E32/L32 -> 0
B33: 2 | C33: 13.2 | D33: 27 | E33: 91 | F33: ='Ingreso - Inversión'!F33 -> 0 | G33: ='Ingreso - Inversión'!G33 -> 0 | H33: 0 | K33: =+$A$32*1000 -> 3000 | L33: 9000000 | M33: 0
C34: 23 | D34: 44 | E34: 127 | F34: ='Ingreso - Inversión'!F34 -> 0 | G34: ='Ingreso - Inversión'!G34 -> 0 | H34: 0 | K34: =+$A$32*1000 -> 3000 | L34: 9000000 | M34: 0
A35: 5 | B35: 1 | C35: 7.62 | D35: 31 | E35: 138 | F35: ='Ingreso - Inversión'!F35 -> 0 | G35: ='Ingreso - Inversión'!G35 -> 0 | H35: 0 | K35: =+$A$35*1000 -> 5000 | L35: 25000000 | M35: 0
B36: 2 | C36: 13.2 | D36: 37 | E36: 140 | F36: ='Ingreso - Inversión'!F36 -> 0 | G36: ='Ingreso - Inversión'!G36 -> 0 | H36: 0 | K36: =+$A$35*1000 -> 5000 | L36: 25000000 | M36: 0
C37: 23 | D37: 45 | E37: 149 | F37: ='Ingreso - Inversión'!F37 -> 9 | G37: ='Ingreso - Inversión'!G37 -> 504.54 | H37: 4540.86 | K37: =+$A$35*1000 -> 5000 | L37: 25000000 | M37: 5.364e-05
B38: 3 | C38: 13.2 | D38: 56 | E38: 183 | F38: ='Ingreso - Inversión'!F38 -> 0 | G38: ='Ingreso - Inversión'!G38 -> 0 | H38: 0 | K38: =+$A$35*1000 -> 5000 | L38: 25000000 | M38: 0
C39: 23 | D39: 42 | E39: 153 | F39: ='Ingreso - Inversión'!F39 -> 0 | G39: ='Ingreso - Inversión'!G39 -> 0 | H39: 0 | K39: =+$A$35*1000 -> 5000 | L39: 25000000 | M39: 0
A40: 10 | B40: 1 | C40: 7.62 | D40: 55 | E40: 227 | F40: ='Ingreso - Inversión'!F40 -> 0 | G40: ='Ingreso - Inversión'!G40 -> 0 | H40: 0 | K40: =+$A$40*1000 -> 10000 | L40: 100000000 | M40: 0
B41: 2 | C41: 13.2 | D41: 55 | E41: 202 | F41: ='Ingreso - Inversión'!F41 -> 0 | G41: ='Ingreso - Inversión'!G41 -> 0 | H41: 0 | K41: =+$A$40*1000 -> 10000 | L41: 100000000 | M41: 0
C42: 23 | D42: 65 | E42: 238 | F42: ='Ingreso - Inversión'!F42 -> 0 | G42: ='Ingreso - Inversión'!G42 -> 0 | H42: 0 | K42: =+$A$40*1000 -> 10000 | L42: 100000000 | M42: 0
B43: 3 | C43: 13.2 | D43: 93 | E43: 286 | F43: ='Ingreso - Inversión'!F43 -> 0 | G43: ='Ingreso - Inversión'!G43 -> 0 | H43: 0 | K43: =+$A$40*1000 -> 10000 | L43: 100000000 | M43: 0
C44: 23 | D44: 83 | E44: 352 | F44: ='Ingreso - Inversión'!F44 -> 0 | G44: ='Ingreso - Inversión'!G44 -> 0 | H44: 0 | K44: =+$A$40*1000 -> 10000 | L44: 100000000 | M44: 0
A45: 15 | B45: 1 | C45: 7.62 | D45: 65 | E45: 290 | F45: ='Ingreso - Inversión'!F45 -> 0 | G45: ='Ingreso - Inversión'!G45 -> 0 | H45: 0 | K45: =+$A$45*1000 -> 15000 | L45: 225000000 | M45: 0
B46: 2 | C46: 13.2 | D46: 95 | E46: 347 | F46: ='Ingreso - Inversión'!F46 -> 0 | G46: ='Ingreso - Inversión'!G46 -> 0 | H46: 0 | K46: 15000 | L46: 225000000 | M46: 0
C47: 23 | D47: 80 | E47: 326 | F47: ='Ingreso - Inversión'!F47 -> 0 | G47: ='Ingreso - Inversión'!G47 -> 693.52 | H47: 0 | K47: 15000 | L47: 225000000 | M47: 0
B48: 3 | C48: 13.2 | D48: 111 | E48: 392 | F48: ='Ingreso - Inversión'!F48 -> 0 | G48: ='Ingreso - Inversión'!G48 -> 0 | H48: 0 | K48: 15000 | L48: 225000000 | M48: 0
C49: 23 | D49: 137 | E49: 427 | F49: ='Ingreso - Inversión'!F49 -> 0 | G49: ='Ingreso - Inversión'!G49 -> 0 | H49: 0 | K49: 15000 | L49: 225000000 | M49: 0
A50: ='Ingreso - Inversión'!A50 -> 0 | B50: ='Ingreso - Inversión'!B50 -> 0 | C50: ='Ingreso - Inversión'!C50 -> 0 | D50: ='Ingreso - Inversión'!D50 -> 0 | E50: ='Ingreso - Inversión'!E50 -> 0 | F50: ='Ingreso - Inversión'!F50 -> 0 | G50: ='Ingreso - Inversión'!G50 -> 0 | H50: 0 | K50: 15000 | L50: 225000000 | M50: =+F50*E50/L50 -> 0
H51: =SUM(H31:H50) -> 4540.86 | M51: =SUM(M31:M50) -> 5.364e-05
A53: COSTO Y CARACTERÍSTICAS DE LAS INSTALACIONES INTERIORES Y EMPALMES
A54: ITEM | B54: Cantidad | C54: Capacidad [A] | D54: Nº Circuitos | E54: Nº Centros | F54: L. Empalme [m] | G54: Costo Unitario [M$/c/u] | H54: Costo Total [M$]
A55: Empalme (Medidor y otros) | B55: ='Ingreso - Inversión'!B55 -> 21 | C55: ='Ingreso - Inversión'!C55 -> 10 | G55: ='Ingreso - Inversión'!G55 -> 157 | H55: =G55*B55 -> 3297
A56: Instalación Interior | B56: ='Ingreso - Inversión'!B56 -> 21 | C56: ='Ingreso - Inversión'!C56 -> 10 | D56: ='Ingreso - Inversión'!D56 -> 2 | E56: ='Ingreso - Inversión'!E56 -> 6 | F56: ='Ingreso - Inversión'!F56 -> 30 | G56: ='Ingreso - Inversión'!G56 -> 120 | H56: =G56*B56 -> 2520
A57: Otro (especificar) | B57: ='Ingreso - Inversión'!B57 -> 0 | G57: ='Ingreso - Inversión'!G57 -> 0 | H57: =G57*B57 -> 0
A58: Especificación del Item "Otro" | B58: ='Ingreso - Inversión'!B58:G58 -> 0 | H58: =SUM(H55:H57) -> 5817
A60: TOTAL INVERSIÓN EQUIPOS [M$] | D60: =H58+H51+C27 -> 102783.5685
A62: PARTE IV : | B62: =+'Ingreso - General OCULTO'!A8 -> 0
A63: DATOS DE INVERSION EN MANO DE OBRA (M$ s/IVA)
A64: ITEM | B64: Costos según calificación de Mano de Obra | E64: Total Privado [M$] | F64: Factores de Corrección de Mano de Obra | I64: Total (Social) [M$]
B65: Calificada | C65: Semi-calificada | D65: No calificada | F65: Calificada | G65: Semi-calificada | H65: No calificada
G66: =+'Ingreso - General OCULTO'!D30 -> 0 | H66: =+'Ingreso - General OCULTO'!D31 -> 0
A67: Linea A.T. | B67: ='Ingreso - Inversión'!B67 -> 17581 | C67: ='Ingreso - Inversión'!C67 -> 0 | D67: ='Ingreso - Inversión'!D67 -> 0 | E67: =SUM(B67:D67) -> 17581 | F67: =B67*$F$66 -> 0 | G67: =C67*$G$66 -> 0 | H67: =D67*$H$66 -> 0 | I67: =SUM(F67:H67) -> 0
A68: Linea B.T.Pi | B68: ='Ingreso - Inversión'!B68 -> 5535 | C68: ='Ingreso - Inversión'!C68 -> 0 | D68: ='Ingreso - Inversión'!D68 -> 0 | E68: 5535 | F68: 0 | G68: 0 | H68: 0 | I68: 0
A69: Línea B.T.Pc | B69: ='Ingreso - Inversión'!B69 -> 1717 | C69: ='Ingreso - Inversión'!C69 -> 0 | D69: ='Ingreso - Inversión'!D69 -> 0 | E69: 1717 | F69: 0 | G69: 0 | H69: 0 | I69: HH
A70: Sub Estación 1.5 kVA | B70: ='Ingreso - Inversión'!B70 -> 0 | C70: ='Ingreso - Inversión'!C70 -> 0 | D70: ='Ingreso - Inversión'!D70 -> 0 | E70: 0 | F70: 0 | G70: 0 | H70: 0 | I70: 0
A71: Sub Estación 3.0 kVA | B71: ='Ingreso - Inversión'!B71 -> 0 | C71: ='Ingreso - Inversión'!C71 -> 0 | D71: ='Ingreso - Inversión'!D71 -> 0 | E71: 0 | F71: 0 | G71: 0 | H71: 0 | I71: 0
A72: Sub Estación 5.0 kVA | B72: ='Ingreso - Inversión'!B72 -> 4541 | C72: ='Ingreso - Inversión'!C72 -> 0 | D72: ='Ingreso - Inversión'!D72 -> 0 | E72: 4541 | F72: 0 | G72: 0 | H72: 0 | I72: 0
A73: Sub Estación 7.5 kVA | B73: ='Ingreso - Inversión'!B73 -> 0 | C73: ='Ingreso - Inversión'!C73 -> 0 | D73: ='Ingreso - Inversión'!D73 -> 0 | E73: 0 | F73: 0 | G73: 0 | H73: 0 | I73: 0
A74: Sub Estación 10 kVA | B74: ='Ingreso - Inversión'!B74 -> 0 | C74: ='Ingreso - Inversión'!C74 -> 0 | D74: ='Ingreso - Inversión'!D74 -> 0 | E74: 0 | F74: 0 | G74: 0 | H74: 0 | I74: 0
A75: Sub Estación 15 kVA | B75: ='Ingreso - Inversión'!B75 -> 0 | C75: ='Ingreso - Inversión'!C75 -> 0 | D75: ='Ingreso - Inversión'!D75 -> 0 | E75: 0 | F75: 0 | G75: 0 | H75: 0 | I75: 0
A76: Otro | B76: ='Ingreso - Inversión'!B76 -> 0 | C76: ='Ingreso - Inversión'!C76 -> 0 | D76: ='Ingreso - Inversión'!D76 -> 0 | E76: 0 | F76: 0 | G76: 0 | H76: 0 | I76: 0
A77: Empalme (Medidor y otros) | B77: ='Ingreso - Inversión'!B77 -> 483 | C77: ='Ingreso - Inversión'!C77 -> 0 | D77: ='Ingreso - Inversión'!D77 -> 0 | E77: 483 | F77: 0 | G77: 0 | H77: 0 | I77: 0
A78: Instalación Interior | B78: ='Ingreso - Inversión'!B78 -> 630 | C78: ='Ingreso - Inversión'!C78 -> 0 | D78: ='Ingreso - Inversión'!D78 -> 0 | E78: 630 | F78: 0 | G78: 0 | H78: 0 | I78: 0
A79: Total | E79: =SUM(E67:E78) -> 30487 | I79: =SUM(I67:I78) -> 0
A81: TOTAL INVERSIÓN [M$] | D81: =+E79+D60 -> 133270.5685
A84: =+'Ingreso - General OCULTO'!A41:D41 -> Planilla de Evaluación Ministerio de Desarrollo Social - Versión 2016

Sheet Calculo - Pérdidas (hidden)
A1: CALCULO DE PERDIDAS TECNICAS
A2: INPUTS PARA CALCULO | X2: CALCULO
A3: VARIOS | I3: Voltaje por Línea | L3: Resistividad Conductor | O3: cos(θ) | R3: Sección Conductor | U3: Extensión Linea | X3: Perdida Baja Tensión | Y3: Perdida Transformador | AA3: Perdida Media tensión para 1 y 2 Fases | AF3: Perdida Tramo BD para 2 y 3 Fases | AK3: Cálculo de Perdidas de Energía y Potencia | AQ3: TABLA PARA CALCULO DE SERIE | AU3: FACTORES PARA CURVA DE FACTOR DE CARGA
A4: Año | B4: Energía Demandada ET [kWh/año] | C4: Numero de Empalmes N | D4: Número de Transformadores NT | E4: Factor de Carga Residencial Rural fc | F4: Factor Coincidencia | G4: Periodo Anual [H] | H4: Potencia Máxima Promedio por Vivienda PV [W] | I4: VBD [V] | J4: VMT [V] | K4: VBT [V] | L4: Tramo BD [Ω mm2 / m] | M4: Media Tensión [Ω mm2 / m] | N4: Baja tensión [Ω mm2 / m] | O4: Tramo BD | P4: Media Tensión | Q4: Baja tensión | R4: Tramo BD [mm2] | S4: MT [mm2] | T4: BT [mm2] | U4: LBD [m] | V4: LBT [m] | W4: LMT [m] | X4: WBT [W] | Y4: WFei [W] | Z4: WCu [W] | AA4: IT1 Fase [A] | AB4: Sumatoria de i=1 a NT de (NT-i+1)^2 | AC4: WMT 1 Fase [W] | AD4: IT2 Fase [A] | AE4: WMT 2 Fase [W] | AF4: P FNDR [W] | AG4: I BD 2 Fases [A] | AH4: WBD 2 Fases [W] | AI4: I BD 3 Fases [A] | AJ4: WBD 3 Fases [W] | AK4: fcp | AL4: Perdidas de Potencia [kW] | AM4: Perdidas de Energía [kWh/Año] | AN4: Total Perdida Energía [kWh/año] | AO4: Total Perdida Potencia [kW] | AQ4: i | AR4: (NT-i-1)^2 | AS4: Suma (NT-i-1)^2 | AU4: fc | AV4: A | AW4: B | AX4: C
A5: 1 | B5: ='Calculo - Consumo'!AM6 -> 6516 | C5: ='Calculo - Consumo'!AI6 -> 18 | D5: =SUM('Ingreso - Inversión OCULTO'!$F$31:$F$50) -> 9 | E5: =+$AV$5-$AW$5*EXP(A5/$AX$5) -> 0.247373133 | F5: =+'Ingreso - General OCULTO'!$D$38 -> 0.78 | G5: 8760 | H5: =+B5/(C5*E5*G5)*1000 -> 167.0520982 | I5: =+'Ingreso - Inversión OCULTO'!$C$8*1000 -> 23000 | J5: =+'Ingreso - Inversión OCULTO'!$D$8*1000 -> 23000 | K5: =+'Ingreso - Inversión OCULTO'!$E$8*1000 -> 220 | L5: =+'Ingreso - Inversión OCULTO'!$C$13 -> 0.017241 | M5: =+'Ingreso - Inversión OCULTO'!$D$13 -> 0.017241 | N5: =+'Ingreso - Inversión OCULTO'!$E$13 -> 0.017241 | O5: =+'Ingreso - Inversión OCULTO'!$C$15 -> 0.95 | P5: =+'Ingreso - Inversión OCULTO'!$D$15 -> 0.95 | Q5: =+'Ingreso - Inversión OCULTO'!$E$15 -> 0.95 | R5: =+'Ingreso - Inversión OCULTO'!$C$14 -> 13.27 | S5: =+'Ingreso - Inversión OCULTO'!$D$14 -> 13.27 | T5: =+'Ingreso - Inversión OCULTO'!$E$14 -> 13.27 | U5: =+'Ingreso - Inversión OCULTO'!$C$10*1000 -> 30000 | V5: =(+'Ingreso - Inversión OCULTO'!$E$10+'Ingreso - Inversión OCULTO'!$F$10)*1000 -> 3130 | W5: =++'Ingreso - Inversión OCULTO'!$D$10*1000 -> 5882.59 | X5: =(((H5*F5)/(K5*Q5))^2)*2*N5*V5/T5 -> 3.161304758 | Y5: =+'Ingreso - Inversión OCULTO'!$P$2 -> 405 | Z5: =((C5/D5*H5*F5+X5/D5)^2/Q5^2)*'Ingreso - Inversión OCULTO'!$M$51 -> 4.047292384 | AA5: =1/D5*(C5*H5*F5+X5+Z5+Y5)/(J5*P5) -> 0.01402298528 | AB5: =VLOOKUP($D$5,$AQ$5:$AS$5004,3,FALSE) -> 285 | AC5: =AB5*AA5^2*M5*W5/S5 -> 0.4283373306 | AD5: =+AA5*3^(1/2)*0.5 -> 0.01214426149 | AE5: =2*AB5*AD5^2*M5*W5/S5 -> 0.6425059959 | AF5: =+C5*H5*F5+X5+Z5+Y5+IF('Ingreso - Inversión OCULTO'!$D$9=1,1,0)*AC5+IF('Ingreso - Inversión OCULTO'!$D$9=2,1,0)*AE5 -> 2758.262562 | AG5: =(3/4)^0.5*AF5/(I5*O5) -> 0.1093238192 | AH5: =2*AG5^2*L5*U5/R5 -> 0.9316920069 | AI5: =+AF5/((3^0.5)*I5*O5) -> 0.07288254611 | AJ5: =3*AI5^2*L5*U5/R5 -> 0.6211280046 | AK5: =0.7*E5^2+0.3*E5 -> 0.1170473668 | AL5: =((X5+Z5+AC5*IF('Ingreso - Inversión OCULTO'!$D$9=1,1,0)+AE5*IF('Ingreso - Inversión OCULTO'!$D$9=2,1,0)+AH5*IF('Ingreso - Inversión OCULTO'!$C$9=2,1,0)+AJ5*IF('Ingreso - Inversión OCULTO'!$C$9=3,1,0))+Y5)/1000 -> 0.4134722311 | AM5: =(+(X5+Z5+AC5*IF('Ingreso - Inversión OCULTO'!$D$9=1,1,0)+AE5*IF('Ingreso - Inversión OCULTO'!$D$9=2,1,0)+AH5*IF('Ingreso - Inversión OCULTO'!$C$9=2,1,0)+AJ5*IF('Ingreso - Inversión OCULTO'!$C$9=3,1,0))*AK5*G5+Y5*G5)/1000 -> 3556.486875 | AN5: =(+(X5+Z5+AC5*IF('Ingreso - Inversión OCULTO'!$D$9=1,1,0)+AE5*IF('Ingreso - Inversión OCULTO'!$D$9=2,1,0)+AH5*IF('Ingreso - Inversión OCULTO'!$C$9=2,1,0)+AJ5*IF('Ingreso - Inversión OCULTO'!$C$9=3,1,0))*AK5*G5+Y5*8760)/1000 -> 3556.486875 | AO5: =((X5+Z5+AC5*IF('Ingreso - Inversión OCULTO'!$D$9=1,1,0)+AE5*IF('Ingreso - Inversión OCULTO'!$D$9=2,1,0)+AH5*IF('Ingreso - Inversión OCULTO'!$C$9=2,1,0)+AJ5*IF('Ingreso - Inversión OCULTO'!$C$9=3,1,0))+Y5)/1000 -> 0.4134722311 | AQ5: 1 | AR5: =+($D$5-AQ5+1)^2 -> 81 | AS5: =+AR5 -> 81 | AU5: A-B*EXP(t/C) | AV5: =+'Ingreso - General OCULTO'!$D$37 -> 0.38 | AW5: =+AV5 -> 0.38 | AX5: -0.95
A6: 2 | B6: ='Calculo - Consumo'!AM7 -> 11464.51715 | C6: ='Calculo - Consumo'!AI7 -> 18.0936 | D6: =SUM('Ingreso - Inversión OCULTO'!$F$31:$F$50) -> 9 | E6: 0.3337108267 | F6: =+'Ingreso - General OCULTO'!$D$38 -> 0.78 | G6: 8760 | H6: =+B6/(C6*E6*G6)*1000 -> 216.7486396 | I6: =+'Ingreso - Inversión OCULTO'!$C$8*1000 -> 23000 | J6: =+'Ingreso - Inversión OCULTO'!$D$8*1000 -> 23000 | K6: =+'Ingreso - Inversión OCULTO'!$E$8*1000 -> 220 | L6: =+'Ingreso - Inversión OCULTO'!$C$13 -> 0.017241 | M6: =+'Ingreso - Inversión OCULTO'!$D$13 -> 0.017241 | N6: =+'Ingreso - Inversión OCULTO'!$E$13 -> 0.017241 | O6: =+'Ingreso - Inversión OCULTO'!$C$15 -> 0.95 | P6: =+'Ingreso - Inversión OCULTO'!$D$15 -> 0.95 | Q6: =+'Ingreso - Inversión OCULTO'!$E$15 -> 0.95 | R6: =+'Ingreso - Inversión OCULTO'!$C$14 -> 13.27 | S6: =+'Ingreso - Inversión OCULTO'!$D$14 -> 13.27 | T6: =+'Ingreso - Inversión OCULTO'!$E$14 -> 13.27 | U6: =+'Ingreso - Inversión OCULTO'!$C$10*1000 -> 30000 | V6: =(+'Ingreso - Inversión OCULTO'!$E$10+'Ingreso - Inversión OCULTO'!$F$10)*1000 -> 3130 | W6: =++'Ingreso - Inversión OCULTO'!$D$10*1000 -> 5882.59 | X6: =(((H6*F6)/(K6*Q6))^2)*2*N6*V6/T6 -> 5.322004727 | Y6: =+'Ingreso - Inversión OCULTO'!$P$2 -> 405 | Z6: =((C6/D6*H6*F6+X6/D6)^2/Q6^2)*'Ingreso - Inversión OCULTO'!$M$51 -> 6.889985907 | AA6: 0.01767702657 | AB6: 285 | AC6: 0.6806492945 | AD6: =+AA6*3^(1/2)*0.5 -> 0.01530875407 | AE6: 1.020973942 | AF6: =+C6*H6*F6+X6+Z6+Y6+IF('Ingreso - Inversión OCULTO'!$D$9=1,1,0)*AC6+IF('Ingreso - Inversión OCULTO'!$D$9=2,1,0)*AE6 -> 3477.208249 | AG6: 0.137819253 | AH6: =2*AG6^2*M6*U6/T6 -> 1.48068461 | AI6: 0.09187950199 | AJ6: 0.9871230736 | AK6: =0.7*E6^2+0.3*E6 -> 0.1780672891 | AL6: =((X6+Z6+AC6*IF('Ingreso - Inversión OCULTO'!$D$9=1,1,0)+AE6*IF('Ingreso - Inversión OCULTO'!$D$9=2,1,0)+AH6*IF('Ingreso - Inversión OCULTO'!$C$9=2,1,0)+AJ6*IF('Ingreso - Inversión OCULTO'!$C$9=3,1,0))+Y6)/1000 -> 0.4192200876 | AM6: =(+(X6+Z6+AC6*IF('Ingreso - Inversión OCULTO'!$D$9=1,1,0)+AE6*IF('Ingreso - Inversión OCULTO'!$D$9=2,1,0)+AH6*IF('Ingreso - Inversión OCULTO'!$C$9=2,1,0)+AJ6*IF('Ingreso - Inversión OCULTO'!$C$9=3,1,0))*AK6*G6+Y6*8760)/1000 -> 3569.98148 | AN6: =(+(X6+Z6+AC6*IF('Ingreso - Inversión OCULTO'!$D$9=1,1,0)+AE6*IF('Ingreso - Inversión OCULTO'!$D$9=2,1,0)+AH6*IF('Ingreso - Inversión OCULTO'!$C$9=2,1,0)+AJ6*IF('Ingreso - Inversión OCULTO'!$C$9=3,1,0))*AK6*G6+Y6*8760)/1000 -> 3569.98148 | AO6: =((X6+Z6+AC6*IF('Ingreso - Inversión OCULTO'!$D$9=1,1,0)+AE6*IF('Ingreso - Inversión OCULTO'!$D$9=2,1,0)+AH6*IF('Ingreso - Inversión OCULTO'!$C$9=2,1,0)+AJ6*IF('Ingreso - Inversión OCULTO'!$C$9=3,1,0))+Y6)/1000 -> 0.4192200876 | AQ6: 2 | AR6: 64 | AS6: =+AR6+AS5 -> 145
A7: 3 | B7: ='Calculo - Consumo'!AM8 -> 14481.50458 | C7: ='Calculo - Consumo'!AI8 -> 18.18768672 | D7: =SUM('Ingreso - Inversión OCULTO'!$F$31:$F$50) -> 9 | E7: 0.363844242 | F7: =+'Ingreso - General OCULTO'!$D$38 -> 0.78 | G7: 8760 | H7: 249.8139052 | I7: =+'Ingreso - Inversión OCULTO'!$C$8*1000 -> 23000 | J7: =+'Ingreso - Inversión OCULTO'!$D$8*1000 -> 23000 | K7: =+'Ingreso - Inversión OCULTO'!$E$8*1000 -> 220 | L7: =+'Ingreso - Inversión OCULTO'!$C$13 -> 0.017241 | M7: =+'Ingreso - Inversión OCULTO'!$D$13 -> 0.017241 | N7: =+'Ingreso - Inversión OCULTO'!$E$13 -> 0.017241 | O7: =+'Ingreso - Inversión OCULTO'!$C$15 -> 0.95 | P7: =+'Ingreso - Inversión OCULTO'!$D$15 -> 0.95 | Q7: =+'Ingreso - Inversión OCULTO'!$E$15 -> 0.95 | R7: =+'Ingreso - Inversión OCULTO'!$C$14 -> 13.27 | S7: =+'Ingreso - Inversión OCULTO'!$D$14 -> 13.27 | T7: =+'Ingreso - Inversión OCULTO'!$E$14 -> 13.27 | U7: =+'Ingreso - Inversión OCULTO'!$C$10*1000 -> 30000 | V7: =(+'Ingreso - Inversión OCULTO'!$E$10+'Ingreso - Inversión OCULTO'!$F$10)*1000 -> 3130 | W7: =++'Ingreso - Inversión OCULTO'!$D$10*1000 -> 5882.59 | X7: =(((H7*F7)/(K7*Q7))^2)*2*N7*V7/T7 -> 7.069614166 | Y7: =+'Ingreso - Inversión OCULTO'!$P$2 -> 405 | Z7: =((C7/D7*H7*F7+X7/D7)^2/Q7^2)*'Ingreso - Inversión OCULTO'!$M$51 -> 9.252622802 | AA7: 0.02016415526 | AB7: 285 | AC7: 0.8856559302 | AD7: 0.0174626707 | AE7: 1.328483895 | AF7: =+C7*H7*F7+X7+Z7+Y7+IF('Ingreso - Inversión OCULTO'!$D$9=1,1,0)*AC7+IF('Ingreso - Inversión OCULTO'!$D$9=2,1,0)*AE7 -> 3966.609616 | AG7: 0.1572166908 | AH7: 1.926815277 | AI7: 0.1048111272 | AJ7: 1.284543518 | AK7: 0.2018211153 | AL7: =((X7+Z7+AC7*IF('Ingreso - Inversión OCULTO'!$D$9=1,1,0)+AE7*IF('Ingreso - Inversión OCULTO'!$D$9=2,1,0)+AH7*IF('Ingreso - Inversión OCULTO'!$C$9=2,1,0)+AJ7*IF('Ingreso - Inversión OCULTO'!$C$9=3,1,0))+Y7)/1000 -> 0.4239352644 | AM7: =(+(X7+Z7+AC7*IF('Ingreso - Inversión OCULTO'!$D$9=1,1,0)+AE7*IF('Ingreso - Inversión OCULTO'!$D$9=2,1,0)+AH7*IF('Ingreso - Inversión OCULTO'!$C$9=2,1,0)+AJ7*IF('Ingreso - Inversión OCULTO'!$C$9=3,1,0))*AK7*G7+Y7*8760)/1000 -> 3581.276657 | AN7: =(+(X7+Z7+AC7*IF('Ingreso - Inversión OCULTO'!$D$9=1,1,0)+AE7*IF('Ingreso - Inversión OCULTO'!$D$9=2,1,0)+AH7*IF('Ingreso - Inversión OCULTO'!$C$9=2,1,0)+AJ7*IF('Ingreso - Inversión OCULTO'!$C$9=3,1,0))*AK7*G7+Y7*8760)/1000 -> 3581.276657 | AO7: =((X7+Z7+AC7*IF('Ingreso - Inversión OCULTO'!$D$9=1,1,0)+AE7*IF('Ingreso - Inversión OCULTO'!$D$9=2,1,0)+AH7*IF('Ingreso - Inversión OCULTO'!$C$9=2,1,0)+AJ7*IF('Ingreso - Inversión OCULTO'!$C$9=3,1,0))+Y7)/1000 -> 0.4239352644 | AQ7: 3 | AR7: 49 | AS7: =+AR7+AS6 -> 194
A8: 4 | B8: ='Calculo - Consumo'!AM9 -> 16336.31626 | C8: ='Calculo - Consumo'!AI9 -> 18.28226269 | D8: =SUM('Ingreso - Inversión OCULTO'!$F$31:$F$50) -> 9 | E8: 0.3743613485 | F8: =+'Ingreso - General OCULTO'!$D$38 -> 0.78 | G8: 8760 | H8: 272.4765165 | I8: =+'Ingreso - Inversión OCULTO'!$C$8*1000 -> 23000 | J8: =+'Ingreso - Inversión OCULTO'!$D$8*1000 -> 23000 | K8: =+'Ingreso - Inversión OCULTO'!$E$8*1000 -> 220 | L8: =+'Ingreso - Inversión OCULTO'!$C$13 -> 0.017241 | M8: =+'Ingreso - Inversión OCULTO'!$D$13 -> 0.017241 | N8: =+'Ingreso - Inversión OCULTO'!$E$13 -> 0.017241 | O8: =+'Ingreso - Inversión OCULTO'!$C$15 -> 0.95 | P8: =+'Ingreso - Inversión OCULTO'!$D$15 -> 0.95 | Q8: =+'Ingreso - Inversión OCULTO'!$E$15 -> 0.95 | R8: =+'Ingreso - Inversión OCULTO'!$C$14 -> 13.27 | S8: =+'Ingreso - Inversión OCULTO'!$D$14 -> 13.27 | T8: =+'Ingreso - Inversión OCULTO'!$E$14 -> 13.27 | U8: =+'Ingreso - Inversión OCULTO'!$C$10*1000 -> 30000 | V8: =(+'Ingreso - Inversión OCULTO'!$E$10+'Ingreso - Inversión OCULTO'!$F$10)*1000 -> 3130 | W8: =++'Ingreso - Inversión OCULTO'!$D$10*1000 -> 5882.59 | X8: 8.410477478 | Y8: =+'Ingreso - Inversión OCULTO'!$P$2 -> 405 | Z8: =((C8/D8*H8*F8+X8/D8)^2/Q8^2)*'Ingreso - Inversión OCULTO'!$M$51 -> 11.12607188 | AA8: 0.02191760288 | AB8: 285 | AC8: 1.046383968 | AD8: 0.01898120088 | AE8: 1.569575951 | AF8: =+C8*H8*F8+X8+Z8+Y8+IF('Ingreso - Inversión OCULTO'!$D$9=1,1,0)*AC8+IF('Ingreso - Inversión OCULTO'!$D$9=2,1,0)*AE8 -> 4311.666182 | AG8: 0.1708930181 | AH8: 2.276624573 | AI8: 0.1139286788 | AJ8: 1.517749716 | AK8: 0.210410898 | AL8: =((X8+Z8+AC8*IF('Ingreso - Inversión OCULTO'!$D$9=1,1,0)+AE8*IF('Ingreso - Inversión OCULTO'!$D$9=2,1,0)+AH8*IF('Ingreso - Inversión OCULTO'!$C$9=2,1,0)+AJ8*IF('Ingreso - Inversión OCULTO'!$C$9=3,1,0))+Y8)/1000 -> 0.427623875 | AM8: =(+(X8+Z8+AC8*IF('Ingreso - Inversión OCULTO'!$D$9=1,1,0)+AE8*IF('Ingreso - Inversión OCULTO'!$D$9=2,1,0)+AH8*IF('Ingreso - Inversión OCULTO'!$C$9=2,1,0)+AJ8*IF('Ingreso - Inversión OCULTO'!$C$9=3,1,0))*AK8*G8+Y8*8760)/1000 -> 3589.500314 | AN8: =(+(X8+Z8+AC8*IF('Ingreso - Inversión OCULTO'!$D$9=1,1,0)+AE8*IF('Ingreso - Inversión OCULTO'!$D$9=2,1,0)+AH8*IF('Ingreso - Inversión OCULTO'!$C$9=2,1,0)+AJ8*IF('Ingreso - Inversión OCULTO'!$C$9=3,1,0))*AK8*G8+Y8*8760)/1000 -> 3589.500314 | AO8: =((X8+Z8+AC8*IF('Ingreso - Inversión OCULTO'!$D$9=1,1,0)+AE8*IF('Ingreso - Inversión OCULTO'!$D$9=2,1,0)+AH8*IF('Ingreso - Inversión OCULTO'!$C$9=2,1,0)+AJ8*IF('Ingreso - Inversión OCULTO'!$C$9=3,1,0))+Y8)/1000 -> 0.427623875 | AQ8: 4 | AR8: 36 | AS8: 230
A9: 5 | B9: ='Calculo - Consumo'!AM10 -> 17491.93664 | C9: ='Calculo - Consumo'!AI10 -> 18.37733046 | D9: =SUM('Ingreso - Inversión OCULTO'!$F$31:$F$50) -> 9 | E9: 0.3780320087 | F9: =+'Ingreso - General OCULTO'!$D$38 -> 0.78 | G9: 8760 | H9: 287.4238422 | I9: =+'Ingreso - Inversión OCULTO'!$C$8*1000 -> 23000 | J9: =+'Ingreso - Inversión OCULTO'!$D$8*1000 -> 23000 | K9: =+'Ingreso - Inversión OCULTO'!$E$8*1000 -> 220 | L9: =+'Ingreso - Inversión OCULTO'!$C$13 -> 0.017241 | M9: =+'Ingreso - Inversión OCULTO'!$D$13 -> 0.017241 | N9: =+'Ingreso - Inversión OCULTO'!$E$13 -> 0.017241 | O9: =+'Ingreso - Inversión OCULTO'!$C$15 -> 0.95 | P9: =+'Ingreso - Inversión OCULTO'!$D$15 -> 0.95 | Q9: =+'Ingreso - Inversión OCULTO'!$E$15 -> 0.95 | R9: =+'Ingreso - Inversión OCULTO'!$C$14 -> 13.27 | S9: =+'Ingreso - Inversión OCULTO'!$D$14 -> 13.27 | T9: =+'Ingreso - Inversión OCULTO'!$E$14 -> 13.27 | U9: =+'Ingreso - Inversión OCULTO'!$C$10*1000 -> 30000 | V9: =(+'Ingreso - Inversión OCULTO'!$E$10+'Ingreso - Inversión OCULTO'!$F$10)*1000 -> 3130 | W9: =++'Ingreso - Inversión OCULTO'!$D$10*1000 -> 5882.59 | X9: 9.358539478 | Y9: =+'Ingreso - Inversión OCULTO'!$P$2 -> 405 | Z9: =((C9/D9*H9*F9+X9/D9)^2/Q9^2)*'Ingreso - Inversión OCULTO'!$M$51 -> 12.51200525 | AA9: 0.02312176573 | AB9: 285 | AC9: 1.164520029 | AD9: 0.0200240365 | AE9: 1.746780043 | AF9: =+C9*H9*F9+X9+Z9+Y9+IF('Ingreso - Inversión OCULTO'!$D$9=1,1,0)*AC9+IF('Ingreso - Inversión OCULTO'!$D$9=2,1,0)*AE9 -> 4548.64201 | AG9: 0.1802855622 | AH9: 2.533755336 | AI9: 0.1201903748 | AJ9: 1.689170224 | AK9: 0.2134453424 | AL9: =((X9+Z9+AC9*IF('Ingreso - Inversión OCULTO'!$D$9=1,1,0)+AE9*IF('Ingreso - Inversión OCULTO'!$D$9=2,1,0)+AH9*IF('Ingreso - Inversión OCULTO'!$C$9=2,1,0)+AJ9*IF('Ingreso - Inversión OCULTO'!$C$9=3,1,0))+Y9)/1000 -> 0.430306495 | AM9: =(+(X9+Z9+AC9*IF('Ingreso - Inversión OCULTO'!$D$9=1,1,0)+AE9*IF('Ingreso - Inversión OCULTO'!$D$9=2,1,0)+AH9*IF('Ingreso - Inversión OCULTO'!$C$9=2,1,0)+AJ9*IF('Ingreso - Inversión OCULTO'!$C$9=3,1,0))*AK9*G9+Y9*8760)/1000 -> 3595.117609 | AN9: =(+(X9+Z9+AC9*IF('Ingreso - Inversión OCULTO'!$D$9=1,1,0)+AE9*IF('Ingreso - Inversión OCULTO'!$D$9=2,1,0)+AH9*IF('Ingreso - Inversión OCULTO'!$C$9=2,1,0)+AJ9*IF('Ingreso - Inversión OCULTO'!$C$9=3,1,0))*AK9*G9+Y9*8760)/1000 -> 3595.117609 | AO9: =((X9+Z9+AC9*IF('Ingreso - Inversión OCULTO'!$D$9=1,1,0)+AE9*IF('Ingreso - Inversión OCULTO'!$D$9=2,1,0)+AH9*IF('Ingreso - Inversión OCULTO'!$C$9=2,1,0)+AJ9*IF('Ingreso - Inversión OCULTO'!$C$9=3,1,0))+Y9)/1000 -> 0.430306495 | AQ9: 5 | AR9: 25 | AS9: 255
A10: 6 | B10: ='Calculo - Consumo'!AM11 -> 18226.98561 | C10: ='Calculo - Consumo'!AI11 -> 18.47289258 | D10: =SUM('Ingreso - Inversión OCULTO'!$F$31:$F$50) -> 9 | E10: 0.3793131355 | F10: =+'Ingreso - General OCULTO'!$D$38 -> 0.78 | G10: 8760 | H10: 296.9463268 | I10: =+'Ingreso - Inversión OCULTO'!$C$8*1000 -> 23000 | J10: =+'Ingreso - Inversión OCULTO'!$D$8*1000 -> 23000 | K10: =+'Ingreso - Inversión OCULTO'!$E$8*1000 -> 220 | L10: =+'Ingreso - Inversión OCULTO'!$C$13 -> 0.017241 | M10: =+'Ingreso - Inversión OCULTO'!$D$13 -> 0.017241 | N10: =+'Ingreso - Inversión OCULTO'!$E$13 -> 0.017241 | O10: =+'Ingreso - Inversión OCULTO'!$C$15 -> 0.95 | P10: =+'Ingreso - Inversión OCULTO'!$D$15 -> 0.95 | Q10: =+'Ingreso - Inversión OCULTO'!$E$15 -> 0.95 | R10: =+'Ingreso - Inversión OCULTO'!$C$14 -> 13.27 | S10: =+'Ingreso - Inversión OCULTO'!$D$14 -> 13.27 | T10: =+'Ingreso - Inversión OCULTO'!$E$14 -> 13.27 | U10: =+'Ingreso - Inversión OCULTO'!$C$10*1000 -> 30000 | V10: =(+'Ingreso - Inversión OCULTO'!$E$10+'Ingreso - Inversión OCULTO'!$F$10)*1000 -> 3130 | W10: =++'Ingreso - Inversión OCULTO'!$D$10*1000 -> 5882.59 | X10: 9.988917135 | Y10: =+'Ingreso - Inversión OCULTO'!$P$2 -> 405 | Z10: =((C10/D10*H10*F10+X10/D10)^2/Q10^2)*'Ingreso - Inversión OCULTO'!$M$51 -> 13.49574634 | AA10: 0.02393664678 | AB10: 285 | AC10: 1.248048871 | AD10: 0.02072974419 | AE10: 1.872073306 | AF10: =+C10*H10*F10+X10+Z10+Y10+IF('Ingreso - Inversión OCULTO'!$D$9=1,1,0)*AC10+IF('Ingreso - Inversión OCULTO'!$D$9=2,1,0)*AE10 -> 4709.013662 | AG10: 0.1866418974 | AH10: 2.715570368 | AI10: 0.1244279316 | AJ10: 1.810380245 | AK10: 0.214508859 | AL10: =((X10+Z10+AC10*IF('Ingreso - Inversión OCULTO'!$D$9=1,1,0)+AE10*IF('Ingreso - Inversión OCULTO'!$D$9=2,1,0)+AH10*IF('Ingreso - Inversión OCULTO'!$C$9=2,1,0)+AJ10*IF('Ingreso - Inversión OCULTO'!$C$9=3,1,0))+Y10)/1000 -> 0.432167117 | AM10: =(+(X10+Z10+AC10*IF('Ingreso - Inversión OCULTO'!$D$9=1,1,0)+AE10*IF('Ingreso - Inversión OCULTO'!$D$9=2,1,0)+AH10*IF('Ingreso - Inversión OCULTO'!$C$9=2,1,0)+AJ10*IF('Ingreso - Inversión OCULTO'!$C$9=3,1,0))*AK10*G10+Y10*8760)/1000 -> 3598.849665 | AN10: =(+(X10+Z10+AC10*IF('Ingreso - Inversión OCULTO'!$D$9=1,1,0)+AE10*IF('Ingreso - Inversión OCULTO'!$D$9=2,1,0)+AH10*IF('Ingreso - Inversión OCULTO'!$C$9=2,1,0)+AJ10*IF('Ingreso - Inversión OCULTO'!$C$9=3,1,0))*AK10*G10+Y10*8760)/1000 -> 3598.849665 | AO10: =((X10+Z10+AC10*IF('Ingreso - Inversión OCULTO'!$D$9=1,1,0)+AE10*IF('Ingreso - Inversión OCULTO'!$D$9=2,1,0)+AH10*IF('Ingreso - Inversión OCULTO'!$C$9=2,1,0)+AJ10*IF('Ingreso - Inversión OCULTO'!$C$9=3,1,0))+Y10)/1000 -> 0.432167117 | AQ10: 6 | AR10: 16 | AS10: 271
A11: 7 | B11: ='Calculo - Consumo'!AM12 -> 18709.13634 | C11: ='Calculo - Consumo'!AI12 -> 18.56895162 | D11: =SUM('Ingreso - Inversión OCULTO'!$F$31:$F$50) -> 9 | E11: 0.3797602719 | F11: =+'Ingreso - General OCULTO'!$D$38 -> 0.78 | G11: 8760 | H11: 302.8675326 | I11: =+'Ingreso - Inversión OCULTO'!$C$8*1000 -> 23000 | J11: =+'Ingreso - Inversión OCULTO'!$D$8*1000 -> 23000 | K11: =+'Ingreso - Inversión OCULTO'!$E$8*1000 -> 220 | L11: =+'Ingreso - Inversión OCULTO'!$C$13 -> 0.017241 | M11: =+'Ingreso - Inversión OCULTO'!$D$13 -> 0.017241 | N11: =+'Ingreso - Inversión OCULTO'!$E$13 -> 0.017241 | O11: =+'Ingreso - Inversión OCULTO'!$C$15 -> 0.95 | P11: =+'Ingreso - Inversión OCULTO'!$D$15 -> 0.95 | Q11: =+'Ingreso - Inversión OCULTO'!$E$15 -> 0.95 | R11: =+'Ingreso - Inversión OCULTO'!$C$14 -> 13.27 | S11: =+'Ingreso - Inversión OCULTO'!$D$14 -> 13.27 | T11: =+'Ingreso - Inversión OCULTO'!$E$14 -> 13.27 | U11: =+'Ingreso - Inversión OCULTO'!$C$10*1000 -> 30000 | V11: =(+'Ingreso - Inversión OCULTO'!$E$10+'Ingreso - Inversión OCULTO'!$F$10)*1000 -> 3130 | W11: =++'Ingreso - Inversión OCULTO'!$D$10*1000 -> 5882.59 | X11: 10.39125337 | Y11: =+'Ingreso - Inversión OCULTO'!$P$2 -> 405 | Z11: =((C11/D11*H11*F11+X11/D11)^2/Q11^2)*'Ingreso - Inversión OCULTO'!$M$51 -> 14.18668927 | AA11: 0.02449145863 | AB11: 285 | AC11: 1.306574781 | AD11: 0.02121022535 | AE11: 1.959862171 | AF11: =+C11*H11*F11+X11+Z11+Y11+IF('Ingreso - Inversión OCULTO'!$D$9=1,1,0)*AC11+IF('Ingreso - Inversión OCULTO'!$D$9=2,1,0)*AE11 -> 4818.205201 | AG11: 0.1909697073 | AH11: 2.842966514 | AI11: 0.1273131382 | AJ11: 1.895311009 | AK11: 0.2148805864 | AL11: =((X11+Z11+AC11*IF('Ingreso - Inversión OCULTO'!$D$9=1,1,0)+AE11*IF('Ingreso - Inversión OCULTO'!$D$9=2,1,0)+AH11*IF('Ingreso - Inversión OCULTO'!$C$9=2,1,0)+AJ11*IF('Ingreso - Inversión OCULTO'!$C$9=3,1,0))+Y11)/1000 -> 0.4334331158 | AM11: =(+(X11+Z11+AC11*IF('Ingreso - Inversión OCULTO'!$D$9=1,1,0)+AE11*IF('Ingreso - Inversión OCULTO'!$D$9=2,1,0)+AH11*IF('Ingreso - Inversión OCULTO'!$C$9=2,1,0)+AJ11*IF('Ingreso - Inversión OCULTO'!$C$9=3,1,0))*AK11*G11+Y11*8760)/1000 -> 3601.321188 | AN11: =(+(X11+Z11+AC11*IF('Ingreso - Inversión OCULTO'!$D$9=1,1,0)+AE11*IF('Ingreso - Inversión OCULTO'!$D$9=2,1,0)+AH11*IF('Ingreso - Inversión OCULTO'!$C$9=2,1,0)+AJ11*IF('Ingreso - Inversión OCULTO'!$C$9=3,1,0))*AK11*G11+Y11*8760)/1000 -> 3601.321188 | AO11: =((X11+Z11+AC11*IF('Ingreso - Inversión OCULTO'!$D$9=1,1,0)+AE11*IF('Ingreso - Inversión OCULTO'!$D$9=2,1,0)+AH11*IF('Ingreso - Inversión OCULTO'!$C$9=2,1,0)+AJ11*IF('Ingreso - Inversión OCULTO'!$C$9=3,1,0))+Y11)/1000 -> 0.4334331158 | AQ11: 7 | AR11: 9 | AS11: 280
A12: 8 | B12: ='Calculo - Consumo'!AM13 -> 19039.29583 | C12: ='Calculo - Consumo'!AI13 -> 18.66551017 | D12: =SUM('Ingreso - Inversión OCULTO'!$F$31:$F$50) -> 9 | E12: 0.3799163306 | F12: =+'Ingreso - General OCULTO'!$D$38 -> 0.78 | G12: 8760 | H12: 306.4918632 | I12: =+'Ingreso - Inversión OCULTO'!$C$8*1000 -> 23000 | J12: =+'Ingreso - Inversión OCULTO'!$D$8*1000 -> 23000 | K12: =+'Ingreso - Inversión OCULTO'!$E$8*1000 -> 220 | L12: =+'Ingreso - Inversión OCULTO'!$C$13 -> 0.017241 | M12: =+'Ingreso - Inversión OCULTO'!$D$13 -> 0.017241 | N12: =+'Ingreso - Inversión OCULTO'!$E$13 -> 0.017241 | O12: =+'Ingreso - Inversión OCULTO'!$C$15 -> 0.95 | P12: =+'Ingreso - Inversión OCULTO'!$D$15 -> 0.95 | Q12: =+'Ingreso - Inversión OCULTO'!$E$15 -> 0.95 | R12: =+'Ingreso - Inversión OCULTO'!$C$14 -> 13.27 | S12: =+'Ingreso - Inversión OCULTO'!$D$14 -> 13.27 | T12: =+'Ingreso - Inversión OCULTO'!$E$14 -> 13.27 | U12: =+'Ingreso - Inversión OCULTO'!$C$10*1000 -> 30000 | V12: =(+'Ingreso - Inversión OCULTO'!$E$10+'Ingreso - Inversión OCULTO'!$F$10)*1000 -> 3130 | W12: =++'Ingreso - Inversión OCULTO'!$D$10*1000 -> 5882.59 | X12: 10.64143984 | Y12: =+'Ingreso - Inversión OCULTO'!$P$2 -> 405 | Z12: =((C12/D12*H12*F12+X12/D12)^2/Q12^2)*'Ingreso - Inversión OCULTO'!$M$51 -> 14.68021087 | AA12: 0.02487956624 | AB12: 285 | AC12: 1.348312554 | AD12: 0.0215463364 | AE12: 2.022468832 | AF12: =+C12*H12*F12+X12+Z12+Y12+IF('Ingreso - Inversión OCULTO'!$D$9=1,1,0)*AC12+IF('Ingreso - Inversión OCULTO'!$D$9=2,1,0)*AE12 -> 4894.589171 | AG12: 0.1939971882 | AH12: 2.933821252 | AI12: 0.1293314588 | AJ12: 1.955880834 | AK12: 0.2150103919 | AL12: =((X12+Z12+AC12*IF('Ingreso - Inversión OCULTO'!$D$9=1,1,0)+AE12*IF('Ingreso - Inversión OCULTO'!$D$9=2,1,0)+AH12*IF('Ingreso - Inversión OCULTO'!$C$9=2,1,0)+AJ12*IF('Ingreso - Inversión OCULTO'!$C$9=3,1,0))+Y12)/1000 -> 0.4343000004 | AM12: =(+(X12+Z12+AC12*IF('Ingreso - Inversión OCULTO'!$D$9=1,1,0)+AE12*IF('Ingreso - Inversión OCULTO'!$D$9=2,1,0)+AH12*IF('Ingreso - Inversión OCULTO'!$C$9=2,1,0)+AJ12*IF('Ingreso - Inversión OCULTO'!$C$9=3,1,0))*AK12*G12+Y12*8760)/1000 -> 3602.986288 | AN12: =(+(X12+Z12+AC12*IF('Ingreso - Inversión OCULTO'!$D$9=1,1,0)+AE12*IF('Ingreso - Inversión OCULTO'!$D$9=2,1,0)+AH12*IF('Ingreso - Inversión OCULTO'!$C$9=2,1,0)+AJ12*IF('Ingreso - Inversión OCULTO'!$C$9=3,1,0))*AK12*G12+Y12*8760)/1000 -> 3602.986288 | AO12: =((X12+Z12+AC12*IF('Ingreso - Inversión OCULTO'!$D$9=1,1,0)+AE12*IF('Ingreso - Inversión OCULTO'!$D$9=2,1,0)+AH12*IF('Ingreso - Inversión OCULTO'!$C$9=2,1,0)+AJ12*IF('Ingreso - Inversión OCULTO'!$C$9=3,1,0))+Y12)/1000 -> 0.4343000004 | AQ12: 8 | AR12: 4 | AS12: 284
A13: 9 | B13: ='Calculo - Consumo'!AM14 -> 19278.19174 | C13: ='Calculo - Consumo'!AI14 -> 18.76257082 | D13: =SUM('Ingreso - Inversión OCULTO'!$F$31:$F$50) -> 9 | E13: 0.3799707979 | F13: =+'Ingreso - General OCULTO'!$D$38 -> 0.78 | G13: 8760 | H13: 308.6879126 | I13: =+'Ingreso - Inversión OCULTO'!$C$8*1000 -> 23000 | J13: =+'Ingreso - Inversión OCULTO'!$D$8*1000 -> 23000 | K13: =+'Ingreso - Inversión OCULTO'!$E$8*1000 -> 220 | L13: =+'Ingreso - Inversión OCULTO'!$C$13 -> 0.017241 | M13: =+'Ingreso - Inversión OCULTO'!$D$13 -> 0.017241 | N13: =+'Ingreso - Inversión OCULTO'!$E$13 -> 0.017241 | O13: =+'Ingreso - Inversión OCULTO'!$C$15 -> 0.95 | P13: =+'Ingreso - Inversión OCULTO'!$D$15 -> 0.95 | Q13: =+'Ingreso - Inversión OCULTO'!$E$15 -> 0.95 | R13: =+'Ingreso - Inversión OCULTO'!$C$14 -> 13.27 | S13: =+'Ingreso - Inversión OCULTO'!$D$14 -> 13.27 | T13: =+'Ingreso - Inversión OCULTO'!$E$14 -> 13.27 | U13: =+'Ingreso - Inversión OCULTO'!$C$10*1000 -> 30000 | V13: =(+'Ingreso - Inversión OCULTO'!$E$10+'Ingreso - Inversión OCULTO'!$F$10)*1000 -> 3130 | W13: =++'Ingreso - Inversión OCULTO'!$D$10*1000 -> 5882.59 | X13: 10.79448043 | Y13: =+'Ingreso - Inversión OCULTO'!$P$2 -> 405 | Z13: =((C13/D13*H13*F13+X13/D13)^2/Q13^2)*'Ingreso - Inversión OCULTO'!$M$51 -> 15.04674784 | AA13: 0.02516363442 | AB13: 285 | AC13: 1.379277664 | AD13: 0.02179234666 | AE13: 2.068916497 | AF13: =+C13*H13*F13+X13+Z13+Y13+IF('Ingreso - Inversión OCULTO'!$D$9=1,1,0)*AC13+IF('Ingreso - Inversión OCULTO'!$D$9=2,1,0)*AE13 -> 4950.497625 | AG13: 0.1962131215 | AH13: 3.001227195 | AI13: 0.1308087477 | AJ13: 2.00081813 | AK13: 0.2150557044 | AL13: =((X13+Z13+AC13*IF('Ingreso - Inversión OCULTO'!$D$9=1,1,0)+AE13*IF('Ingreso - Inversión OCULTO'!$D$9=2,1,0)+AH13*IF('Ingreso - Inversión OCULTO'!$C$9=2,1,0)+AJ13*IF('Ingreso - Inversión OCULTO'!$C$9=3,1,0))+Y13)/1000 -> 0.4349109629 | AM13: =(+(X13+Z13+AC13*IF('Ingreso - Inversión OCULTO'!$D$9=1,1,0)+AE13*IF('Ingreso - Inversión OCULTO'!$D$9=2,1,0)+AH13*IF('Ingreso - Inversión OCULTO'!$C$9=2,1,0)+AJ13*IF('Ingreso - Inversión OCULTO'!$C$9=3,1,0))*AK13*G13+Y13*8760)/1000 -> 3604.148903 | AN13: =(+(X13+Z13+AC13*IF('Ingreso - Inversión OCULTO'!$D$9=1,1,0)+AE13*IF('Ingreso - Inversión OCULTO'!$D$9=2,1,0)+AH13*IF('Ingreso - Inversión OCULTO'!$C$9=2,1,0)+AJ13*IF('Ingreso - Inversión OCULTO'!$C$9=3,1,0))*AK13*G13+Y13*8760)/1000 -> 3604.148903 | AO13: =((X13+Z13+AC13*IF('Ingreso - Inversión OCULTO'!$D$9=1,1,0)+AE13*IF('Ingreso - Inversión OCULTO'!$D$9=2,1,0)+AH13*IF('Ingreso - Inversión OCULTO'!$C$9=2,1,0)+AJ13*IF('Ingreso - Inversión OCULTO'!$C$9=3,1,0))+Y13)/1000 -> 0.4349109629 | AQ13: 9 | AR13: 1 | AS13: 285
A14: 10 | B14: ='Calculo - Consumo'!AM15 -> 19462.37184 | C14: ='Calculo - Consumo'!AI15 -> 18.86013619 | D14: =SUM('Ingreso - Inversión OCULTO'!$F$31:$F$50) -> 9 | E14: 0.3799898079 | F14: =+'Ingreso - General OCULTO'!$D$38 -> 0.78 | G14: 8760 | H14: 310.0094174 | I14: =+'Ingreso - Inversión OCULTO'!$C$8*1000 -> 23000 | J14: =+'Ingreso - Inversión OCULTO'!$D$8*1000 -> 23000 | K14: =+'Ingreso - Inversión OCULTO'!$E$8*1000 -> 220 | L14: =+'Ingreso - Inversión OCULTO'!$C$13 -> 0.017241 | M14: =+'Ingreso - Inversión OCULTO'!$D$13 -> 0.017241 | N14: =+'Ingreso - Inversión OCULTO'!$E$13 -> 0.017241 | O14: =+'Ingreso - Inversión OCULTO'!$C$15 -> 0.95 | P14: =+'Ingreso - Inversión OCULTO'!$D$15 -> 0.95 | Q14: =+'Ingreso - Inversión OCULTO'!$E$15 -> 0.95 | R14: =+'Ingreso - Inversión OCULTO'!$C$14 -> 13.27 | S14: =+'Ingreso - Inversión OCULTO'!$D$14 -> 13.27 | T14: =+'Ingreso - Inversión OCULTO'!$E$14 -> 13.27 | U14: =+'Ingreso - Inversión OCULTO'!$C$10*1000 -> 30000 | V14: =(+'Ingreso - Inversión OCULTO'!$E$10+'Ingreso - Inversión OCULTO'!$F$10)*1000 -> 3130 | W14: =++'Ingreso - Inversión OCULTO'!$D$10*1000 -> 5882.59 | X14: 10.88710144 | Y14: =+'Ingreso - Inversión OCULTO'!$P$2 -> 405 | Z14: =((C14/D14*H14*F14+X14/D14)^2/Q14^2)*'Ingreso - Inversión OCULTO'!$M$51 -> 15.33402744 | AA14: 0.02538388303 | AB14: 285 | AC14: 1.403528013 | AD14: 0.02198308755 | AE14: 2.105292019 | AF14: =+C14*H14*F14+X14+Z14+Y14+IF('Ingreso - Inversión OCULTO'!$D$9=1,1,0)*AC14+IF('Ingreso - Inversión OCULTO'!$D$9=2,1,0)*AE14 -> 4993.84589 | AG14: 0.1979312313 | AH14: 3.054016872 | AI14: 0.1319541542 | AJ14: 2.036011248 | AK14: 0.2150715203 | AL14: =((X14+Z14+AC14*IF('Ingreso - Inversión OCULTO'!$D$9=1,1,0)+AE14*IF('Ingreso - Inversión OCULTO'!$D$9=2,1,0)+AH14*IF('Ingreso - Inversión OCULTO'!$C$9=2,1,0)+AJ14*IF('Ingreso - Inversión OCULTO'!$C$9=3,1,0))+Y14)/1000 -> 0.4353624321 | AM14: =(+(X14+Z14+AC14*IF('Ingreso - Inversión OCULTO'!$D$9=1,1,0)+AE14*IF('Ingreso - Inversión OCULTO'!$D$9=2,1,0)+AH14*IF('Ingreso - Inversión OCULTO'!$C$9=2,1,0)+AJ14*IF('Ingreso - Inversión OCULTO'!$C$9=3,1,0))*AK14*G14+Y14*8760)/1000 -> 3605.003627 | AN14: =(+(X14+Z14+AC14*IF('Ingreso - Inversión OCULTO'!$D$9=1,1,0)+AE14*IF('Ingreso - Inversión OCULTO'!$D$9=2,1,0)+AH14*IF('Ingreso - Inversión OCULTO'!$C$9=2,1,0)+AJ14*IF('Ingreso - Inversión OCULTO'!$C$9=3,1,0))*AK14*G14+Y14*8760)/1000 -> 3605.003627 | AO14: =((X14+Z14+AC14*IF('Ingreso - Inversión OCULTO'!$D$9=1,1,0)+AE14*IF('Ingreso - Inversión OCULTO'!$D$9=2,1,0)+AH14*IF('Ingreso - Inversión OCULTO'!$C$9=2,1,0)+AJ14*IF('Ingreso - Inversión OCULTO'!$C$9=3,1,0))+Y14)/1000 -> 0.4353624321 | AQ14: 10 | AR14: 0 | AS14: 285
A15: 11 | B15: ='Calculo - Consumo'!AM16 -> 19613.83235 | C15: ='Calculo - Consumo'!AI16 -> 18.95820889 | D15: =SUM('Ingreso - Inversión OCULTO'!$F$31:$F$50) -> 9 | E15: 0.3799964428 | F15: =+'Ingreso - General OCULTO'!$D$38 -> 0.78 | G15: 8760 | H15: 310.8003629 | I15: =+'Ingreso - Inversión OCULTO'!$C$8*1000 -> 23000 | J15: =+'Ingreso - Inversión OCULTO'!$D$8*1000 -> 23000 | K15: =+'Ingreso - Inversión OCULTO'!$E$8*1000 -> 220 | L15: =+'Ingreso - Inversión OCULTO'!$C$13 -> 0.017241 | M15: =+'Ingreso - Inversión OCULTO'!$D$13 -> 0.017241 | N15: =+'Ingreso - Inversión OCULTO'!$E$13 -> 0.017241 | O15: =+'Ingreso - Inversión OCULTO'!$C$15 -> 0.95 | P15: =+'Ingreso - Inversión OCULTO'!$D$15 -> 0.95 | Q15: =+'Ingreso - Inversión OCULTO'!$E$15 -> 0.95 | R15: =+'Ingreso - Inversión OCULTO'!$C$14 -> 13.27 | S15: =+'Ingreso - Inversión OCULTO'!$D$14 -> 13.27 | T15: =+'Ingreso - Inversión OCULTO'!$E$14 -> 13.27 | U15: =+'Ingreso - Inversión OCULTO'!$C$10*1000 -> 30000 | V15: =(+'Ingreso - Inversión OCULTO'!$E$10+'Ingreso - Inversión OCULTO'!$F$10)*1000 -> 3130 | W15: =++'Ingreso - Inversión OCULTO'!$D$10*1000 -> 5882.59 | X15: 10.94272612 | Y15: =+'Ingreso - Inversión OCULTO'!$P$2 -> 405 | Z15: =((C15/D15*H15*F15+X15/D15)^2/Q15^2)*'Ingreso - Inversión OCULTO'!$M$51 -> 15.57288246 | AA15: 0.02556545033 | AB15: 285 | AC15: 1.423678294 | AD15: 0.02214032945 | AE15: 2.135517441 | AF15: =+C15*H15*F15+X15+Z15+Y15+IF('Ingreso - Inversión OCULTO'!$D$9=1,1,0)*AC15+IF('Ingreso - Inversión OCULTO'!$D$9=2,1,0)*AE15 -> 5029.581325 | AG15: 0.1993476063 | AH15: 3.097881704 | AI15: 0.1328984042 | AJ15: 2.065254469 | AK15: 0.2150770404 | AL15: =((X15+Z15+AC15*IF('Ingreso - Inversión OCULTO'!$D$9=1,1,0)+AE15*IF('Ingreso - Inversión OCULTO'!$D$9=2,1,0)+AH15*IF('Ingreso - Inversión OCULTO'!$C$9=2,1,0)+AJ15*IF('Ingreso - Inversión OCULTO'!$C$9=3,1,0))+Y15)/1000 -> 0.4357163805 | AM15: =(+(X15+Z15+AC15*IF('Ingreso - Inversión OCULTO'!$D$9=1,1,0)+AE15*IF('Ingreso - Inversión OCULTO'!$D$9=2,1,0)+AH15*IF('Ingreso - Inversión OCULTO'!$C$9=2,1,0)+AJ15*IF('Ingreso - Inversión OCULTO'!$C$9=3,1,0))*AK15*G15+Y15*8760)/1000 -> 3605.671961 | AN15: =(+(X15+Z15+AC15*IF('Ingreso - Inversión OCULTO'!$D$9=1,1,0)+AE15*IF('Ingreso - Inversión OCULTO'!$D$9=2,1,0)+AH15*IF('Ingreso - Inversión OCULTO'!$C$9=2,1,0)+AJ15*IF('Ingreso - Inversión OCULTO'!$C$9=3,1,0))*AK15*G15+Y15*8760)/1000 -> 3605.671961 | AO15: =((X15+Z15+AC15*IF('Ingreso - Inversión OCULTO'!$D$9=1,1,0)+AE15*IF('Ingreso - Inversión OCULTO'!$D$9=2,1,0)+AH15*IF('Ingreso - Inversión OCULTO'!$C$9=2,1,0)+AJ15*IF('Ingreso - Inversión OCULTO'!$C$9=3,1,0))+Y15)/1000 -> 0.4357163805 | AQ15: 11 | AR15: 1 | AS15: 286
A16: 12 | B16: ='Calculo - Consumo'!AM17 -> 19745.81221 | C16: ='Calculo - Consumo'!AI17 -> 19.05679158 | D16: =SUM('Ingreso - Inversión OCULTO'!$F$31:$F$50) -> 9 | E16: 0.3799987585 | F16: =+'Ingreso - General OCULTO'!$D$38 -> 0.78 | G16: 8760 | H16: 311.271196 | I16: =+'Ingreso - Inversión OCULTO'!$C$8*1000 -> 23000 | J16: =+'Ingreso - Inversión OCULTO'!$D$8*1000 -> 23000 | K16: =+'Ingreso - Inversión OCULTO'!$E$8*1000 -> 220 | L16: =+'Ingreso - Inversión OCULTO'!$C$13 -> 0.017241 | M16: =+'Ingreso - Inversión OCULTO'!$D$13 -> 0.017241 | N16: =+'Ingreso - Inversión OCULTO'!$E$13 -> 0.017241 | O16: =+'Ingreso - Inversión OCULTO'!$C$15 -> 0.95 | P16: =+'Ingreso - Inversión OCULTO'!$D$15 -> 0.95 | Q16: =+'Ingreso - Inversión OCULTO'!$E$15 -> 0.95 | R16: =+'Ingreso - Inversión OCULTO'!$C$14 -> 13.27 | S16: =+'Ingreso - Inversión OCULTO'!$D$14 -> 13.27 | T16: =+'Ingreso - Inversión OCULTO'!$E$14 -> 13.27 | U16: =+'Ingreso - Inversión OCULTO'!$C$10*1000 -> 30000 | V16: =(+'Ingreso - Inversión OCULTO'!$E$10+'Ingreso - Inversión OCULTO'!$F$10)*1000 -> 3130 | W16: =++'Ingreso - Inversión OCULTO'!$D$10*1000 -> 5882.59 | X16: 10.97590562 | Y16: =+'Ingreso - Inversión OCULTO'!$P$2 -> 405 | Z16: =((C16/D16*H16*F16+X16/D16)^2/Q16^2)*'Ingreso - Inversión OCULTO'!$M$51 -> 15.78269763 | AA16: 0.02572380495 | AB16: 285 | AC16: 1.441369689 | AD16: 0.02227746857 | AE16: 2.162054534 | AF16: =+C16*H16*F16+X16+Z16+Y16+IF('Ingreso - Inversión OCULTO'!$D$9=1,1,0)*AC16+IF('Ingreso - Inversión OCULTO'!$D$9=2,1,0)*AE16 -> 5060.748297 | AG16: 0.2005829102 | AH16: 3.136394152 | AI16: 0.1337219401 | AJ16: 2.090929435 | AK16: 0.215078967 | AL16: =((X16+Z16+AC16*IF('Ingreso - Inversión OCULTO'!$D$9=1,1,0)+AE16*IF('Ingreso - Inversión OCULTO'!$D$9=2,1,0)+AH16*IF('Ingreso - Inversión OCULTO'!$C$9=2,1,0)+AJ16*IF('Ingreso - Inversión OCULTO'!$C$9=3,1,0))+Y16)/1000 -> 0.4360115872 | AM16: =(+(X16+Z16+AC16*IF('Ingreso - Inversión OCULTO'!$D$9=1,1,0)+AE16*IF('Ingreso - Inversión OCULTO'!$D$9=2,1,0)+AH16*IF('Ingreso - Inversión OCULTO'!$C$9=2,1,0)+AJ16*IF('Ingreso - Inversión OCULTO'!$C$9=3,1,0))*AK16*G16+Y16*8760)/1000 -> 3606.228676 | AN16: =(+(X16+Z16+AC16*IF('Ingreso - Inversión OCULTO'!$D$9=1,1,0)+AE16*IF('Ingreso - Inversión OCULTO'!$D$9=2,1,0)+AH16*IF('Ingreso - Inversión OCULTO'!$C$9=2,1,0)+AJ16*IF('Ingreso - Inversión OCULTO'!$C$9=3,1,0))*AK16*G16+Y16*8760)/1000 -> 3606.228676 | AO16: =((X16+Z16+AC16*IF('Ingreso - Inversión OCULTO'!$D$9=1,1,0)+AE16*IF('Ingreso - Inversión OCULTO'!$D$9=2,1,0)+AH16*IF('Ingreso - Inversión OCULTO'!$C$9=2,1,0)+AJ16*IF('Ingreso - Inversión OCULTO'!$C$9=3,1,0))+Y16)/1000 -> 0.4360115872 | AQ16: 12 | AR16: 4 | AS16: 290
A17: 13 | B17: ='Calculo - Consumo'!AM18 -> 19866.28011 | C17: ='Calculo - Consumo'!AI18 -> 19.1558869 | D17: =SUM('Ingreso - Inversión OCULTO'!$F$31:$F$50) -> 9 | E17: 0.3799995667 | F17: =+'Ingreso - General OCULTO'!$D$38 -> 0.78 | G17: 8760 | H17: 311.5495175 | I17: =+'Ingreso - Inversión OCULTO'!$C$8*1000 -> 23000 | J17: =+'Ingreso - Inversión OCULTO'!$D$8*1000 -> 23000 | K17: =+'Ingreso - Inversión OCULTO'!$E$8*1000 -> 220 | L17: =+'Ingreso - Inversión OCULTO'!$C$13 -> 0.017241 | M17: =+'Ingreso - Inversión OCULTO'!$D$13 -> 0.017241 | N17: =+'Ingreso - Inversión OCULTO'!$E$13 -> 0.017241 | O17: =+'Ingreso - Inversión OCULTO'!$C$15 -> 0.95 | P17: =+'Ingreso - Inversión OCULTO'!$D$15 -> 0.95 | Q17: =+'Ingreso - Inversión OCULTO'!$E$15 -> 0.95 | R17: =+'Ingreso - Inversión OCULTO'!$C$14 -> 13.27 | S17: =+'Ingreso - Inversión OCULTO'!$D$14 -> 13.27 | T17: =+'Ingreso - Inversión OCULTO'!$E$14 -> 13.27 | U17: =+'Ingreso - Inversión OCULTO'!$C$10*1000 -> 30000 | V17: =(+'Ingreso - Inversión OCULTO'!$E$10+'Ingreso - Inversión OCULTO'!$F$10)*1000 -> 3130 | W17: =++'Ingreso - Inversión OCULTO'!$D$10*1000 -> 5882.59 | X17: 10.99554249 | Y17: =+'Ingreso - Inversión OCULTO'!$P$2 -> 405 | Z17: =((C17/D17*H17*F17+X17/D17)^2/Q17^2)*'Ingreso - Inversión OCULTO'!$M$51 -> 15.97547161 | AA17: 0.02586837896 | AB17: 285 | AC17: 1.457616912 | AD17: 0.02240267334 | AE17: 2.186425368 | AF17: =+C17*H17*F17+X17+Z17+Y17+IF('Ingreso - Inversión OCULTO'!$D$9=1,1,0)*AC17+IF('Ingreso - Inversión OCULTO'!$D$9=2,1,0)*AE17 -> 5089.203149 | AG17: 0.2017107191 | AH17: 3.171763044 | AI17: 0.1344738127 | AJ17: 2.114508696 | AK17: 0.2150796395 | AL17: =((X17+Z17+AC17*IF('Ingreso - Inversión OCULTO'!$D$9=1,1,0)+AE17*IF('Ingreso - Inversión OCULTO'!$D$9=2,1,0)+AH17*IF('Ingreso - Inversión OCULTO'!$C$9=2,1,0)+AJ17*IF('Ingreso - Inversión OCULTO'!$C$9=3,1,0))+Y17)/1000 -> 0.4362719482 | AM17: =(+(X17+Z17+AC17*IF('Ingreso - Inversión OCULTO'!$D$9=1,1,0)+AE17*IF('Ingreso - Inversión OCULTO'!$D$9=2,1,0)+AH17*IF('Ingreso - Inversión OCULTO'!$C$9=2,1,0)+AJ17*IF('Ingreso - Inversión OCULTO'!$C$9=3,1,0))*AK17*G17+Y17*8760)/1000 -> 3606.719404 | AN17: =(+(X17+Z17+AC17*IF('Ingreso - Inversión OCULTO'!$D$9=1,1,0)+AE17*IF('Ingreso - Inversión OCULTO'!$D$9=2,1,0)+AH17*IF('Ingreso - Inversión OCULTO'!$C$9=2,1,0)+AJ17*IF('Ingreso - Inversión OCULTO'!$C$9=3,1,0))*AK17*G17+Y17*8760)/1000 -> 3606.719404 | AO17: =((X17+Z17+AC17*IF('Ingreso - Inversión OCULTO'!$D$9=1,1,0)+AE17*IF('Ingreso - Inversión OCULTO'!$D$9=2,1,0)+AH17*IF('Ingreso - Inversión OCULTO'!$C$9=2,1,0)+AJ17*IF('Ingreso - Inversión OCULTO'!$C$9=3,1,0))+Y17)/1000 -> 0.4362719482 | AQ17: 13 | AR17: 9 | AS17: 299
A18: 14 | B18: ='Calculo - Consumo'!AM19 -> 19980.03297 | C18: ='Calculo - Consumo'!AI19 -> 19.25549751 | D18: =SUM('Ingreso - Inversión OCULTO'!$F$31:$F$50) -> 9 | E18: 0.3799998488 | F18: =+'Ingreso - General OCULTO'!$D$38 -> 0.78 | G18: 8760 | H18: 311.7122906 | I18: =+'Ingreso - Inversión OCULTO'!$C$8*1000 -> 23000 | J18: =+'Ingreso - Inversión OCULTO'!$D$8*1000 -> 23000 | K18: =+'Ingreso - Inversión OCULTO'!$E$8*1000 -> 220 | L18: =+'Ingreso - Inversión OCULTO'!$C$13 -> 0.017241 | M18: =+'Ingreso - Inversión OCULTO'!$D$13 -> 0.017241 | N18: =+'Ingreso - Inversión OCULTO'!$E$13 -> 0.017241 | O18: =+'Ingreso - Inversión OCULTO'!$C$15 -> 0.95 | P18: =+'Ingreso - Inversión OCULTO'!$D$15 -> 0.95 | Q18: =+'Ingreso - Inversión OCULTO'!$E$15 -> 0.95 | R18: =+'Ingreso - Inversión OCULTO'!$C$14 -> 13.27 | S18: =+'Ingreso - Inversión OCULTO'!$D$14 -> 13.27 | T18: =+'Ingreso - Inversión OCULTO'!$E$14 -> 13.27 | U18: =+'Ingreso - Inversión OCULTO'!$C$10*1000 -> 30000 | V18: =(+'Ingreso - Inversión OCULTO'!$E$10+'Ingreso - Inversión OCULTO'!$F$10)*1000 -> 3130 | W18: =++'Ingreso - Inversión OCULTO'!$D$10*1000 -> 5882.59 | X18: 11.00703503 | Y18: =+'Ingreso - Inversión OCULTO'!$P$2 -> 405 | Z18: =((C18/D18*H18*F18+X18/D18)^2/Q18^2)*'Ingreso - Inversión OCULTO'!$M$51 -> 16.15856576 | AA18: 0.02600489339 | AB18: 285 | AC18: 1.473041982 | AD18: 0.0225208983 | AE18: 2.209562973 | AF18: =+C18*H18*F18+X18+Z18+Y18+IF('Ingreso - Inversión OCULTO'!$D$9=1,1,0)*AC18+IF('Ingreso - Inversión OCULTO'!$D$9=2,1,0)*AE18 -> 5116.071847 | AG18: 0.2027756608 | AH18: 3.205342411 | AI18: 0.1351837738 | AJ18: 2.136894941 | AK18: 0.2150798742 | AL18: =((X18+Z18+AC18*IF('Ingreso - Inversión OCULTO'!$D$9=1,1,0)+AE18*IF('Ingreso - Inversión OCULTO'!$D$9=2,1,0)+AH18*IF('Ingreso - Inversión OCULTO'!$C$9=2,1,0)+AJ18*IF('Ingreso - Inversión OCULTO'!$C$9=3,1,0))+Y18)/1000 -> 0.4365120587 | AM18: =(+(X18+Z18+AC18*IF('Ingreso - Inversión OCULTO'!$D$9=1,1,0)+AE18*IF('Ingreso - Inversión OCULTO'!$D$9=2,1,0)+AH18*IF('Ingreso - Inversión OCULTO'!$C$9=2,1,0)+AJ18*IF('Ingreso - Inversión OCULTO'!$C$9=3,1,0))*AK18*G18+Y18*8760)/1000 -> 3607.17186 | AN18: =(+(X18+Z18+AC18*IF('Ingreso - Inversión OCULTO'!$D$9=1,1,0)+AE18*IF('Ingreso - Inversión OCULTO'!$D$9=2,1,0)+AH18*IF('Ingreso - Inversión OCULTO'!$C$9=2,1,0)+AJ18*IF('Ingreso - Inversión OCULTO'!$C$9=3,1,0))*AK18*G18+Y18*8760)/1000 -> 3607.17186 | AO18: =((X18+Z18+AC18*IF('Ingreso - Inversión OCULTO'!$D$9=1,1,0)+AE18*IF('Ingreso - Inversión OCULTO'!$D$9=2,1,0)+AH18*IF('Ingreso - Inversión OCULTO'!$C$9=2,1,0)+AJ18*IF('Ingreso - Inversión OCULTO'!$C$9=3,1,0))+Y18)/1000 -> 0.4365120587 | AQ18: 14 | AR18: 16 | AS18: 315
A19: 15 | B19: ='Calculo - Consumo'!AM20 -> 20089.95888 | C19: ='Calculo - Consumo'!AI20 -> 19.3556261 | D19: =SUM('Ingreso - Inversión OCULTO'!$F$31:$F$50) -> 9 | E19: 0.3799999472 | F19: =+'Ingreso - General OCULTO'!$D$38 -> 0.78 | G19: 8760 | H19: 311.8057943 | I19: =+'Ingreso - Inversión OCULTO'!$C$8*1000 -> 23000 | J19: =+'Ingreso - Inversión OCULTO'!$D$8*1000 -> 23000 | K19: =+'Ingreso - Inversión OCULTO'!$E$8*1000 -> 220 | L19: =+'Ingreso - Inversión OCULTO'!$C$13 -> 0.017241 | M19: =+'Ingreso - Inversión OCULTO'!$D$13 -> 0.017241 | N19: =+'Ingreso - Inversión OCULTO'!$E$13 -> 0.017241 | O19: =+'Ingreso - Inversión OCULTO'!$C$15 -> 0.95 | P19: =+'Ingreso - Inversión OCULTO'!$D$15 -> 0.95 | Q19: =+'Ingreso - Inversión OCULTO'!$E$15 -> 0.95 | R19: =+'Ingreso - Inversión OCULTO'!$C$14 -> 13.27 | S19: =+'Ingreso - Inversión OCULTO'!$D$14 -> 13.27 | T19: =+'Ingreso - Inversión OCULTO'!$E$14 -> 13.27 | U19: =+'Ingreso - Inversión OCULTO'!$C$10*1000 -> 30000 | V19: =(+'Ingreso - Inversión OCULTO'!$E$10+'Ingreso - Inversión OCULTO'!$F$10)*1000 -> 3130 | W19: =++'Ingreso - Inversión OCULTO'!$D$10*1000 -> 5882.59 | X19: 11.01363953 | Y19: =+'Ingreso - Inversión OCULTO'!$P$2 -> 405 | Z19: =((C19/D19*H19*F19+X19/D19)^2/Q19^2)*'Ingreso - Inversión OCULTO'!$M$51 -> 16.33647484 | AA19: 0.02613680794 | AB19: 285 | AC19: 1.488024434 | AD19: 0.02263513965 | AE19: 2.232036651 | AF19: =+C19*H19*F19+X19+Z19+Y19+IF('Ingreso - Inversión OCULTO'!$D$9=1,1,0)*AC19+IF('Ingreso - Inversión OCULTO'!$D$9=2,1,0)*AE19 -> 5142.035319 | AG19: 0.2038047237 | AH19: 3.237958445 | AI19: 0.1358698158 | AJ19: 2.158638963 | AK19: 0.2150799561 | AL19: =((X19+Z19+AC19*IF('Ingreso - Inversión OCULTO'!$D$9=1,1,0)+AE19*IF('Ingreso - Inversión OCULTO'!$D$9=2,1,0)+AH19*IF('Ingreso - Inversión OCULTO'!$C$9=2,1,0)+AJ19*IF('Ingreso - Inversión OCULTO'!$C$9=3,1,0))+Y19)/1000 -> 0.43674079 | AM19: =(+(X19+Z19+AC19*IF('Ingreso - Inversión OCULTO'!$D$9=1,1,0)+AE19*IF('Ingreso - Inversión OCULTO'!$D$9=2,1,0)+AH19*IF('Ingreso - Inversión OCULTO'!$C$9=2,1,0)+AJ19*IF('Ingreso - Inversión OCULTO'!$C$9=3,1,0))*AK19*G19+Y19*8760)/1000 -> 3607.602836 | AN19: =(+(X19+Z19+AC19*IF('Ingreso - Inversión OCULTO'!$D$9=1,1,0)+AE19*IF('Ingreso - Inversión OCULTO'!$D$9=2,1,0)+AH19*IF('Ingreso - Inversión OCULTO'!$C$9=2,1,0)+AJ19*IF('Ingreso - Inversión OCULTO'!$C$9=3,1,0))*AK19*G19+Y19*8760)/1000 -> 3607.602836 | AO19: =((X19+Z19+AC19*IF('Ingreso - Inversión OCULTO'!$D$9=1,1,0)+AE19*IF('Ingreso - Inversión OCULTO'!$D$9=2,1,0)+AH19*IF('Ingreso - Inversión OCULTO'!$C$9=2,1,0)+AJ19*IF('Ingreso - Inversión OCULTO'!$C$9=3,1,0))+Y19)/1000 -> 0.43674079 | AQ19: 15 | AR19: 25 | AS19: 340
A20: 16 | B20: ='Calculo - Consumo'!AM21 -> 20197.79713 | C20: ='Calculo - Consumo'!AI21 -> 19.45627535 | D20: =SUM('Ingreso - Inversión OCULTO'!$F$31:$F$50) -> 9 | E20: 0.3799999816 | F20: =+'Ingreso - General OCULTO'!$D$38 -> 0.78 | G20: 8760 | H20: 311.8578067 | I20: =+'Ingreso - Inversión OCULTO'!$C$8*1000 -> 23000 | J20: =+'Ingreso - Inversión OCULTO'!$D$8*1000 -> 23000 | K20: =+'Ingreso - Inversión OCULTO'!$E$8*1000 -> 220 | L20: =+'Ingreso - Inversión OCULTO'!$C$13 -> 0.017241 | M20: =+'Ingreso - Inversión OCULTO'!$D$13 -> 0.017241 | N20: =+'Ingreso - Inversión OCULTO'!$E$13 -> 0.017241 | O20: =+'Ingreso - Inversión OCULTO'!$C$15 -> 0.95 | P20: =+'Ingreso - Inversión OCULTO'!$D$15 -> 0.95 | Q20: =+'Ingreso - Inversión OCULTO'!$E$15 -> 0.95 | R20: =+'Ingreso - Inversión OCULTO'!$C$14 -> 13.27 | S20: =+'Ingreso - Inversión OCULTO'!$D$14 -> 13.27 | T20: =+'Ingreso - Inversión OCULTO'!$E$14 -> 13.27 | U20: =+'Ingreso - Inversión OCULTO'!$C$10*1000 -> 30000 | V20: =(+'Ingreso - Inversión OCULTO'!$E$10+'Ingreso - Inversión OCULTO'!$F$10)*1000 -> 3130 | W20: =++'Ingreso - Inversión OCULTO'!$D$10*1000 -> 5882.59 | X20: 11.01731421 | Y20: =+'Ingreso - Inversión OCULTO'!$P$2 -> 405 | Z20: =((C20/D20*H20*F20+X20/D20)^2/Q20^2)*'Ingreso - Inversión OCULTO'!$M$51 -> 16.51193742 | AA20: 0.0262662116 | AB20: 285 | AC20: 1.502795363 | AD20: 0.0227472065 | AE20: 2.254193045 | AF20: =+C20*H20*F20+X20+Z20+Y20+IF('Ingreso - Inversión OCULTO'!$D$9=1,1,0)*AC20+IF('Ingreso - Inversión OCULTO'!$D$9=2,1,0)*AE20 -> 5167.504704 | AG20: 0.2048142036 | AH20: 3.270114214 | AI20: 0.1365428024 | AJ20: 2.180076143 | AK20: 0.2150799847 | AL20: =((X20+Z20+AC20*IF('Ingreso - Inversión OCULTO'!$D$9=1,1,0)+AE20*IF('Ingreso - Inversión OCULTO'!$D$9=2,1,0)+AH20*IF('Ingreso - Inversión OCULTO'!$C$9=2,1,0)+AJ20*IF('Ingreso - Inversión OCULTO'!$C$9=3,1,0))+Y20)/1000 -> 0.4369635208 | AM20: =(+(X20+Z20+AC20*IF('Ingreso - Inversión OCULTO'!$D$9=1,1,0)+AE20*IF('Ingreso - Inversión OCULTO'!$D$9=2,1,0)+AH20*IF('Ingreso - Inversión OCULTO'!$C$9=2,1,0)+AJ20*IF('Ingreso - Inversión OCULTO'!$C$9=3,1,0))*AK20*G20+Y20*8760)/1000 -> 3608.022491 | AN20: =(+(X20+Z20+AC20*IF('Ingreso - Inversión OCULTO'!$D$9=1,1,0)+AE20*IF('Ingreso - Inversión OCULTO'!$D$9=2,1,0)+AH20*IF('Ingreso - Inversión OCULTO'!$C$9=2,1,0)+AJ20*IF('Ingreso - Inversión OCULTO'!$C$9=3,1,0))*AK20*G20+Y20*8760)/1000 -> 3608.022491 | AO20: =((X20+Z20+AC20*IF('Ingreso - Inversión OCULTO'!$D$9=1,1,0)+AE20*IF('Ingreso - Inversión OCULTO'!$D$9=2,1,0)+AH20*IF('Ingreso - Inversión OCULTO'!$C$9=2,1,0)+AJ20*IF('Ingreso - Inversión OCULTO'!$C$9=3,1,0))+Y20)/1000 -> 0.4369635208 | AQ20: 16 | AR20: 36 | AS20: 376
A21: 17 | B21: ='Calculo - Consumo'!AM22 -> 20304.59563 | C21: ='Calculo - Consumo'!AI22 -> 19.55744798 | D21: =SUM('Ingreso - Inversión OCULTO'!$F$31:$F$50) -> 9 | E21: 0.3799999936 | F21: =+'Ingreso - General OCULTO'!$D$38 -> 0.78 | G21: 8760 | H21: 311.884984 | I21: =+'Ingreso - Inversión OCULTO'!$C$8*1000 -> 23000 | J21: =+'Ingreso - Inversión OCULTO'!$D$8*1000 -> 23000 | K21: =+'Ingreso - Inversión OCULTO'!$E$8*1000 -> 220 | L21: =+'Ingreso - Inversión OCULTO'!$C$13 -> 0.017241 | M21: =+'Ingreso - Inversión OCULTO'!$D$13 -> 0.017241 | N21: =+'Ingreso - Inversión OCULTO'!$E$13 -> 0.017241 | O21: =+'Ingreso - Inversión OCULTO'!$C$15 -> 0.95 | P21: =+'Ingreso - Inversión OCULTO'!$D$15 -> 0.95 | Q21: =+'Ingreso - Inversión OCULTO'!$E$15 -> 0.95 | R21: =+'Ingreso - Inversión OCULTO'!$C$14 -> 13.27 | S21: =+'Ingreso - Inversión OCULTO'!$D$14 -> 13.27 | T21: =+'Ingreso - Inversión OCULTO'!$E$14 -> 13.27 | U21: =+'Ingreso - Inversión OCULTO'!$C$10*1000 -> 30000 | V21: =(+'Ingreso - Inversión OCULTO'!$E$10+'Ingreso - Inversión OCULTO'!$F$10)*1000 -> 3130 | W21: =++'Ingreso - Inversión OCULTO'!$D$10*1000 -> 5882.59 | X21: 11.01923453 | Y21: =+'Ingreso - Inversión OCULTO'!$P$2 -> 405 | Z21: =((C21/D21*H21*F21+X21/D21)^2/Q21^2)*'Ingreso - Inversión OCULTO'!$M$51 -> 16.68662184 | AA21: 0.02639436486 | AB21: 285 | AC21: 1.517495462 | AD21: 0.02285819049 | AE21: 2.276243193 | AF21: =+C21*H21*F21+X21+Z21+Y21+IF('Ingreso - Inversión OCULTO'!$D$9=1,1,0)*AC21+IF('Ingreso - Inversión OCULTO'!$D$9=2,1,0)*AE21 -> 5192.728093 | AG21: 0.2058139333 | AH21: 3.302115993 | AI21: 0.1372092889 | AJ21: 2.201410662 | AK21: 0.2150799947 | AL21: =((X21+Z21+AC21*IF('Ingreso - Inversión OCULTO'!$D$9=1,1,0)+AE21*IF('Ingreso - Inversión OCULTO'!$D$9=2,1,0)+AH21*IF('Ingreso - Inversión OCULTO'!$C$9=2,1,0)+AJ21*IF('Ingreso - Inversión OCULTO'!$C$9=3,1,0))+Y21)/1000 -> 0.4371835102 | AM21: =(+(X21+Z21+AC21*IF('Ingreso - Inversión OCULTO'!$D$9=1,1,0)+AE21*IF('Ingreso - Inversión OCULTO'!$D$9=2,1,0)+AH21*IF('Ingreso - Inversión OCULTO'!$C$9=2,1,0)+AJ21*IF('Ingreso - Inversión OCULTO'!$C$9=3,1,0))*AK21*G21+Y21*8760)/1000 -> 3608.436976 | AN21: =(+(X21+Z21+AC21*IF('Ingreso - Inversión OCULTO'!$D$9=1,1,0)+AE21*IF('Ingreso - Inversión OCULTO'!$D$9=2,1,0)+AH21*IF('Ingreso - Inversión OCULTO'!$C$9=2,1,0)+AJ21*IF('Ingreso - Inversión OCULTO'!$C$9=3,1,0))*AK21*G21+Y21*8760)/1000 -> 3608.436976 | AO21: =((X21+Z21+AC21*IF('Ingreso - Inversión OCULTO'!$D$9=1,1,0)+AE21*IF('Ingreso - Inversión OCULTO'!$D$9=2,1,0)+AH21*IF('Ingreso - Inversión OCULTO'!$C$9=2,1,0)+AJ21*IF('Ingreso - Inversión OCULTO'!$C$9=3,1,0))+Y21)/1000 -> 0.4371835102 | AQ21: 17 | AR21: 49 | AS21: 425
A22: 18 | B22: ='Calculo - Consumo'!AM23 -> 20410.9862 | C22: ='Calculo - Consumo'!AI23 -> 19.65914671 | D22: =SUM('Ingreso - Inversión OCULTO'!$F$31:$F$50) -> 9 | E22: 0.3799999978 | F22: =+'Ingreso - General OCULTO'!$D$38 -> 0.78 | G22: 8760 | H22: 311.8973072 | I22: =+'Ingreso - Inversión OCULTO'!$C$8*1000 -> 23000 | J22: =+'Ingreso - Inversión OCULTO'!$D$8*1000 -> 23000 | K22: =+'Ingreso - Inversión OCULTO'!$E$8*1000 -> 220 | L22: =+'Ingreso - Inversión OCULTO'!$C$13 -> 0.017241 | M22: =+'Ingreso - Inversión OCULTO'!$D$13 -> 0.017241 | N22: =+'Ingreso - Inversión OCULTO'!$E$13 -> 0.017241 | O22: =+'Ingreso - Inversión OCULTO'!$C$15 -> 0.95 | P22: =+'Ingreso - Inversión OCULTO'!$D$15 -> 0.95 | Q22: =+'Ingreso - Inversión OCULTO'!$E$15 -> 0.95 | R22: =+'Ingreso - Inversión OCULTO'!$C$14 -> 13.27 | S22: =+'Ingreso - Inversión OCULTO'!$D$14 -> 13.27 | T22: =+'Ingreso - Inversión OCULTO'!$E$14 -> 13.27 | U22: =+'Ingreso - Inversión OCULTO'!$C$10*1000 -> 30000 | V22: =(+'Ingreso - Inversión OCULTO'!$E$10+'Ingreso - Inversión OCULTO'!$F$10)*1000 -> 3130 | W22: =++'Ingreso - Inversión OCULTO'!$D$10*1000 -> 5882.59 | X22: 11.02010533 | Y22: =+'Ingreso - Inversión OCULTO'!$P$2 -> 405 | Z22: =((C22/D22*H22*F22+X22/D22)^2/Q22^2)*'Ingreso - Inversión OCULTO'!$M$51 -> 16.86154628 | AA22: 0.02652202842 | AB22: 285 | AC22: 1.532210526 | AD22: 0.02296875038 | AE22: 2.29831579 | AF22: =+C22*H22*F22+X22+Z22+Y22+IF('Ingreso - Inversión OCULTO'!$D$9=1,1,0)*AC22+IF('Ingreso - Inversión OCULTO'!$D$9=2,1,0)*AE22 -> 5217.855205 | AG22: 0.2068098472 | AH22: 3.334150556 | AI22: 0.1378732315 | AJ22: 2.222767037 | AK22: 0.2150799981 | AL22: =((X22+Z22+AC22*IF('Ingreso - Inversión OCULTO'!$D$9=1,1,0)+AE22*IF('Ingreso - Inversión OCULTO'!$D$9=2,1,0)+AH22*IF('Ingreso - Inversión OCULTO'!$C$9=2,1,0)+AJ22*IF('Ingreso - Inversión OCULTO'!$C$9=3,1,0))+Y22)/1000 -> 0.4374027344 | AM22: =(+(X22+Z22+AC22*IF('Ingreso - Inversión OCULTO'!$D$9=1,1,0)+AE22*IF('Ingreso - Inversión OCULTO'!$D$9=2,1,0)+AH22*IF('Ingreso - Inversión OCULTO'!$C$9=2,1,0)+AJ22*IF('Ingreso - Inversión OCULTO'!$C$9=3,1,0))*AK22*G22+Y22*8760)/1000 -> 3608.850017 | AN22: =(+(X22+Z22+AC22*IF('Ingreso - Inversión OCULTO'!$D$9=1,1,0)+AE22*IF('Ingreso - Inversión OCULTO'!$D$9=2,1,0)+AH22*IF('Ingreso - Inversión OCULTO'!$C$9=2,1,0)+AJ22*IF('Ingreso - Inversión OCULTO'!$C$9=3,1,0))*AK22*G22+Y22*8760)/1000 -> 3608.850017 | AO22: =((X22+Z22+AC22*IF('Ingreso - Inversión OCULTO'!$D$9=1,1,0)+AE22*IF('Ingreso - Inversión OCULTO'!$D$9=2,1,0)+AH22*IF('Ingreso - Inversión OCULTO'!$C$9=2,1,0)+AJ22*IF('Ingreso - Inversión OCULTO'!$C$9=3,1,0))+Y22)/1000 -> 0.4374027344 | AQ22: 18 | AR22: 64 | AS22: 489
A23: 19 | B23: ='Calculo - Consumo'!AM24 -> 20517.35023 | C23: ='Calculo - Consumo'!AI24 -> 19.76137428 | D23: =SUM('Ingreso - Inversión OCULTO'!$F$31:$F$50) -> 9 | E23: 0.3799999992 | F23: =+'Ingreso - General OCULTO'!$D$38 -> 0.78 | G23: 8760 | H23: 311.9007553 | I23: =+'Ingreso - Inversión OCULTO'!$C$8*1000 -> 23000 | J23: =+'Ingreso - Inversión OCULTO'!$D$8*1000 -> 23000 | K23: =+'Ingreso - Inversión OCULTO'!$E$8*1000 -> 220 | L23: =+'Ingreso - Inversión OCULTO'!$C$13 -> 0.017241 | M23: =+'Ingreso - Inversión OCULTO'!$D$13 -> 0.017241 | N23: =+'Ingreso - Inversión OCULTO'!$E$13 -> 0.017241 | O23: =+'Ingreso - Inversión OCULTO'!$C$15 -> 0.95 | P23: =+'Ingreso - Inversión OCULTO'!$D$15 -> 0.95 | Q23: =+'Ingreso - Inversión OCULTO'!$E$15 -> 0.95 | R23: =+'Ingreso - Inversión OCULTO'!$C$14 -> 13.27 | S23: =+'Ingreso - Inversión OCULTO'!$D$14 -> 13.27 | T23: =+'Ingreso - Inversión OCULTO'!$E$14 -> 13.27 | U23: =+'Ingreso - Inversión OCULTO'!$C$10*1000 -> 30000 | V23: =(+'Ingreso - Inversión OCULTO'!$E$10+'Ingreso - Inversión OCULTO'!$F$10)*1000 -> 3130 | W23: =++'Ingreso - Inversión OCULTO'!$D$10*1000 -> 5882.59 | X23: 11.020349 | Y23: =+'Ingreso - Inversión OCULTO'!$P$2 -> 405 | Z23: =((C23/D23*H23*F23+X23/D23)^2/Q23^2)*'Ingreso - Inversión OCULTO'!$M$51 -> 17.03733463 | AA23: 0.02664966174 | AB23: 285 | AC23: 1.546993081 | AD23: 0.02307928407 | AE23: 2.320489622 | AF23: =+C23*H23*F23+X23+Z23+Y23+IF('Ingreso - Inversión OCULTO'!$D$9=1,1,0)*AC23+IF('Ingreso - Inversión OCULTO'!$D$9=2,1,0)*AE23 -> 5242.976471 | AG23: 0.2078055293 | AH23: 3.36633225 | AI23: 0.1385370195 | AJ23: 2.2442215 | AK23: 0.2150799993 | AL23: =((X23+Z23+AC23*IF('Ingreso - Inversión OCULTO'!$D$9=1,1,0)+AE23*IF('Ingreso - Inversión OCULTO'!$D$9=2,1,0)+AH23*IF('Ingreso - Inversión OCULTO'!$C$9=2,1,0)+AJ23*IF('Ingreso - Inversión OCULTO'!$C$9=3,1,0))+Y23)/1000 -> 0.4376223948 | AM23: =(+(X23+Z23+AC23*IF('Ingreso - Inversión OCULTO'!$D$9=1,1,0)+AE23*IF('Ingreso - Inversión OCULTO'!$D$9=2,1,0)+AH23*IF('Ingreso - Inversión OCULTO'!$C$9=2,1,0)+AJ23*IF('Ingreso - Inversión OCULTO'!$C$9=3,1,0))*AK23*G23+Y23*8760)/1000 -> 3609.26388 | AN23: =(+(X23+Z23+AC23*IF('Ingreso - Inversión OCULTO'!$D$9=1,1,0)+AE23*IF('Ingreso - Inversión OCULTO'!$D$9=2,1,0)+AH23*IF('Ingreso - Inversión OCULTO'!$C$9=2,1,0)+AJ23*IF('Ingreso - Inversión OCULTO'!$C$9=3,1,0))*AK23*G23+Y23*8760)/1000 -> 3609.26388 | AO23: =((X23+Z23+AC23*IF('Ingreso - Inversión OCULTO'!$D$9=1,1,0)+AE23*IF('Ingreso - Inversión OCULTO'!$D$9=2,1,0)+AH23*IF('Ingreso - Inversión OCULTO'!$C$9=2,1,0)+AJ23*IF('Ingreso - Inversión OCULTO'!$C$9=3,1,0))+Y23)/1000 -> 0.4376223948 | AQ23: 19 | AR23: 81 | AS23: 570
A24: 20 | B24: ='Calculo - Consumo'!AM25 -> 20623.91841 | C24: ='Calculo - Consumo'!AI25 -> 19.86413342 | D24: =SUM('Ingreso - Inversión OCULTO'!$F$31:$F$50) -> 9 | E24: 0.3799999997 | F24: =+'Ingreso - General OCULTO'!$D$38 -> 0.78 | G24: 8760 | H24: 311.8989091 | I24: =+'Ingreso - Inversión OCULTO'!$C$8*1000 -> 23000 | J24: =+'Ingreso - Inversión OCULTO'!$D$8*1000 -> 23000 | K24: =+'Ingreso - Inversión OCULTO'!$E$8*1000 -> 220 | L24: =+'Ingreso - Inversión OCULTO'!$C$13 -> 0.017241 | M24: =+'Ingreso - Inversión OCULTO'!$D$13 -> 0.017241 | N24: =+'Ingreso - Inversión OCULTO'!$E$13 -> 0.017241 | O24: =+'Ingreso - Inversión OCULTO'!$C$15 -> 0.95 | P24: =+'Ingreso - Inversión OCULTO'!$D$15 -> 0.95 | Q24: =+'Ingreso - Inversión OCULTO'!$E$15 -> 0.95 | R24: =+'Ingreso - Inversión OCULTO'!$C$14 -> 13.27 | S24: =+'Ingreso - Inversión OCULTO'!$D$14 -> 13.27 | T24: =+'Ingreso - Inversión OCULTO'!$E$14 -> 13.27 | U24: =+'Ingreso - Inversión OCULTO'!$C$10*1000 -> 30000 | V24: =(+'Ingreso - Inversión OCULTO'!$E$10+'Ingreso - Inversión OCULTO'!$F$10)*1000 -> 3130 | W24: =++'Ingreso - Inversión OCULTO'!$D$10*1000 -> 5882.59 | X24: 11.02021854 | Y24: =+'Ingreso - Inversión OCULTO'!$P$2 -> 405 | Z24: =((C24/D24*H24*F24+X24/D24)^2/Q24^2)*'Ingreso - Inversión OCULTO'!$M$51 -> 17.21437202 | AA24: 0.02677754282 | AB24: 285 | AC24: 1.561875507 | AD24: 0.02319003233 | AE24: 2.34281326 | AF24: =+C24*H24*F24+X24+Z24+Y24+IF('Ingreso - Inversión OCULTO'!$D$9=1,1,0)*AC24+IF('Ingreso - Inversión OCULTO'!$D$9=2,1,0)*AE24 -> 5268.146609 | AG24: 0.2088031485 | AH24: 3.398731568 | AI24: 0.139202099 | AJ24: 2.265821045 | AK24: 0.2150799998 | AL24: =((X24+Z24+AC24*IF('Ingreso - Inversión OCULTO'!$D$9=1,1,0)+AE24*IF('Ingreso - Inversión OCULTO'!$D$9=2,1,0)+AH24*IF('Ingreso - Inversión OCULTO'!$C$9=2,1,0)+AJ24*IF('Ingreso - Inversión OCULTO'!$C$9=3,1,0))+Y24)/1000 -> 0.4378432249 | AM24: =(+(X24+Z24+AC24*IF('Ingreso - Inversión OCULTO'!$D$9=1,1,0)+AE24*IF('Ingreso - Inversión OCULTO'!$D$9=2,1,0)+AH24*IF('Ingreso - Inversión OCULTO'!$C$9=2,1,0)+AJ24*IF('Ingreso - Inversión OCULTO'!$C$9=3,1,0))*AK24*G24+Y24*8760)/1000 -> 3609.679946 | AN24: =(+(X24+Z24+AC24*IF('Ingreso - Inversión OCULTO'!$D$9=1,1,0)+AE24*IF('Ingreso - Inversión OCULTO'!$D$9=2,1,0)+AH24*IF('Ingreso - Inversión OCULTO'!$C$9=2,1,0)+AJ24*IF('Ingreso - Inversión OCULTO'!$C$9=3,1,0))*AK24*G24+Y24*8760)/1000 -> 3609.679946 | AO24: =((X24+Z24+AC24*IF('Ingreso - Inversión OCULTO'!$D$9=1,1,0)+AE24*IF('Ingreso - Inversión OCULTO'!$D$9=2,1,0)+AH24*IF('Ingreso - Inversión OCULTO'!$C$9=2,1,0)+AJ24*IF('Ingreso - Inversión OCULTO'!$C$9=3,1,0))+Y24)/1000 -> 0.4378432249 | AQ24: 20 | AR24: 100 | AS24: 670
A25: 21 | B25: ='Calculo - Consumo'!AM26 -> 20730.83072 | C25: ='Calculo - Consumo'!AI26 -> 19.96742692 | D25: =SUM('Ingreso - Inversión OCULTO'!$F$31:$F$50) -> 9 | E25: 0.3799999999 | F25: =+'Ingreso - General OCULTO'!$D$38 -> 0.78 | G25: 8760 | H25: 311.8939131 | I25: =+'Ingreso - Inversión OCULTO'!$C$8*1000 -> 23000 | J25: =+'Ingreso - Inversión OCULTO'!$D$8*1000 -> 23000 | K25: =+'Ingreso - Inversión OCULTO'!$E$8*1000 -> 220 | L25: =+'Ingreso - Inversión OCULTO'!$C$13 -> 0.017241 | M25: =+'Ingreso - Inversión OCULTO'!$D$13 -> 0.017241 | N25: =+'Ingreso - Inversión OCULTO'!$E$13 -> 0.017241 | O25: =+'Ingreso - Inversión OCULTO'!$C$15 -> 0.95 | P25: =+'Ingreso - Inversión OCULTO'!$D$15 -> 0.95 | Q25: =+'Ingreso - Inversión OCULTO'!$E$15 -> 0.95 | R25: =+'Ingreso - Inversión OCULTO'!$C$14 -> 13.27 | S25: =+'Ingreso - Inversión OCULTO'!$D$14 -> 13.27 | T25: =+'Ingreso - Inversión OCULTO'!$E$14 -> 13.27 | U25: =+'Ingreso - Inversión OCULTO'!$C$10*1000 -> 30000 | V25: =(+'Ingreso - Inversión OCULTO'!$E$10+'Ingreso - Inversión OCULTO'!$F$10)*1000 -> 3130 | W25: =++'Ingreso - Inversión OCULTO'!$D$10*1000 -> 5882.59 | X25: 11.01986549 | Y25: =+'Ingreso - Inversión OCULTO'!$P$2 -> 405 | Z25: =((C25/D25*H25*F25+X25/D25)^2/Q25^2)*'Ingreso - Inversión OCULTO'!$M$51 -> 17.39289903 | AA25: 0.02690584042 | AB25: 285 | AC25: 1.576877997 | AD25: 0.02330114131 | AE25: 2.365316996 | AF25: =+C25*H25*F25+X25+Z25+Y25+IF('Ingreso - Inversión OCULTO'!$D$9=1,1,0)*AC25+IF('Ingreso - Inversión OCULTO'!$D$9=2,1,0)*AE25 -> 5293.398835 | AG25: 0.2098040212 | AH25: 3.431392479 | AI25: 0.1398693475 | AJ25: 2.287594986 | AK25: 0.2150799999 | AL25: =((X25+Z25+AC25*IF('Ingreso - Inversión OCULTO'!$D$9=1,1,0)+AE25*IF('Ingreso - Inversión OCULTO'!$D$9=2,1,0)+AH25*IF('Ingreso - Inversión OCULTO'!$C$9=2,1,0)+AJ25*IF('Ingreso - Inversión OCULTO'!$C$9=3,1,0))+Y25)/1000 -> 0.4380656765 | AM25: =(+(X25+Z25+AC25*IF('Ingreso - Inversión OCULTO'!$D$9=1,1,0)+AE25*IF('Ingreso - Inversión OCULTO'!$D$9=2,1,0)+AH25*IF('Ingreso - Inversión OCULTO'!$C$9=2,1,0)+AJ25*IF('Ingreso - Inversión OCULTO'!$C$9=3,1,0))*AK25*G25+Y25*8760)/1000 -> 3610.099068 | AN25: =(+(X25+Z25+AC25*IF('Ingreso - Inversión OCULTO'!$D$9=1,1,0)+AE25*IF('Ingreso - Inversión OCULTO'!$D$9=2,1,0)+AH25*IF('Ingreso - Inversión OCULTO'!$C$9=2,1,0)+AJ25*IF('Ingreso - Inversión OCULTO'!$C$9=3,1,0))*AK25*G25+Y25*8760)/1000 -> 3610.099068 | AO25: =((X25+Z25+AC25*IF('Ingreso - Inversión OCULTO'!$D$9=1,1,0)+AE25*IF('Ingreso - Inversión OCULTO'!$D$9=2,1,0)+AH25*IF('Ingreso - Inversión OCULTO'!$C$9=2,1,0)+AJ25*IF('Ingreso - Inversión OCULTO'!$C$9=3,1,0))+Y25)/1000 -> 0.4380656765 | AQ25: 21 | AR25: 121 | AS25: 791
A26: 22 | B26: ='Calculo - Consumo'!AM27 -> 20838.17256 | C26: ='Calculo - Consumo'!AI27 -> 20.07125754 | D26: =SUM('Ingreso - Inversión OCULTO'!$F$31:$F$50) -> 9 | E26: 0.38 | F26: =+'Ingreso - General OCULTO'!$D$38 -> 0.78 | G26: 8760 | H26: 311.887051 | I26: =+'Ingreso - Inversión OCULTO'!$C$8*1000 -> 23000 | J26: =+'Ingreso - Inversión OCULTO'!$D$8*1000 -> 23000 | K26: =+'Ingreso - Inversión OCULTO'!$E$8*1000 -> 220 | L26: =+'Ingreso - Inversión OCULTO'!$C$13 -> 0.017241 | M26: =+'Ingreso - Inversión OCULTO'!$D$13 -> 0.017241 | N26: =+'Ingreso - Inversión OCULTO'!$E$13 -> 0.017241 | O26: =+'Ingreso - Inversión OCULTO'!$C$15 -> 0.95 | P26: =+'Ingreso - Inversión OCULTO'!$D$15 -> 0.95 | Q26: =+'Ingreso - Inversión OCULTO'!$E$15 -> 0.95 | R26: =+'Ingreso - Inversión OCULTO'!$C$14 -> 13.27 | S26: =+'Ingreso - Inversión OCULTO'!$D$14 -> 13.27 | T26: =+'Ingreso - Inversión OCULTO'!$E$14 -> 13.27 | U26: =+'Ingreso - Inversión OCULTO'!$C$10*1000 -> 30000 | V26: =(+'Ingreso - Inversión OCULTO'!$E$10+'Ingreso - Inversión OCULTO'!$F$10)*1000 -> 3130 | W26: =++'Ingreso - Inversión OCULTO'!$D$10*1000 -> 5882.59 | X26: 11.0193806 | Y26: =+'Ingreso - Inversión OCULTO'!$P$2 -> 405 | Z26: =((C26/D26*H26*F26+X26/D26)^2/Q26^2)*'Ingreso - Inversión OCULTO'!$M$51 -> 17.57306891 | AA26: 0.02703465752 | AB26: 285 | AC26: 1.592013381 | AD26: 0.02341270019 | AE26: 2.388020072 | AF26: =+C26*H26*F26+X26+Z26+Y26+IF('Ingreso - Inversión OCULTO'!$D$9=1,1,0)*AC26+IF('Ingreso - Inversión OCULTO'!$D$9=2,1,0)*AE26 -> 5318.753421 | AG26: 0.210808951 | AH26: 3.464342915 | AI26: 0.1405393007 | AJ26: 2.309561943 | AK26: 0.21508 | AL26: =((X26+Z26+AC26*IF('Ingreso - Inversión OCULTO'!$D$9=1,1,0)+AE26*IF('Ingreso - Inversión OCULTO'!$D$9=2,1,0)+AH26*IF('Ingreso - Inversión OCULTO'!$C$9=2,1,0)+AJ26*IF('Ingreso - Inversión OCULTO'!$C$9=3,1,0))+Y26)/1000 -> 0.4382900315 | AM26: =(+(X26+Z26+AC26*IF('Ingreso - Inversión OCULTO'!$D$9=1,1,0)+AE26*IF('Ingreso - Inversión OCULTO'!$D$9=2,1,0)+AH26*IF('Ingreso - Inversión OCULTO'!$C$9=2,1,0)+AJ26*IF('Ingreso - Inversión OCULTO'!$C$9=3,1,0))*AK26*G26+Y26*8760)/1000 -> 3610.521775 | AN26: =(+(X26+Z26+AC26*IF('Ingreso - Inversión OCULTO'!$D$9=1,1,0)+AE26*IF('Ingreso - Inversión OCULTO'!$D$9=2,1,0)+AH26*IF('Ingreso - Inversión OCULTO'!$C$9=2,1,0)+AJ26*IF('Ingreso - Inversión OCULTO'!$C$9=3,1,0))*AK26*G26+Y26*8760)/1000 -> 3610.521775 | AO26: =((X26+Z26+AC26*IF('Ingreso - Inversión OCULTO'!$D$9=1,1,0)+AE26*IF('Ingreso - Inversión OCULTO'!$D$9=2,1,0)+AH26*IF('Ingreso - Inversión OCULTO'!$C$9=2,1,0)+AJ26*IF('Ingreso - Inversión OCULTO'!$C$9=3,1,0))+Y26)/1000 -> 0.4382900315 | AQ26: 22 | AR26: 144 | AS26: 935
A27: 23 | B27: ='Calculo - Consumo'!AM28 -> 20945.9965 | C27: ='Calculo - Consumo'!AI28 -> 20.17562807 | D27: =SUM('Ingreso - Inversión OCULTO'!$F$31:$F$50) -> 9 | E27: 0.38 | F27: =+'Ingreso - General OCULTO'!$D$38 -> 0.78 | G27: 8760 | H27: 311.8790916 | I27: =+'Ingreso - Inversión OCULTO'!$C$8*1000 -> 23000 | J27: =+'Ingreso - Inversión OCULTO'!$D$8*1000 -> 23000 | K27: =+'Ingreso - Inversión OCULTO'!$E$8*1000 -> 220 | L27: =+'Ingreso - Inversión OCULTO'!$C$13 -> 0.017241 | M27: =+'Ingreso - Inversión OCULTO'!$D$13 -> 0.017241 | N27: =+'Ingreso - Inversión OCULTO'!$E$13 -> 0.017241 | O27: =+'Ingreso - Inversión OCULTO'!$C$15 -> 0.95 | P27: =+'Ingreso - Inversión OCULTO'!$D$15 -> 0.95 | Q27: =+'Ingreso - Inversión OCULTO'!$E$15 -> 0.95 | R27: =+'Ingreso - Inversión OCULTO'!$C$14 -> 13.27 | S27: =+'Ingreso - Inversión OCULTO'!$D$14 -> 13.27 | T27: =+'Ingreso - Inversión OCULTO'!$E$14 -> 13.27 | U27: =+'Ingreso - Inversión OCULTO'!$C$10*1000 -> 30000 | V27: =(+'Ingreso - Inversión OCULTO'!$E$10+'Ingreso - Inversión OCULTO'!$F$10)*1000 -> 3130 | W27: =++'Ingreso - Inversión OCULTO'!$D$10*1000 -> 5882.59 | X27: 11.01881817 | Y27: =+'Ingreso - Inversión OCULTO'!$P$2 -> 405 | Z27: =((C27/D27*H27*F27+X27/D27)^2/Q27^2)*'Ingreso - Inversión OCULTO'!$M$51 -> 17.75498206 | AA27: 0.02716405753 | AB27: 285 | AC27: 1.607290037 | AD27: 0.02352476389 | AE27: 2.410935055 | AF27: =+C27*H27*F27+X27+Z27+Y27+IF('Ingreso - Inversión OCULTO'!$D$9=1,1,0)*AC27+IF('Ingreso - Inversión OCULTO'!$D$9=2,1,0)*AE27 -> 5344.222849 | AG27: 0.2118184325 | AH27: 3.497601119 | AI27: 0.1412122884 | AJ27: 2.331734079 | AK27: 0.21508 | AL27: =((X27+Z27+AC27*IF('Ingreso - Inversión OCULTO'!$D$9=1,1,0)+AE27*IF('Ingreso - Inversión OCULTO'!$D$9=2,1,0)+AH27*IF('Ingreso - Inversión OCULTO'!$C$9=2,1,0)+AJ27*IF('Ingreso - Inversión OCULTO'!$C$9=3,1,0))+Y27)/1000 -> 0.4385164694 | AM27: =(+(X27+Z27+AC27*IF('Ingreso - Inversión OCULTO'!$D$9=1,1,0)+AE27*IF('Ingreso - Inversión OCULTO'!$D$9=2,1,0)+AH27*IF('Ingreso - Inversión OCULTO'!$C$9=2,1,0)+AJ27*IF('Ingreso - Inversión OCULTO'!$C$9=3,1,0))*AK27*G27+Y27*8760)/1000 -> 3610.948407 | AN27: =(+(X27+Z27+AC27*IF('Ingreso - Inversión OCULTO'!$D$9=1,1,0)+AE27*IF('Ingreso - Inversión OCULTO'!$D$9=2,1,0)+AH27*IF('Ingreso - Inversión OCULTO'!$C$9=2,1,0)+AJ27*IF('Ingreso - Inversión OCULTO'!$C$9=3,1,0))*AK27*G27+Y27*8760)/1000 -> 3610.948407 | AO27: =((X27+Z27+AC27*IF('Ingreso - Inversión OCULTO'!$D$9=1,1,0)+AE27*IF('Ingreso - Inversión OCULTO'!$D$9=2,1,0)+AH27*IF('Ingreso - Inversión OCULTO'!$C$9=2,1,0)+AJ27*IF('Ingreso - Inversión OCULTO'!$C$9=3,1,0))+Y27)/1000 -> 0.4385164694 | AQ27: 23 | AR27: 169 | AS27: 1104
A28: 24 | B28: ='Calculo - Consumo'!AM29 -> 21054.33534 | C28: ='Calculo - Consumo'!AI29 -> 20.28054134 | D28: =SUM('Ingreso - Inversión OCULTO'!$F$31:$F$50) -> 9 | E28: 0.38 | F28: =+'Ingreso - General OCULTO'!$D$38 -> 0.78 | G28: 8760 | H28: 311.8704951 | I28: =+'Ingreso - Inversión OCULTO'!$C$8*1000 -> 23000 | J28: =+'Ingreso - Inversión OCULTO'!$D$8*1000 -> 23000 | K28: =+'Ingreso - Inversión OCULTO'!$E$8*1000 -> 220 | L28: =+'Ingreso - Inversión OCULTO'!$C$13 -> 0.017241 | M28: =+'Ingreso - Inversión OCULTO'!$D$13 -> 0.017241 | N28: =+'Ingreso - Inversión OCULTO'!$E$13 -> 0.017241 | O28: =+'Ingreso - Inversión OCULTO'!$C$15 -> 0.95 | P28: =+'Ingreso - Inversión OCULTO'!$D$15 -> 0.95 | Q28: =+'Ingreso - Inversión OCULTO'!$E$15 -> 0.95 | R28: =+'Ingreso - Inversión OCULTO'!$C$14 -> 13.27 | S28: =+'Ingreso - Inversión OCULTO'!$D$14 -> 13.27 | T28: =+'Ingreso - Inversión OCULTO'!$E$14 -> 13.27 | U28: =+'Ingreso - Inversión OCULTO'!$C$10*1000 -> 30000 | V28: =(+'Ingreso - Inversión OCULTO'!$E$10+'Ingreso - Inversión OCULTO'!$F$10)*1000 -> 3130 | W28: =++'Ingreso - Inversión OCULTO'!$D$10*1000 -> 5882.59 | X28: 11.01821074 | Y28: =+'Ingreso - Inversión OCULTO'!$P$2 -> 405 | Z28: =((C28/D28*H28*F28+X28/D28)^2/Q28^2)*'Ingreso - Inversión OCULTO'!$M$51 -> 17.93870703 | AA28: 0.02729408006 | AB28: 285 | AC28: 1.622713657 | AD28: 0.0236373667 | AE28: 2.434070486 | AF28: =+C28*H28*F28+X28+Z28+Y28+IF('Ingreso - Inversión OCULTO'!$D$9=1,1,0)*AC28+IF('Ingreso - Inversión OCULTO'!$D$9=2,1,0)*AE28 -> 5369.814913 | AG28: 0.2128327748 | AH28: 3.531179492 | AI28: 0.1418885165 | AJ28: 2.354119661 | AK28: 0.21508 | AL28: =((X28+Z28+AC28*IF('Ingreso - Inversión OCULTO'!$D$9=1,1,0)+AE28*IF('Ingreso - Inversión OCULTO'!$D$9=2,1,0)+AH28*IF('Ingreso - Inversión OCULTO'!$C$9=2,1,0)+AJ28*IF('Ingreso - Inversión OCULTO'!$C$9=3,1,0))+Y28)/1000 -> 0.4387451079 | AM28: =(+(X28+Z28+AC28*IF('Ingreso - Inversión OCULTO'!$D$9=1,1,0)+AE28*IF('Ingreso - Inversión OCULTO'!$D$9=2,1,0)+AH28*IF('Ingreso - Inversión OCULTO'!$C$9=2,1,0)+AJ28*IF('Ingreso - Inversión OCULTO'!$C$9=3,1,0))*AK28*G28+Y28*8760)/1000 -> 3611.379185 | AN28: =(+(X28+Z28+AC28*IF('Ingreso - Inversión OCULTO'!$D$9=1,1,0)+AE28*IF('Ingreso - Inversión OCULTO'!$D$9=2,1,0)+AH28*IF('Ingreso - Inversión OCULTO'!$C$9=2,1,0)+AJ28*IF('Ingreso - Inversión OCULTO'!$C$9=3,1,0))*AK28*G28+Y28*8760)/1000 -> 3611.379185 | AO28: =((X28+Z28+AC28*IF('Ingreso - Inversión OCULTO'!$D$9=1,1,0)+AE28*IF('Ingreso - Inversión OCULTO'!$D$9=2,1,0)+AH28*IF('Ingreso - Inversión OCULTO'!$C$9=2,1,0)+AJ28*IF('Ingreso - Inversión OCULTO'!$C$9=3,1,0))+Y28)/1000 -> 0.4387451079 | AQ28: 24 | AR28: 196 | AS28: 1300
A29: 25 | B29: ='Calculo - Consumo'!AM30 -> 21163.20997 | C29: ='Calculo - Consumo'!AI30 -> 20.38600016 | D29: =SUM('Ingreso - Inversión OCULTO'!$F$31:$F$50) -> 9 | E29: 0.38 | F29: =+'Ingreso - General OCULTO'!$D$38 -> 0.78 | G29: 8760 | H29: 311.8615368 | I29: =+'Ingreso - Inversión OCULTO'!$C$8*1000 -> 23000 | J29: =+'Ingreso - Inversión OCULTO'!$D$8*1000 -> 23000 | K29: =+'Ingreso - Inversión OCULTO'!$E$8*1000 -> 220 | L29: =+'Ingreso - Inversión OCULTO'!$C$13 -> 0.017241 | M29: =+'Ingreso - Inversión OCULTO'!$D$13 -> 0.017241 | N29: =+'Ingreso - Inversión OCULTO'!$E$13 -> 0.017241 | O29: =+'Ingreso - Inversión OCULTO'!$C$15 -> 0.95 | P29: =+'Ingreso - Inversión OCULTO'!$D$15 -> 0.95 | Q29: =+'Ingreso - Inversión OCULTO'!$E$15 -> 0.95 | R29: =+'Ingreso - Inversión OCULTO'!$C$14 -> 13.27 | S29: =+'Ingreso - Inversión OCULTO'!$D$14 -> 13.27 | T29: =+'Ingreso - Inversión OCULTO'!$E$14 -> 13.27 | U29: =+'Ingreso - Inversión OCULTO'!$C$10*1000 -> 30000 | V29: =(+'Ingreso - Inversión OCULTO'!$E$10+'Ingreso - Inversión OCULTO'!$F$10)*1000 -> 3130 | W29: =++'Ingreso - Inversión OCULTO'!$D$10*1000 -> 5882.59 | X29: 11.01757777 | Y29: =+'Ingreso - Inversión OCULTO'!$P$2 -> 405 | Z29: =((C29/D29*H29*F29+X29/D29)^2/Q29^2)*'Ingreso - Inversión OCULTO'!$M$51 -> 18.12429319 | AA29: 0.02742475034 | AB29: 285 | AC29: 1.638288319 | AD29: 0.02375053049 | AE29: 2.457432479 | AF29: =+C29*H29*F29+X29+Z29+Y29+IF('Ingreso - Inversión OCULTO'!$D$9=1,1,0)*AC29+IF('Ingreso - Inversión OCULTO'!$D$9=2,1,0)*AE29 -> 5395.534588 | AG29: 0.2138521748 | AH29: 3.565086913 | AI29: 0.1425681166 | AJ29: 2.376724609 | AK29: 0.21508 | AL29: =((X29+Z29+AC29*IF('Ingreso - Inversión OCULTO'!$D$9=1,1,0)+AE29*IF('Ingreso - Inversión OCULTO'!$D$9=2,1,0)+AH29*IF('Ingreso - Inversión OCULTO'!$C$9=2,1,0)+AJ29*IF('Ingreso - Inversión OCULTO'!$C$9=3,1,0))+Y29)/1000 -> 0.4389760281 | AM29: =(+(X29+Z29+AC29*IF('Ingreso - Inversión OCULTO'!$D$9=1,1,0)+AE29*IF('Ingreso - Inversión OCULTO'!$D$9=2,1,0)+AH29*IF('Ingreso - Inversión OCULTO'!$C$9=2,1,0)+AJ29*IF('Ingreso - Inversión OCULTO'!$C$9=3,1,0))*AK29*G29+Y29*8760)/1000 -> 3611.814262 | AN29: =(+(X29+Z29+AC29*IF('Ingreso - Inversión OCULTO'!$D$9=1,1,0)+AE29*IF('Ingreso - Inversión OCULTO'!$D$9=2,1,0)+AH29*IF('Ingreso - Inversión OCULTO'!$C$9=2,1,0)+AJ29*IF('Ingreso - Inversión OCULTO'!$C$9=3,1,0))*AK29*G29+Y29*8760)/1000 -> 3611.814262 | AO29: =((X29+Z29+AC29*IF('Ingreso - Inversión OCULTO'!$D$9=1,1,0)+AE29*IF('Ingreso - Inversión OCULTO'!$D$9=2,1,0)+AH29*IF('Ingreso - Inversión OCULTO'!$C$9=2,1,0)+AJ29*IF('Ingreso - Inversión OCULTO'!$C$9=3,1,0))+Y29)/1000 -> 0.4389760281 | AQ29: 25 | AR29: 225 | AS29: 1525
A30: 26 | B30: ='Calculo - Consumo'!AM31 -> 21272.63416 | C30: ='Calculo - Consumo'!AI31 -> 20.49200736 | D30: =SUM('Ingreso - Inversión OCULTO'!$F$31:$F$50) -> 9 | E30: 0.38 | F30: =+'Ingreso - General OCULTO'!$D$38 -> 0.78 | G30: 8760 | H30: 311.8523818 | I30: =+'Ingreso - Inversión OCULTO'!$C$8*1000 -> 23000 | J30: =+'Ingreso - Inversión OCULTO'!$D$8*1000 -> 23000 | K30: =+'Ingreso - Inversión OCULTO'!$E$8*1000 -> 220 | L30: =+'Ingreso - Inversión OCULTO'!$C$13 -> 0.017241 | M30: =+'Ingreso - Inversión OCULTO'!$D$13 -> 0.017241 | N30: =+'Ingreso - Inversión OCULTO'!$E$13 -> 0.017241 | O30: =+'Ingreso - Inversión OCULTO'!$C$15 -> 0.95 | P30: =+'Ingreso - Inversión OCULTO'!$D$15 -> 0.95 | Q30: =+'Ingreso - Inversión OCULTO'!$E$15 -> 0.95 | R30: =+'Ingreso - Inversión OCULTO'!$C$14 -> 13.27 | S30: =+'Ingreso - Inversión OCULTO'!$D$14 -> 13.27 | T30: =+'Ingreso - Inversión OCULTO'!$E$14 -> 13.27 | U30: =+'Ingreso - Inversión OCULTO'!$C$10*1000 -> 30000 | V30: =(+'Ingreso - Inversión OCULTO'!$E$10+'Ingreso - Inversión OCULTO'!$F$10)*1000 -> 3130 | W30: =++'Ingreso - Inversión OCULTO'!$D$10*1000 -> 5882.59 | X30: 11.01693091 | Y30: =+'Ingreso - Inversión OCULTO'!$P$2 -> 405 | Z30: =((C30/D30*H30*F30+X30/D30)^2/Q30^2)*'Ingreso - Inversión OCULTO'!$M$51 -> 18.31177835 | AA30: 0.02755608505 | AB30: 285 | AC30: 1.654017127 | AD30: 0.02386426968 | AE30: 2.48102569 | AF30: =+C30*H30*F30+X30+Z30+Y30+IF('Ingreso - Inversión OCULTO'!$D$9=1,1,0)*AC30+IF('Ingreso - Inversión OCULTO'!$D$9=2,1,0)*AE30 -> 5421.38515 | AG30: 0.2148767626 | AH30: 3.599330146 | AI30: 0.1432511751 | AJ30: 2.399553431 | AK30: 0.21508 | AL30: =((X30+Z30+AC30*IF('Ingreso - Inversión OCULTO'!$D$9=1,1,0)+AE30*IF('Ingreso - Inversión OCULTO'!$D$9=2,1,0)+AH30*IF('Ingreso - Inversión OCULTO'!$C$9=2,1,0)+AJ30*IF('Ingreso - Inversión OCULTO'!$C$9=3,1,0))+Y30)/1000 -> 0.4392092884 | AM30: =(+(X30+Z30+AC30*IF('Ingreso - Inversión OCULTO'!$D$9=1,1,0)+AE30*IF('Ingreso - Inversión OCULTO'!$D$9=2,1,0)+AH30*IF('Ingreso - Inversión OCULTO'!$C$9=2,1,0)+AJ30*IF('Ingreso - Inversión OCULTO'!$C$9=3,1,0))*AK30*G30+Y30*8760)/1000 -> 3612.253748 | AN30: =(+(X30+Z30+AC30*IF('Ingreso - Inversión OCULTO'!$D$9=1,1,0)+AE30*IF('Ingreso - Inversión OCULTO'!$D$9=2,1,0)+AH30*IF('Ingreso - Inversión OCULTO'!$C$9=2,1,0)+AJ30*IF('Ingreso - Inversión OCULTO'!$C$9=3,1,0))*AK30*G30+Y30*8760)/1000 -> 3612.253748 | AO30: =((X30+Z30+AC30*IF('Ingreso - Inversión OCULTO'!$D$9=1,1,0)+AE30*IF('Ingreso - Inversión OCULTO'!$D$9=2,1,0)+AH30*IF('Ingreso - Inversión OCULTO'!$C$9=2,1,0)+AJ30*IF('Ingreso - Inversión OCULTO'!$C$9=3,1,0))+Y30)/1000 -> 0.4392092884 | AQ30: 26 | AR30: 256 | AS30: 1781
A31: 27 | B31: ='Calculo - Consumo'!AM32 -> 21382.61737 | C31: ='Calculo - Consumo'!AI32 -> 20.59856579 | D31: =SUM('Ingreso - Inversión OCULTO'!$F$31:$F$50) -> 9 | E31: 0.38 | F31: =+'Ingreso - General OCULTO'!$D$38 -> 0.78 | G31: 8760 | H31: 311.8431285 | I31: =+'Ingreso - Inversión OCULTO'!$C$8*1000 -> 23000 | J31: =+'Ingreso - Inversión OCULTO'!$D$8*1000 -> 23000 | K31: =+'Ingreso - Inversión OCULTO'!$E$8*1000 -> 220 | L31: =+'Ingreso - Inversión OCULTO'!$C$13 -> 0.017241 | M31: =+'Ingreso - Inversión OCULTO'!$D$13 -> 0.017241 | N31: =+'Ingreso - Inversión OCULTO'!$E$13 -> 0.017241 | O31: =+'Ingreso - Inversión OCULTO'!$C$15 -> 0.95 | P31: =+'Ingreso - Inversión OCULTO'!$D$15 -> 0.95 | Q31: =+'Ingreso - Inversión OCULTO'!$E$15 -> 0.95 | R31: =+'Ingreso - Inversión OCULTO'!$C$14 -> 13.27 | S31: =+'Ingreso - Inversión OCULTO'!$D$14 -> 13.27 | T31: =+'Ingreso - Inversión OCULTO'!$E$14 -> 13.27 | U31: =+'Ingreso - Inversión OCULTO'!$C$10*1000 -> 30000 | V31: =(+'Ingreso - Inversión OCULTO'!$E$10+'Ingreso - Inversión OCULTO'!$F$10)*1000 -> 3130 | W31: =++'Ingreso - Inversión OCULTO'!$D$10*1000 -> 5882.59 | X31: 11.01627713 | Y31: =+'Ingreso - Inversión OCULTO'!$P$2 -> 405 | Z31: =((C31/D31*H31*F31+X31/D31)^2/Q31^2)*'Ingreso - Inversión OCULTO'!$M$51 -> 18.50119342 | AA31: 0.02768809563 | AB31: 285 | AC31: 1.669902604 | AD31: 0.0239785942 | AE31: 2.504853906 | AF31: =+C31*H31*F31+X31+Z31+Y31+IF('Ingreso - Inversión OCULTO'!$D$9=1,1,0)*AC31+IF('Ingreso - Inversión OCULTO'!$D$9=2,1,0)*AE31 -> 5447.36886 | AG31: 0.2159066278 | AH31: 3.633914692 | AI31: 0.1439377518 | AJ31: 2.422609795 | AK31: 0.21508 | AL31: =((X31+Z31+AC31*IF('Ingreso - Inversión OCULTO'!$D$9=1,1,0)+AE31*IF('Ingreso - Inversión OCULTO'!$D$9=2,1,0)+AH31*IF('Ingreso - Inversión OCULTO'!$C$9=2,1,0)+AJ31*IF('Ingreso - Inversión OCULTO'!$C$9=3,1,0))+Y31)/1000 -> 0.4394449343 | AM31: =(+(X31+Z31+AC31*IF('Ingreso - Inversión OCULTO'!$D$9=1,1,0)+AE31*IF('Ingreso - Inversión OCULTO'!$D$9=2,1,0)+AH31*IF('Ingreso - Inversión OCULTO'!$C$9=2,1,0)+AJ31*IF('Ingreso - Inversión OCULTO'!$C$9=3,1,0))*AK31*G31+Y31*8760)/1000 -> 3612.697728 | AN31: =(+(X31+Z31+AC31*IF('Ingreso - Inversión OCULTO'!$D$9=1,1,0)+AE31*IF('Ingreso - Inversión OCULTO'!$D$9=2,1,0)+AH31*IF('Ingreso - Inversión OCULTO'!$C$9=2,1,0)+AJ31*IF('Ingreso - Inversión OCULTO'!$C$9=3,1,0))*AK31*G31+Y31*8760)/1000 -> 3612.697728 | AO31: =((X31+Z31+AC31*IF('Ingreso - Inversión OCULTO'!$D$9=1,1,0)+AE31*IF('Ingreso - Inversión OCULTO'!$D$9=2,1,0)+AH31*IF('Ingreso - Inversión OCULTO'!$C$9=2,1,0)+AJ31*IF('Ingreso - Inversión OCULTO'!$C$9=3,1,0))+Y31)/1000 -> 0.4394449343 | AQ31: 27 | AR31: 289 | AS31: 2070
A32: 28 | B32: ='Calculo - Consumo'!AM33 -> 21493.16648 | C32: ='Calculo - Consumo'!AI33 -> 20.70567834 | D32: =SUM('Ingreso - Inversión OCULTO'!$F$31:$F$50) -> 9 | E32: 0.38 | F32: =+'Ingreso - General OCULTO'!$D$38 -> 0.78 | G32: 8760 | H32: 311.8338358 | I32: =+'Ingreso - Inversión OCULTO'!$C$8*1000 -> 23000 | J32: =+'Ingreso - Inversión OCULTO'!$D$8*1000 -> 23000 | K32: =+'Ingreso - Inversión OCULTO'!$E$8*1000 -> 220 | L32: =+'Ingreso - Inversión OCULTO'!$C$13 -> 0.017241 | M32: =+'Ingreso - Inversión OCULTO'!$D$13 -> 0.017241 | N32: =+'Ingreso - Inversión OCULTO'!$E$13 -> 0.017241 | O32: =+'Ingreso - Inversión OCULTO'!$C$15 -> 0.95 | P32: =+'Ingreso - Inversión OCULTO'!$D$15 -> 0.95 | Q32: =+'Ingreso - Inversión OCULTO'!$E$15 -> 0.95 | R32: =+'Ingreso - Inversión OCULTO'!$C$14 -> 13.27 | S32: =+'Ingreso - Inversión OCULTO'!$D$14 -> 13.27 | T32: =+'Ingreso - Inversión OCULTO'!$E$14 -> 13.27 | U32: =+'Ingreso - Inversión OCULTO'!$C$10*1000 -> 30000 | V32: =(+'Ingreso - Inversión OCULTO'!$E$10+'Ingreso - Inversión OCULTO'!$F$10)*1000 -> 3130 | W32: =++'Ingreso - Inversión OCULTO'!$D$10*1000 -> 5882.59 | X32: 11.01562059 | Y32: =+'Ingreso - Inversión OCULTO'!$P$2 -> 405 | Z32: =((C32/D32*H32*F32+X32/D32)^2/Q32^2)*'Ingreso - Inversión OCULTO'!$M$51 -> 18.69256526 | AA32: 0.02782079045 | AB32: 285 | AC32: 1.685946929 | AD32: 0.02409351129 | AE32: 2.528920394 | AF32: =+C32*H32*F32+X32+Z32+Y32+IF('Ingreso - Inversión OCULTO'!$D$9=1,1,0)*AC32+IF('Ingreso - Inversión OCULTO'!$D$9=2,1,0)*AE32 -> 5473.487363 | AG32: 0.2169418354 | AH32: 3.668845299 | AI32: 0.1446278903 | AJ32: 2.445896866 | AK32: 0.21508 | AL32: =((X32+Z32+AC32*IF('Ingreso - Inversión OCULTO'!$D$9=1,1,0)+AE32*IF('Ingreso - Inversión OCULTO'!$D$9=2,1,0)+AH32*IF('Ingreso - Inversión OCULTO'!$C$9=2,1,0)+AJ32*IF('Ingreso - Inversión OCULTO'!$C$9=3,1,0))+Y32)/1000 -> 0.4396830031 | AM32: =(+(X32+Z32+AC32*IF('Ingreso - Inversión OCULTO'!$D$9=1,1,0)+AE32*IF('Ingreso - Inversión OCULTO'!$D$9=2,1,0)+AH32*IF('Ingreso - Inversión OCULTO'!$C$9=2,1,0)+AJ32*IF('Ingreso - Inversión OCULTO'!$C$9=3,1,0))*AK32*G32+Y32*8760)/1000 -> 3613.146274 | AN32: =(+(X32+Z32+AC32*IF('Ingreso - Inversión OCULTO'!$D$9=1,1,0)+AE32*IF('Ingreso - Inversión OCULTO'!$D$9=2,1,0)+AH32*IF('Ingreso - Inversión OCULTO'!$C$9=2,1,0)+AJ32*IF('Ingreso - Inversión OCULTO'!$C$9=3,1,0))*AK32*G32+Y32*8760)/1000 -> 3613.146274 | AO32: =((X32+Z32+AC32*IF('Ingreso - Inversión OCULTO'!$D$9=1,1,0)+AE32*IF('Ingreso - Inversión OCULTO'!$D$9=2,1,0)+AH32*IF('Ingreso - Inversión OCULTO'!$C$9=2,1,0)+AJ32*IF('Ingreso - Inversión OCULTO'!$C$9=3,1,0))+Y32)/1000 -> 0.4396830031 | AQ32: 28 | AR32: 324 | AS32: 2394
A33: 29 | B33: ='Calculo - Consumo'!AM34 -> 21604.28683 | C33: ='Calculo - Consumo'!AI34 -> 20.81334786 | D33: =SUM('Ingreso - Inversión OCULTO'!$F$31:$F$50) -> 9 | E33: 0.38 | F33: =+'Ingreso - General OCULTO'!$D$38 -> 0.78 | G33: 8760 | H33: 311.824539 | I33: =+'Ingreso - Inversión OCULTO'!$C$8*1000 -> 23000 | J33: =+'Ingreso - Inversión OCULTO'!$D$8*1000 -> 23000 | K33: =+'Ingreso - Inversión OCULTO'!$E$8*1000 -> 220 | L33: =+'Ingreso - Inversión OCULTO'!$C$13 -> 0.017241 | M33: =+'Ingreso - Inversión OCULTO'!$D$13 -> 0.017241 | N33: =+'Ingreso - Inversión OCULTO'!$E$13 -> 0.017241 | O33: =+'Ingreso - Inversión OCULTO'!$C$15 -> 0.95 | P33: =+'Ingreso - Inversión OCULTO'!$D$15 -> 0.95 | Q33: =+'Ingreso - Inversión OCULTO'!$E$15 -> 0.95 | R33: =+'Ingreso - Inversión OCULTO'!$C$14 -> 13.27 | S33: =+'Ingreso - Inversión OCULTO'!$D$14 -> 13.27 | T33: =+'Ingreso - Inversión OCULTO'!$E$14 -> 13.27 | U33: =+'Ingreso - Inversión OCULTO'!$C$10*1000 -> 30000 | V33: =(+'Ingreso - Inversión OCULTO'!$E$10+'Ingreso - Inversión OCULTO'!$F$10)*1000 -> 3130 | W33: =++'Ingreso - Inversión OCULTO'!$D$10*1000 -> 5882.59 | X33: 11.01496378 | Y33: =+'Ingreso - Inversión OCULTO'!$P$2 -> 405 | Z33: =((C33/D33*H33*F33+X33/D33)^2/Q33^2)*'Ingreso - Inversión OCULTO'!$M$51 -> 18.8859183 | AA33: 0.02795417601 | AB33: 285 | AC33: 1.702152081 | AD33: 0.02420902657 | AE33: 2.553228121 | AF33: =+C33*H33*F33+X33+Z33+Y33+IF('Ingreso - Inversión OCULTO'!$D$9=1,1,0)*AC33+IF('Ingreso - Inversión OCULTO'!$D$9=2,1,0)*AE33 -> 5499.74194 | AG33: 0.2179824364 | AH33: 3.70412628 | AI33: 0.1453216242 | AJ33: 2.46941752 | AK33: 0.21508 | AL33: =((X33+Z33+AC33*IF('Ingreso - Inversión OCULTO'!$D$9=1,1,0)+AE33*IF('Ingreso - Inversión OCULTO'!$D$9=2,1,0)+AH33*IF('Ingreso - Inversión OCULTO'!$C$9=2,1,0)+AJ33*IF('Ingreso - Inversión OCULTO'!$C$9=3,1,0))+Y33)/1000 -> 0.4399235277 | AM33: =(+(X33+Z33+AC33*IF('Ingreso - Inversión OCULTO'!$D$9=1,1,0)+AE33*IF('Ingreso - Inversión OCULTO'!$D$9=2,1,0)+AH33*IF('Ingreso - Inversión OCULTO'!$C$9=2,1,0)+AJ33*IF('Ingreso - Inversión OCULTO'!$C$9=3,1,0))*AK33*G33+Y33*8760)/1000 -> 3613.599447 | AN33: =(+(X33+Z33+AC33*IF('Ingreso - Inversión OCULTO'!$D$9=1,1,0)+AE33*IF('Ingreso - Inversión OCULTO'!$D$9=2,1,0)+AH33*IF('Ingreso - Inversión OCULTO'!$C$9=2,1,0)+AJ33*IF('Ingreso - Inversión OCULTO'!$C$9=3,1,0))*AK33*G33+Y33*8760)/1000 -> 3613.599447 | AO33: =((X33+Z33+AC33*IF('Ingreso - Inversión OCULTO'!$D$9=1,1,0)+AE33*IF('Ingreso - Inversión OCULTO'!$D$9=2,1,0)+AH33*IF('Ingreso - Inversión OCULTO'!$C$9=2,1,0)+AJ33*IF('Ingreso - Inversión OCULTO'!$C$9=3,1,0))+Y33)/1000 -> 0.4399235277 | AQ33: 29 | AR33: 361 | AS33: 2755
A34: 30 | B34: ='Calculo - Consumo'!AM35 -> 21715.98283 | C34: ='Calculo - Consumo'!AI35 -> 20.92157727 | D34: =SUM('Ingreso - Inversión OCULTO'!$F$31:$F$50) -> 9 | E34: 0.38 | F34: =+'Ingreso - General OCULTO'!$D$38 -> 0.78 | G34: 8760 | H34: 311.815259 | I34: =+'Ingreso - Inversión OCULTO'!$C$8*1000 -> 23000 | J34: =+'Ingreso - Inversión OCULTO'!$D$8*1000 -> 23000 | K34: =+'Ingreso - Inversión OCULTO'!$E$8*1000 -> 220 | L34: =+'Ingreso - Inversión OCULTO'!$C$13 -> 0.017241 | M34: =+'Ingreso - Inversión OCULTO'!$D$13 -> 0.017241 | N34: =+'Ingreso - Inversión OCULTO'!$E$13 -> 0.017241 | O34: =+'Ingreso - Inversión OCULTO'!$C$15 -> 0.95 | P34: =+'Ingreso - Inversión OCULTO'!$D$15 -> 0.95 | Q34: =+'Ingreso - Inversión OCULTO'!$E$15 -> 0.95 | R34: =+'Ingreso - Inversión OCULTO'!$C$14 -> 13.27 | S34: =+'Ingreso - Inversión OCULTO'!$D$14 -> 13.27 | T34: =+'Ingreso - Inversión OCULTO'!$E$14 -> 13.27 | U34: =+'Ingreso - Inversión OCULTO'!$C$10*1000 -> 30000 | V34: =(+'Ingreso - Inversión OCULTO'!$E$10+'Ingreso - Inversión OCULTO'!$F$10)*1000 -> 3130 | W34: =++'Ingreso - Inversión OCULTO'!$D$10*1000 -> 5882.59 | X34: 11.01430817 | Y34: =+'Ingreso - Inversión OCULTO'!$P$2 -> 405 | Z34: =((C34/D34*H34*F34+X34/D34)^2/Q34^2)*'Ingreso - Inversión OCULTO'!$M$51 -> 19.08127563 | AA34: 0.02808825768 | AB34: 285 | AC34: 1.71851992 | AD34: 0.0243251447 | AE34: 2.57777988 | AF34: =+C34*H34*F34+X34+Z34+Y34+IF('Ingreso - Inversión OCULTO'!$D$9=1,1,0)*AC34+IF('Ingreso - Inversión OCULTO'!$D$9=2,1,0)*AE34 -> 5526.133652 | AG34: 0.2190284727 | AH34: 3.739761694 | AI34: 0.1460189818 | AJ34: 2.493174463 | AK34: 0.21508 | AL34: =((X34+Z34+AC34*IF('Ingreso - Inversión OCULTO'!$D$9=1,1,0)+AE34*IF('Ingreso - Inversión OCULTO'!$D$9=2,1,0)+AH34*IF('Ingreso - Inversión OCULTO'!$C$9=2,1,0)+AJ34*IF('Ingreso - Inversión OCULTO'!$C$9=3,1,0))+Y34)/1000 -> 0.4401665381 | AM34: =(+(X34+Z34+AC34*IF('Ingreso - Inversión OCULTO'!$D$9=1,1,0)+AE34*IF('Ingreso - Inversión OCULTO'!$D$9=2,1,0)+AH34*IF('Ingreso - Inversión OCULTO'!$C$9=2,1,0)+AJ34*IF('Ingreso - Inversión OCULTO'!$C$9=3,1,0))*AK34*G34+Y34*8760)/1000 -> 3614.057303 | AN34: =(+(X34+Z34+AC34*IF('Ingreso - Inversión OCULTO'!$D$9=1,1,0)+AE34*IF('Ingreso - Inversión OCULTO'!$D$9=2,1,0)+AH34*IF('Ingreso - Inversión OCULTO'!$C$9=2,1,0)+AJ34*IF('Ingreso - Inversión OCULTO'!$C$9=3,1,0))*AK34*G34+Y34*8760)/1000 -> 3614.057303 | AO34: =((X34+Z34+AC34*IF('Ingreso - Inversión OCULTO'!$D$9=1,1,0)+AE34*IF('Ingreso - Inversión OCULTO'!$D$9=2,1,0)+AH34*IF('Ingreso - Inversión OCULTO'!$C$9=2,1,0)+AJ34*IF('Ingreso - Inversión OCULTO'!$C$9=3,1,0))+Y34)/1000 -> 0.4401665381 | AQ34: 30 | AR34: 400 | AS34: 3155
AQ35: 31 | AR35: 441 | AS35: =+AR35+AS34 -> 3596
AQ36: 32 | AR36: 484 | AS36: 4080
AQ37: 33 | AR37: =+($D$5-AQ37+1)^2 -> 529 | AS37: 4609
AQ38: 34 | AR38: 576 | AS38: 5185
AQ39: 35 | AR39: 625 | AS39: 5810
AQ40: 36 | AR40: 676 | AS40: 6486
AQ41: 37 | AR41: 729 | AS41: 7215
AQ42: 38 | AR42: 784 | AS42: 7999
AQ43: 39 | AR43: 841 | AS43: 8840
AQ44: 40 | AR44: 900 | AS44: 9740
AQ45: 41 | AR45: 961 | AS45: 10701
AQ46: 42 | AR46: 1024 | AS46: 11725
AQ47: 43 | AR47: 1089 | AS47: 12814
AQ48: 44 | AR48: 1156 | AS48: 13970
AQ49: 45 | AR49: 1225 | AS49: 15195
AQ50: 46 | AR50: 1296 | AS50: 16491
AQ51: 47 | AR51: 1369 | AS51: 17860
AQ52: 48 | AR52: 1444 | AS52: 19304
AQ53: 49 | AR53: 1521 | AS53: 20825
AQ54: 50 | AR54: 1600 | AS54: 22425
AQ55: 51 | AR55: 1681 | AS55: 24106
AQ56: 52 | AR56: 1764 | AS56: 25870
AQ57: 53 | AR57: 1849 | AS57: 27719
AQ58: 54 | AR58: 1936 | AS58: 29655
AQ59: 55 | AR59: 2025 | AS59: 31680
AQ60: 56 | AR60: 2116 | AS60: 33796
AQ61: 57 | AR61: 2209 | AS61: 36005
AQ62: 58 | AR62: 2304 | AS62: 38309
AQ63: 59 | AR63: 2401 | AS63: 40710
AQ64: 60 | AR64: 2500 | AS64: 43210
AQ65: 61 | AR65: 2601 | AS65: 45811
AQ66: 62 | AR66: 2704 | AS66: 48515
AQ67: 63 | AR67: 2809 | AS67: 51324
AQ68: 64 | AR68: 2916 | AS68: 54240
AQ69: 65 | AR69: =+($D$5-AQ69+1)^2 -> 3025 | AS69: 57265
AQ70: 66 | AR70: =+($D$5-AQ70+1)^2 -> 3136 | AS70: 60401
AQ71: 67 | AR71: =+($D$5-AQ71+1)^2 -> 3249 | AS71: =+AR71+AS70 -> 63650
AQ72: 68 | AR72: =+($D$5-AQ72+1)^2 -> 3364 | AS72: 67014
AQ73: 69 | AR73: 3481 | AS73: 70495
AQ74: 70 | AR74: 3600 | AS74: 74095
AQ75: 71 | AR75: 3721 | AS75: 77816
AQ76: 72 | AR76: 3844 | AS76: 81660
AQ77: 73 | AR77: 3969 | AS77: 85629
AQ78: 74 | AR78: 4096 | AS78: 89725
AQ79: 75 | AR79: 4225 | AS79: 93950
AQ80: 76 | AR80: 4356 | AS80: 98306
AQ81: 77 | AR81: 4489 | AS81: 102795
AQ82: 78 | AR82: 4624 | AS82: 107419
AQ83: 79 | AR83: 4761 | AS83: 112180
AQ84: 80 | AR84: 4900 | AS84: 117080
AQ85: 81 | AR85: 5041 | AS85: 122121
AQ86: 82 | AR86: 5184 | AS86: 127305
AQ87: 83 | AR87: 5329 | AS87: 132634
AQ88: 84 | AR88: 5476 | AS88: 138110
AQ89: 85 | AR89: 5625 | AS89: 143735
AQ90: 86 | AR90: 5776 | AS90: 149511
AQ91: 87 | AR91: 5929 | AS91: 155440
AQ92: 88 | AR92: 6084 | AS92: 161524
AQ93: 89 | AR93: 6241 | AS93: 167765
AQ94: 90 | AR94: 6400 | AS94: 174165
AQ95: 91 | AR95: 6561 | AS95: 180726
AQ96: 92 | AR96: 6724 | AS96: 187450
AQ97: 93 | AR97: 6889 | AS97: 194339
AQ98: 94 | AR98: 7056 | AS98: 201395
AQ99: 95 | AR99: 7225 | AS99: 208620
AQ100: 96 | AR100: 7396 | AS100: 216016
AQ101: 97 | AR101: 7569 | AS101: 223585
AQ102: 98 | AR102: 7744 | AS102: 231329
AQ103: 99 | AR103: 7921 | AS103: 239250
AQ104: 100 | AR104: 8100 | AS104: 247350
AQ105: 101 | AR105: 8281 | AS105: 255631
AQ106: 102 | AR106: 8464 | AS106: 264095
AQ107: 103 | AR107: 8649 | AS107: 272744
AQ108: 104 | AR108: 8836 | AS108: 281580
AQ109: 105 | AR109: 9025 | AS109: 290605
AQ110: 106 | AR110: 9216 | AS110: 299821
AQ111: 107 | AR111: 9409 | AS111: 309230
AQ112: 108 | AR112: 9604 | AS112: 318834
AQ113: 109 | AR113: 9801 | AS113: 328635
AQ114: 110 | AR114: 10000 | AS114: 338635
AQ115: 111 | AR115: 10201 | AS115: 348836
AQ116: 112 | AR116: 10404 | AS116: 359240
AQ117: 113 | AR117: 10609 | AS117: 369849
AQ118: 114 | AR118: 10816 | AS118: 380665
AQ119: 115 | AR119: 11025 | AS119: 391690
AQ120: 116 | AR120: 11236 | AS120: 402926
AQ121: 117 | AR121: 11449 | AS121: 414375
AQ122: 118 | AR122: 11664 | AS122: 426039
AQ123: 119 | AR123: 11881 | AS123: 437920
AQ124: 120 | AR124: 12100 | AS124: 450020
AQ125: 121 | AR125: 12321 | AS125: 462341
AQ126: 122 | AR126: 12544 | AS126: 474885
AQ127: 123 | AR127: 12769 | AS127: 487654
AQ128: 124 | AR128: 12996 | AS128: 500650
AQ129: 125 | AR129: 13225 | AS129: 513875
AQ130: 126 | AR130: 13456 | AS130: 527331
AQ131: 127 | AR131: 13689 | AS131: 541020
AQ132: 128 | AR132: 13924 | AS132: 554944
AQ133: 129 | AR133: 14161 | AS133: 569105
AQ134: 130 | AR134: 14400 | AS134: 583505
AQ135: 131 | AR135: 14641 | AS135: =+AR135+AS134 -> 598146
AQ136: 132 | AR136: =+($D$5-AQ136+1)^2 -> 14884 | AS136: 613030
AQ137: 133 | AR137: 15129 | AS137: 628159
AQ138: 134 | AR138: 15376 | AS138: 643535
AQ139: 135 | AR139: 15625 | AS139: 659160
AQ140: 136 | AR140: 15876 | AS140: 675036
AQ141: 137 | AR141: 16129 | AS141: 691165
AQ142: 138 | AR142: 16384 | AS142: 707549
AQ143: 139 | AR143: 16641 | AS143: 724190
AQ144: 140 | AR144: 16900 | AS144: 741090
AQ145: 141 | AR145: 17161 | AS145: 758251
AQ146: 142 | AR146: 17424 | AS146: 775675
AQ147: 143 | AR147: 17689 | AS147: 793364
AQ148: 144 | AR148: 17956 | AS148: 811320
AQ149: 145 | AR149: 18225 | AS149: 829545
AQ150: 146 | AR150: 18496 | AS150: 848041
AQ151: 147 | AR151: 18769 | AS151: 866810
AQ152: 148 | AR152: 19044 | AS152: 885854
AQ153: 149 | AR153: 19321 | AS153: 905175
AQ154: 150 | AR154: 19600 | AS154: 924775
AQ155: 151 | AR155: 19881 | AS155: 944656
AQ156: 152 | AR156: 20164 | AS156: 964820
AQ157: 153 | AR157: 20449 | AS157: 985269
AQ158: 154 | AR158: 20736 | AS158: 1006005
AQ159: 155 | AR159: 21025 | AS159: 1027030
AQ160: 156 | AR160: 21316 | AS160: 1048346
AQ161: 157 | AR161: 21609 | AS161: 1069955
AQ162: 158 | AR162: 21904 | AS162: 1091859
AQ163: 159 | AR163: 22201 | AS163: 1114060
AQ164: 160 | AR164: 22500 | AS164: 1136560
AQ165: 161 | AR165: 22801 | AS165: 1159361
AQ166: 162 | AR166: 23104 | AS166: 1182465
AQ167: 163 | AR167: 23409 | AS167: 1205874
AQ168: 164 | AR168: 23716 | AS168: 1229590
AQ169: 165 | AR169: 24025 | AS169: 1253615
AQ170: 166 | AR170: 24336 | AS170: 1277951
AQ171: 167 | AR171: 24649 | AS171: 1302600
AQ172: 168 | AR172: 24964 | AS172: 1327564
AQ173: 169 | AR173: 25281 | AS173: 1352845
AQ174: 170 | AR174: 25600 | AS174: 1378445
AQ175: 171 | AR175: 25921 | AS175: 1404366
AQ176: 172 | AR176: 26244 | AS176: 1430610
AQ177: 173 | AR177: 26569 | AS177: 1457179
AQ178: 174 | AR178: 26896 | AS178: 1484075
AQ179: 175 | AR179: 27225 | AS179: 1511300
AQ180: 176 | AR180: 27556 | AS180: 1538856
AQ181: 177 | AR181: 27889 | AS181: 1566745
AQ182: 178 | AR182: 28224 | AS182: 1594969
AQ183: 179 | AR183: 28561 | AS183: 1623530
AQ184: 180 | AR184: 28900 | AS184: 1652430
AQ185: 181 | AR185: 29241 | AS185: 1681671
AQ186: 182 | AR186: 29584 | AS186: 1711255
AQ187: 183 | AR187: 29929 | AS187: 1741184
AQ188: 184 | AR188: 30276 | AS188: 1771460
AQ189: 185 | AR189: 30625 | AS189: 1802085
AQ190: 186 | AR190: 30976 | AS190: 1833061
AQ191: 187 | AR191: 31329 | AS191: 1864390
AQ192: 188 | AR192: 31684 | AS192: 1896074
AQ193: 189 | AR193: 32041 | AS193: 1928115
AQ194: 190 | AR194: 32400 | AS194: 1960515
AQ195: 191 | AR195: 32761 | AS195: 1993276
AQ196: 192 | AR196: 33124 | AS196: 2026400
AQ197: 193 | AR197: 33489 | AS197: 2059889
AQ198: 194 | AR198: 33856 | AS198: 2093745
AQ199: 195 | AR199: 34225 | AS199: =+AR199+AS198 -> 2127970
AQ200: 196 | AR200: =+($D$5-AQ200+1)^2 -> 34596 | AS200: 2162566
... 925 more rows

Sheet Salida - Consumos Anuales
A1: PARTE V : | B1: =+'Ingreso - General OCULTO'!A8 -> 0
A2: CONSUMOS ANUALES DE ENERGIA Y POTENCIA
A3: Año | B3: Residencias y Otros Establecimientos | C3: ENERGIA | G3: POTENCIA
C4: Consumo [kWh] | D4: Pérdida [kWh] | E4: Total [kWh] | F4: % Perdida Energía | G4: Consumo [kW] | H4: Pérdida [kW] | I4: Total [kW] | J4: % Perdida Potencia
A5: ='Salida - Consumos Anuales OCULT'!A5 -> 0
A6: ='Salida - Consumos Anuales OCULT'!A6 -> 1 | B6: ='Salida - Consumos Anuales OCULT'!B6 -> 18 | C6: ='Salida - Consumos Anuales OCULT'!C6 -> 6516 | D6: ='Salida - Consumos Anuales OCULT'!D6 -> 3556.486875 | E6: ='Salida - Consumos Anuales OCULT'!E6 -> 10072.48687 | F6: ='Salida - Consumos Anuales OCULT'!F6 -> 0.3530892538 | G6: ='Salida - Consumos Anuales OCULT'!G6 -> 2.415773802 | H6: ='Salida - Consumos Anuales OCULT'!H6 -> 0.4134722311 | I6: ='Salida - Consumos Anuales OCULT'!I6 -> 2.829246034 | J6: ='Salida - Consumos Anuales OCULT'!J6 -> 0.146142197
A7: ='Salida - Consumos Anuales OCULT'!A7 -> 2 | B7: ='Salida - Consumos Anuales OCULT'!B7 -> 18.0936 | C7: ='Salida - Consumos Anuales OCULT'!C7 -> 11464.51715 | D7: ='Salida - Consumos Anuales OCULT'!D7 -> 3569.98148 | E7: ='Salida - Consumos Anuales OCULT'!E7 -> 15034.49863 | F7: ='Salida - Consumos Anuales OCULT'!F7 -> 0.2374526459 | G7: ='Salida - Consumos Anuales OCULT'!G7 -> 3.150744543 | H7: ='Salida - Consumos Anuales OCULT'!H7 -> 0.4192200876 | I7: ='Salida - Consumos Anuales OCULT'!I7 -> 3.56996463 | J7: ='Salida - Consumos Anuales OCULT'!J7 -> 0.1174297594
A8: ='Salida - Consumos Anuales OCULT'!A8 -> 3 | B8: ='Salida - Consumos Anuales OCULT'!B8 -> 18.18768672 | C8: ='Salida - Consumos Anuales OCULT'!C8 -> 14481.50458 | D8: ='Salida - Consumos Anuales OCULT'!D8 -> 3581.276657 | E8: ='Salida - Consumos Anuales OCULT'!E8 -> 18062.78124 | F8: ='Salida - Consumos Anuales OCULT'!F8 -> 0.1982682849 | G8: ='Salida - Consumos Anuales OCULT'!G8 -> 3.650277662 | H8: ='Salida - Consumos Anuales OCULT'!H8 -> 0.4239352644 | I8: ='Salida - Consumos Anuales OCULT'!I8 -> 4.074212926 | J8: ='Salida - Consumos Anuales OCULT'!J8 -> 0.1040532913
A9: ='Salida - Consumos Anuales OCULT'!A9 -> 4 | B9: ='Salida - Consumos Anuales OCULT'!B9 -> 18.28226269 | C9: ='Salida - Consumos Anuales OCULT'!C9 -> 16336.31626 | D9: ='Salida - Consumos Anuales OCULT'!D9 -> 3589.500314 | E9: ='Salida - Consumos Anuales OCULT'!E9 -> 19925.81657 | F9: ='Salida - Consumos Anuales OCULT'!F9 -> 0.1801431977 | G9: ='Salida - Consumos Anuales OCULT'!G9 -> 4.002126858 | H9: ='Salida - Consumos Anuales OCULT'!H9 -> 0.427623875 | I9: ='Salida - Consumos Anuales OCULT'!I9 -> 4.429750734 | J9: ='Salida - Consumos Anuales OCULT'!J9 -> 0.09653452322
A10: ='Salida - Consumos Anuales OCULT'!A10 -> 5 | B10: ='Salida - Consumos Anuales OCULT'!B10 -> 18.37733046 | C10: ='Salida - Consumos Anuales OCULT'!C10 -> 17491.93664 | D10: ='Salida - Consumos Anuales OCULT'!D10 -> 3595.117609 | E10: ='Salida - Consumos Anuales OCULT'!E10 -> 21087.05425 | F10: ='Salida - Consumos Anuales OCULT'!F10 -> 0.1704893232 | G10: ='Salida - Consumos Anuales OCULT'!G10 -> 4.243625426 | H10: ='Salida - Consumos Anuales OCULT'!H10 -> 0.430306495 | I10: ='Salida - Consumos Anuales OCULT'!I10 -> 4.673931921 | J10: ='Salida - Consumos Anuales OCULT'!J10 -> 0.09206520383
A11: ='Salida - Consumos Anuales OCULT'!A11 -> 6 | B11: ='Salida - Consumos Anuales OCULT'!B11 -> 18.47289258 | C11: ='Salida - Consumos Anuales OCULT'!C11 -> 18226.98561 | D11: ='Salida - Consumos Anuales OCULT'!D11 -> 3598.849665 | E11: ='Salida - Consumos Anuales OCULT'!E11 -> 21825.83528 | F11: ='Salida - Consumos Anuales OCULT'!F11 -> 0.1648894358 | G11: ='Salida - Consumos Anuales OCULT'!G11 -> 4.407016633 | H11: ='Salida - Consumos Anuales OCULT'!H11 -> 0.432167117 | I11: ='Salida - Consumos Anuales OCULT'!I11 -> 4.83918375 | J11: ='Salida - Consumos Anuales OCULT'!J11 -> 0.08930578779
A12: ='Salida - Consumos Anuales OCULT'!A12 -> 7 | B12: ='Salida - Consumos Anuales OCULT'!B12 -> 18.56895162 | C12: ='Salida - Consumos Anuales OCULT'!C12 -> 18709.13634 | D12: ='Salida - Consumos Anuales OCULT'!D12 -> 3601.321188 | E12: ='Salida - Consumos Anuales OCULT'!E12 -> 22310.45753 | F12: ='Salida - Consumos Anuales OCULT'!F12 -> 0.1614185268 | G12: ='Salida - Consumos Anuales OCULT'!G12 -> 4.518267418 | H12: ='Salida - Consumos Anuales OCULT'!H12 -> 0.4334331158 | I12: ='Salida - Consumos Anuales OCULT'!I12 -> 4.951700534 | J12: ='Salida - Consumos Anuales OCULT'!J12 -> 0.08753217462
A13: ='Salida - Consumos Anuales OCULT'!A13 -> 8 | B13: ='Salida - Consumos Anuales OCULT'!B13 -> 18.66551017 | C13: ='Salida - Consumos Anuales OCULT'!C13 -> 19039.29583 | D13: ='Salida - Consumos Anuales OCULT'!D13 -> 3602.986288 | E13: ='Salida - Consumos Anuales OCULT'!E13 -> 22642.28212 | F13: ='Salida - Consumos Anuales OCULT'!F13 -> 0.1591264639 | G13: ='Salida - Consumos Anuales OCULT'!G13 -> 4.596112403 | H13: ='Salida - Consumos Anuales OCULT'!H13 -> 0.4343000004 | I13: ='Salida - Consumos Anuales OCULT'!I13 -> 5.030412403 | J13: ='Salida - Consumos Anuales OCULT'!J13 -> 0.0863348699
A14: ='Salida - Consumos Anuales OCULT'!A14 -> 9 | B14: ='Salida - Consumos Anuales OCULT'!B14 -> 18.76257082 | C14: ='Salida - Consumos Anuales OCULT'!C14 -> 19278.19174 | D14: ='Salida - Consumos Anuales OCULT'!D14 -> 3604.148903 | E14: ='Salida - Consumos Anuales OCULT'!E14 -> 22882.34064 | F14: ='Salida - Consumos Anuales OCULT'!F14 -> 0.1575078773 | G14: ='Salida - Consumos Anuales OCULT'!G14 -> 4.653115105 | H14: ='Salida - Consumos Anuales OCULT'!H14 -> 0.4349109629 | I14: ='Salida - Consumos Anuales OCULT'!I14 -> 5.088026067 | J14: ='Salida - Consumos Anuales OCULT'!J14 -> 0.08547734566
A15: ='Salida - Consumos Anuales OCULT'!A15 -> 10 | B15: ='Salida - Consumos Anuales OCULT'!B15 -> 18.86013619 | C15: ='Salida - Consumos Anuales OCULT'!C15 -> 19462.37184 | D15: ='Salida - Consumos Anuales OCULT'!D15 -> 3605.003627 | E15: ='Salida - Consumos Anuales OCULT'!E15 -> 23067.37546 | F15: ='Salida - Consumos Anuales OCULT'!F15 -> 0.1562814822 | G15: ='Salida - Consumos Anuales OCULT'!G15 -> 4.697335053 | H15: ='Salida - Consumos Anuales OCULT'!H15 -> 0.4353624321 | I15: ='Salida - Consumos Anuales OCULT'!I15 -> 5.132697485 | J15: ='Salida - Consumos Anuales OCULT'!J15 -> 0.08482136993
A16: ='Salida - Consumos Anuales OCULT'!A16 -> 11 | B16: ='Salida - Consumos Anuales OCULT'!B16 -> 18.95820889 | C16: ='Salida - Consumos Anuales OCULT'!C16 -> 19613.83235 | D16: ='Salida - Consumos Anuales OCULT'!D16 -> 3605.671961 | E16: ='Salida - Consumos Anuales OCULT'!E16 -> 23219.50431 | F16: ='Salida - Consumos Anuales OCULT'!F16 -> 0.1552863452 | G16: ='Salida - Consumos Anuales OCULT'!G16 -> 4.733808105 | H16: ='Salida - Consumos Anuales OCULT'!H16 -> 0.4357163805 | I16: ='Salida - Consumos Anuales OCULT'!I16 -> 5.169524485 | J16: ='Salida - Consumos Anuales OCULT'!J16 -> 0.08428558211
A17: ='Salida - Consumos Anuales OCULT'!A17 -> 12 | B17: ='Salida - Consumos Anuales OCULT'!B17 -> 19.05679158 | C17: ='Salida - Consumos Anuales OCULT'!C17 -> 19745.81221 | D17: ='Salida - Consumos Anuales OCULT'!D17 -> 3606.228676 | E17: ='Salida - Consumos Anuales OCULT'!E17 -> 23352.04089 | F17: ='Salida - Consumos Anuales OCULT'!F17 -> 0.1544288438 | G17: ='Salida - Consumos Anuales OCULT'!G17 -> 4.765632469 | H17: ='Salida - Consumos Anuales OCULT'!H17 -> 0.4360115872 | I17: ='Salida - Consumos Anuales OCULT'!I17 -> 5.201644056 | J17: ='Salida - Consumos Anuales OCULT'!J17 -> 0.08382188065
A18: ='Salida - Consumos Anuales OCULT'!A18 -> 13 | B18: ='Salida - Consumos Anuales OCULT'!B18 -> 19.1558869 | C18: ='Salida - Consumos Anuales OCULT'!C18 -> 19866.28011 | D18: ='Salida - Consumos Anuales OCULT'!D18 -> 3606.719404 | E18: ='Salida - Consumos Anuales OCULT'!E18 -> 23472.99951 | F18: ='Salida - Consumos Anuales OCULT'!F18 -> 0.1536539632 | G18: ='Salida - Consumos Anuales OCULT'!G18 -> 4.79469708 | H18: ='Salida - Consumos Anuales OCULT'!H18 -> 0.4362719482 | I18: ='Salida - Consumos Anuales OCULT'!I18 -> 5.230969029 | J18: ='Salida - Consumos Anuales OCULT'!J18 -> 0.0834017456
A19: ='Salida - Consumos Anuales OCULT'!A19 -> 14 | B19: ='Salida - Consumos Anuales OCULT'!B19 -> 19.25549751 | C19: ='Salida - Consumos Anuales OCULT'!C19 -> 19980.03297 | D19: ='Salida - Consumos Anuales OCULT'!D19 -> 3607.17186 | E19: ='Salida - Consumos Anuales OCULT'!E19 -> 23587.20483 | F19: ='Salida - Consumos Anuales OCULT'!F19 -> 0.1529291786 | G19: ='Salida - Consumos Anuales OCULT'!G19 -> 4.822147584 | H19: ='Salida - Consumos Anuales OCULT'!H19 -> 0.4365120587 | I19: ='Salida - Consumos Anuales OCULT'!I19 -> 5.258659643 | J19: ='Salida - Consumos Anuales OCULT'!J19 -> 0.08300823562
A20: ='Salida - Consumos Anuales OCULT'!A20 -> 15 | B20: ='Salida - Consumos Anuales OCULT'!B20 -> 19.3556261 | C20: ='Salida - Consumos Anuales OCULT'!C20 -> 20089.95888 | D20: ='Salida - Consumos Anuales OCULT'!D20 -> 3607.602836 | E20: ='Salida - Consumos Anuales OCULT'!E20 -> 23697.56172 | F20: ='Salida - Consumos Anuales OCULT'!F20 -> 0.1522351911 | G20: ='Salida - Consumos Anuales OCULT'!G20 -> 4.848676763 | H20: ='Salida - Consumos Anuales OCULT'!H20 -> 0.43674079 | I20: ='Salida - Consumos Anuales OCULT'!I20 -> 5.285417553 | J20: ='Salida - Consumos Anuales OCULT'!J20 -> 0.08263127475
A21: ='Salida - Consumos Anuales OCULT'!A21 -> 16 | B21: ='Salida - Consumos Anuales OCULT'!B21 -> 19.45627535 | C21: ='Salida - Consumos Anuales OCULT'!C21 -> 20197.79713 | D21: ='Salida - Consumos Anuales OCULT'!D21 -> 3608.022491 | E21: ='Salida - Consumos Anuales OCULT'!E21 -> 23805.81962 | F21: ='Salida - Consumos Anuales OCULT'!F21 -> 0.1515605238 | G21: ='Salida - Consumos Anuales OCULT'!G21 -> 4.874702897 | H21: ='Salida - Consumos Anuales OCULT'!H21 -> 0.4369635208 | I21: ='Salida - Consumos Anuales OCULT'!I21 -> 5.311666418 | J21: ='Salida - Consumos Anuales OCULT'!J21 -> 0.08226486501
A22: ='Salida - Consumos Anuales OCULT'!A22 -> 17 | B22: ='Salida - Consumos Anuales OCULT'!B22 -> 19.55744798 | C22: ='Salida - Consumos Anuales OCULT'!C22 -> 20304.59563 | D22: ='Salida - Consumos Anuales OCULT'!D22 -> 3608.436976 | E22: ='Salida - Consumos Anuales OCULT'!E22 -> 23913.03261 | F22: ='Salida - Consumos Anuales OCULT'!F22 -> 0.1508983421 | G22: ='Salida - Consumos Anuales OCULT'!G22 -> 4.900478373 | H22: ='Salida - Consumos Anuales OCULT'!H22 -> 0.4371835102 | I22: ='Salida - Consumos Anuales OCULT'!I22 -> 5.337661883 | J22: ='Salida - Consumos Anuales OCULT'!J22 -> 0.08190543346
A23: ='Salida - Consumos Anuales OCULT'!A23 -> 18 | B23: ='Salida - Consumos Anuales OCULT'!B23 -> 19.65914671 | C23: ='Salida - Consumos Anuales OCULT'!C23 -> 20410.9862 | D23: ='Salida - Consumos Anuales OCULT'!D23 -> 3608.850017 | E23: ='Salida - Consumos Anuales OCULT'!E23 -> 24019.83622 | F23: ='Salida - Consumos Anuales OCULT'!F23 -> 0.1502445722 | G23: ='Salida - Consumos Anuales OCULT'!G23 -> 4.926155495 | H23: ='Salida - Consumos Anuales OCULT'!H23 -> 0.4374027344 | I23: ='Salida - Consumos Anuales OCULT'!I23 -> 5.36355823 | J23: ='Salida - Consumos Anuales OCULT'!J23 -> 0.08155085033
A24: ='Salida - Consumos Anuales OCULT'!A24 -> 19 | B24: ='Salida - Consumos Anuales OCULT'!B24 -> 19.76137428 | C24: ='Salida - Consumos Anuales OCULT'!C24 -> 20517.35023 | D24: ='Salida - Consumos Anuales OCULT'!D24 -> 3609.26388 | E24: ='Salida - Consumos Anuales OCULT'!E24 -> 24126.61411 | F24: ='Salida - Consumos Anuales OCULT'!F24 -> 0.149596784 | G24: ='Salida - Consumos Anuales OCULT'!G24 -> 4.951826247 | H24: ='Salida - Consumos Anuales OCULT'!H24 -> 0.4376223948 | I24: ='Salida - Consumos Anuales OCULT'!I24 -> 5.389448642 | J24: ='Salida - Consumos Anuales OCULT'!J24 -> 0.08119984507
A25: ='Salida - Consumos Anuales OCULT'!A25 -> 20 | B25: ='Salida - Consumos Anuales OCULT'!B25 -> 19.86413342 | C25: ='Salida - Consumos Anuales OCULT'!C25 -> 20623.91841 | D25: ='Salida - Consumos Anuales OCULT'!D25 -> 3609.679946 | E25: ='Salida - Consumos Anuales OCULT'!E25 -> 24233.59836 | F25: ='Salida - Consumos Anuales OCULT'!F25 -> 0.148953527 | G25: ='Salida - Consumos Anuales OCULT'!G25 -> 4.977546282 | H25: ='Salida - Consumos Anuales OCULT'!H25 -> 0.4378432249 | I25: ='Salida - Consumos Anuales OCULT'!I25 -> 5.415389506 | J25: ='Salida - Consumos Anuales OCULT'!J25 -> 0.08085165884
A26: ='Salida - Consumos Anuales OCULT'!A26 -> 21 | B26: ='Salida - Consumos Anuales OCULT'!B26 -> 19.96742692 | C26: ='Salida - Consumos Anuales OCULT'!C26 -> 20730.83072 | D26: ='Salida - Consumos Anuales OCULT'!D26 -> 3610.099068 | E26: ='Salida - Consumos Anuales OCULT'!E26 -> 24340.92979 | F26: ='Salida - Consumos Anuales OCULT'!F26 -> 0.1483139346 | G26: ='Salida - Consumos Anuales OCULT'!G26 -> 5.003349376 | H26: ='Salida - Consumos Anuales OCULT'!H26 -> 0.4380656765 | I26: ='Salida - Consumos Anuales OCULT'!I26 -> 5.441415053 | J26: ='Salida - Consumos Anuales OCULT'!J26 -> 0.08050583759
A27: ='Salida - Consumos Anuales OCULT'!A27 -> 22 | B27: ='Salida - Consumos Anuales OCULT'!B27 -> 20.07125754 | C27: ='Salida - Consumos Anuales OCULT'!C27 -> 20838.17256 | D27: ='Salida - Consumos Anuales OCULT'!D27 -> 3610.521775 | E27: ='Salida - Consumos Anuales OCULT'!E27 -> 24448.69434 | F27: ='Salida - Consumos Anuales OCULT'!F27 -> 0.1476774884 | G27: ='Salida - Consumos Anuales OCULT'!G27 -> 5.02925614 | H27: ='Salida - Consumos Anuales OCULT'!H27 -> 0.4382900315 | I27: ='Salida - Consumos Anuales OCULT'!I27 -> 5.467546171 | J27: ='Salida - Consumos Anuales OCULT'!J27 -> 0.08016210888
A28: ='Salida - Consumos Anuales OCULT'!A28 -> 23 | B28: ='Salida - Consumos Anuales OCULT'!B28 -> 20.17562807 | C28: ='Salida - Consumos Anuales OCULT'!C28 -> 20945.9965 | D28: ='Salida - Consumos Anuales OCULT'!D28 -> 3610.948407 | E28: ='Salida - Consumos Anuales OCULT'!E28 -> 24556.94491 | F28: ='Salida - Consumos Anuales OCULT'!F28 -> 0.1470438778 | G28: ='Salida - Consumos Anuales OCULT'!G28 -> 5.055279257 | H28: ='Salida - Consumos Anuales OCULT'!H28 -> 0.4385164694 | I28: ='Salida - Consumos Anuales OCULT'!I28 -> 5.493795727 | J28: ='Salida - Consumos Anuales OCULT'!J28 -> 0.07982030843
A29: ='Salida - Consumos Anuales OCULT'!A29 -> 24 | B29: ='Salida - Consumos Anuales OCULT'!B29 -> 20.28054134 | C29: ='Salida - Consumos Anuales OCULT'!C29 -> 21054.33534 | D29: ='Salida - Consumos Anuales OCULT'!D29 -> 3611.379185 | E29: ='Salida - Consumos Anuales OCULT'!E29 -> 24665.71452 | F29: ='Salida - Consumos Anuales OCULT'!F29 -> 0.1464129159 | G29: ='Salida - Consumos Anuales OCULT'!G29 -> 5.081426643 | H29: ='Salida - Consumos Anuales OCULT'!H29 -> 0.4387451079 | I29: ='Salida - Consumos Anuales OCULT'!I29 -> 5.520171751 | J29: ='Salida - Consumos Anuales OCULT'!J29 -> 0.07948033643
A30: ='Salida - Consumos Anuales OCULT'!A30 -> 25 | B30: ='Salida - Consumos Anuales OCULT'!B30 -> 20.38600016 | C30: ='Salida - Consumos Anuales OCULT'!C30 -> 21163.20997 | D30: ='Salida - Consumos Anuales OCULT'!D30 -> 3611.814262 | E30: ='Salida - Consumos Anuales OCULT'!E30 -> 24775.02423 | F30: ='Salida - Consumos Anuales OCULT'!F30 -> 0.1457844896 | G30: ='Salida - Consumos Anuales OCULT'!G30 -> 5.107703343 | H30: ='Salida - Consumos Anuales OCULT'!H30 -> 0.4389760281 | I30: ='Salida - Consumos Anuales OCULT'!I30 -> 5.546679371 | J30: ='Salida - Consumos Anuales OCULT'!J30 -> 0.07914213148
A31: ='Salida - Consumos Anuales OCULT'!A31 -> 26 | B31: ='Salida - Consumos Anuales OCULT'!B31 -> 20.49200736 | C31: ='Salida - Consumos Anuales OCULT'!C31 -> 21272.63416 | D31: ='Salida - Consumos Anuales OCULT'!D31 -> 3612.253748 | E31: ='Salida - Consumos Anuales OCULT'!E31 -> 24884.8879 | F31: ='Salida - Consumos Anuales OCULT'!F31 -> 0.14515853 | G31: ='Salida - Consumos Anuales OCULT'!G31 -> 5.134112678 | H31: ='Salida - Consumos Anuales OCULT'!H31 -> 0.4392092884 | I31: ='Salida - Consumos Anuales OCULT'!I31 -> 5.573321966 | J31: ='Salida - Consumos Anuales OCULT'!J31 -> 0.07880565506
A32: ='Salida - Consumos Anuales OCULT'!A32 -> 27 | B32: ='Salida - Consumos Anuales OCULT'!B32 -> 20.59856579 | C32: ='Salida - Consumos Anuales OCULT'!C32 -> 21382.61737 | D32: ='Salida - Consumos Anuales OCULT'!D32 -> 3612.697728 | E32: ='Salida - Consumos Anuales OCULT'!E32 -> 24995.3151 | F32: ='Salida - Consumos Anuales OCULT'!F32 -> 0.1445349944 | G32: ='Salida - Consumos Anuales OCULT'!G32 -> 5.160656931 | H32: ='Salida - Consumos Anuales OCULT'!H32 -> 0.4394449343 | I32: ='Salida - Consumos Anuales OCULT'!I32 -> 5.600101866 | J32: ='Salida - Consumos Anuales OCULT'!J32 -> 0.07847088228
A33: ='Salida - Consumos Anuales OCULT'!A33 -> 28 | B33: ='Salida - Consumos Anuales OCULT'!B33 -> 20.70567834 | C33: ='Salida - Consumos Anuales OCULT'!C33 -> 21493.16648 | D33: ='Salida - Consumos Anuales OCULT'!D33 -> 3613.146274 | E33: ='Salida - Consumos Anuales OCULT'!E33 -> 25106.31276 | F33: ='Salida - Consumos Anuales OCULT'!F33 -> 0.1439138558 | G33: ='Salida - Consumos Anuales OCULT'!G33 -> 5.187337765 | H33: ='Salida - Consumos Anuales OCULT'!H33 -> 0.4396830031 | I33: ='Salida - Consumos Anuales OCULT'!I33 -> 5.627020768 | J33: ='Salida - Consumos Anuales OCULT'!J33 -> 0.0781377964
A34: ='Salida - Consumos Anuales OCULT'!A34 -> 29 | B34: ='Salida - Consumos Anuales OCULT'!B34 -> 20.81334786 | C34: ='Salida - Consumos Anuales OCULT'!C34 -> 21604.28683 | D34: ='Salida - Consumos Anuales OCULT'!D34 -> 3613.599447 | E34: ='Salida - Consumos Anuales OCULT'!E34 -> 25217.88628 | F34: ='Salida - Consumos Anuales OCULT'!F34 -> 0.1432950964 | G34: ='Salida - Consumos Anuales OCULT'!G34 -> 5.214156465 | H34: ='Salida - Consumos Anuales OCULT'!H34 -> 0.4399235277 | I34: ='Salida - Consumos Anuales OCULT'!I34 -> 5.654079993 | J34: ='Salida - Consumos Anuales OCULT'!J34 -> 0.07780638553
A35: ='Salida - Consumos Anuales OCULT'!A35 -> 30 | B35: ='Salida - Consumos Anuales OCULT'!B35 -> 20.92157727 | C35: ='Salida - Consumos Anuales OCULT'!C35 -> 21715.98283 | D35: ='Salida - Consumos Anuales OCULT'!D35 -> 3614.057303 | E35: ='Salida - Consumos Anuales OCULT'!E35 -> 25330.04013 | F35: ='Salida - Consumos Anuales OCULT'!F35 -> 0.1426787042 | G35: ='Salida - Consumos Anuales OCULT'!G35 -> 5.241114097 | H35: ='Salida - Consumos Anuales OCULT'!H35 -> 0.4401665381 | I35: ='Salida - Consumos Anuales OCULT'!I35 -> 5.681280636 | J35: ='Salida - Consumos Anuales OCULT'!J35 -> 0.07747664064
A38: =+'Ingreso - General OCULTO'!A41:D41 -> Planilla de Evaluación Ministerio de Desarrollo Social - Versión 2016

Sheet Salida - Consumos Anuales OCULT (hidden)
A1: PARTE V : | B1: =+'Ingreso - General OCULTO'!A8 -> 0
A2: CONSUMOS ANUALES DE ENERGIA Y POTENCIA
A3: Año | B3: Residencias y Otros Establecimientos | C3: ENERGIA | G3: POTENCIA
C4: Consumo [kWh] | D4: Pérdida [kWh] | E4: Total [kWh] | F4: % Perdida Energía | G4: Consumo [kW] | H4: Pérdida [kW] | I4: Total [kW] | J4: % Perdida Potencia
A5: 0
A6: 1 | B6: ='Calculo - Consumo'!AF6+'Calculo - Consumo'!AH6 -> 18 | C6: ='Calculo - Consumo'!AM6 -> 6516 | D6: =+'Calculo - Pérdidas'!AN5 -> 3556.486875 | E6: =+C6+D6 -> 10072.48687 | F6: =+D6/E6 -> 0.3530892538 | G6: =+'Ingreso - General OCULTO'!$D$38*(B6*(1+'Ingreso - Consumo OCULTO'!$D$39)*'Calculo - Pérdidas'!H5/1000+'Ingreso - Consumo OCULTO'!$D$37) -> 2.415773802 | H6: =+'Calculo - Pérdidas'!AO5 -> 0.4134722311 | I6: =+G6+H6 -> 2.829246034 | J6: =+H6/I6 -> 0.146142197
A7: 2 | B7: ='Calculo - Consumo'!AF7+'Calculo - Consumo'!AH7 -> 18.0936 | C7: ='Calculo - Consumo'!AM7 -> 11464.51715 | D7: =+'Calculo - Pérdidas'!AN6 -> 3569.98148 | E7: =+C7+D7 -> 15034.49863 | F7: =+D7/E7 -> 0.2374526459 | G7: =+'Ingreso - General OCULTO'!$D$38*(B7*(1+'Ingreso - Consumo OCULTO'!$D$39)*'Calculo - Pérdidas'!H6/1000+'Ingreso - Consumo OCULTO'!$D$37) -> 3.150744543 | H7: =+'Calculo - Pérdidas'!AO6 -> 0.4192200876 | I7: 3.56996463 | J7: =+H7/I7 -> 0.1174297594
A8: 3 | B8: ='Calculo - Consumo'!AF8+'Calculo - Consumo'!AH8 -> 18.18768672 | C8: ='Calculo - Consumo'!AM8 -> 14481.50458 | D8: =+'Calculo - Pérdidas'!AN7 -> 3581.276657 | E8: 18062.78124 | F8: 0.1982682849 | G8: =+'Ingreso - General OCULTO'!$D$38*(B8*(1+'Ingreso - Consumo OCULTO'!$D$39)*'Calculo - Pérdidas'!H7/1000+'Ingreso - Consumo OCULTO'!$D$37) -> 3.650277662 | H8: =+'Calculo - Pérdidas'!AO7 -> 0.4239352644 | I8: 4.074212926 | J8: 0.1040532913
A9: 4 | B9: ='Calculo - Consumo'!AF9+'Calculo - Consumo'!AH9 -> 18.28226269 | C9: ='Calculo - Consumo'!AM9 -> 16336.31626 | D9: =+'Calculo - Pérdidas'!AN8 -> 3589.500314 | E9: 19925.81657 | F9: 0.1801431977 | G9: =+'Ingreso - General OCULTO'!$D$38*(B9*(1+'Ingreso - Consumo OCULTO'!$D$39)*'Calculo - Pérdidas'!H8/1000+'Ingreso - Consumo OCULTO'!$D$37) -> 4.002126858 | H9: =+'Calculo - Pérdidas'!AO8 -> 0.427623875 | I9: 4.429750734 | J9: 0.09653452322
A10: 5 | B10: ='Calculo - Consumo'!AF10+'Calculo - Consumo'!AH10 -> 18.37733046 | C10: ='Calculo - Consumo'!AM10 -> 17491.93664 | D10: =+'Calculo - Pérdidas'!AN9 -> 3595.117609 | E10: 21087.05425 | F10: 0.1704893232 | G10: =+'Ingreso - General OCULTO'!$D$38*(B10*(1+'Ingreso - Consumo OCULTO'!$D$39)*'Calculo - Pérdidas'!H9/1000+'Ingreso - Consumo OCULTO'!$D$37) -> 4.243625426 | H10: =+'Calculo - Pérdidas'!AO9 -> 0.430306495 | I10: 4.673931921 | J10: 0.09206520383
A11: 6 | B11: ='Calculo - Consumo'!AF11+'Calculo - Consumo'!AH11 -> 18.47289258 | C11: ='Calculo - Consumo'!AM11 -> 18226.98561 | D11: =+'Calculo - Pérdidas'!AN10 -> 3598.849665 | E11: 21825.83528 | F11: 0.1648894358 | G11: =+'Ingreso - General OCULTO'!$D$38*(B11*(1+'Ingreso - Consumo OCULTO'!$D$39)*'Calculo - Pérdidas'!H10/1000+'Ingreso - Consumo OCULTO'!$D$37) -> 4.407016633 | H11: =+'Calculo - Pérdidas'!AO10 -> 0.432167117 | I11: 4.83918375 | J11: 0.08930578779
A12: 7 | B12: ='Calculo - Consumo'!AF12+'Calculo - Consumo'!AH12 -> 18.56895162 | C12: ='Calculo - Consumo'!AM12 -> 18709.13634 | D12: =+'Calculo - Pérdidas'!AN11 -> 3601.321188 | E12: 22310.45753 | F12: 0.1614185268 | G12: =+'Ingreso - General OCULTO'!$D$38*(B12*(1+'Ingreso - Consumo OCULTO'!$D$39)*'Calculo - Pérdidas'!H11/1000+'Ingreso - Consumo OCULTO'!$D$37) -> 4.518267418 | H12: =+'Calculo - Pérdidas'!AO11 -> 0.4334331158 | I12: 4.951700534 | J12: 0.08753217462
A13: 8 | B13: ='Calculo - Consumo'!AF13+'Calculo - Consumo'!AH13 -> 18.66551017 | C13: ='Calculo - Consumo'!AM13 -> 19039.29583 | D13: =+'Calculo - Pérdidas'!AN12 -> 3602.986288 | E13: 22642.28212 | F13: 0.1591264639 | G13: =+'Ingreso - General OCULTO'!$D$38*(B13*(1+'Ingreso - Consumo OCULTO'!$D$39)*'Calculo - Pérdidas'!H12/1000+'Ingreso - Consumo OCULTO'!$D$37) -> 4.596112403 | H13: =+'Calculo - Pérdidas'!AO12 -> 0.4343000004 | I13: 5.030412403 | J13: 0.0863348699
A14: 9 | B14: ='Calculo - Consumo'!AF14+'Calculo - Consumo'!AH14 -> 18.76257082 | C14: ='Calculo - Consumo'!AM14 -> 19278.19174 | D14: =+'Calculo - Pérdidas'!AN13 -> 3604.148903 | E14: 22882.34064 | F14: 0.1575078773 | G14: =+'Ingreso - General OCULTO'!$D$38*(B14*(1+'Ingreso - Consumo OCULTO'!$D$39)*'Calculo - Pérdidas'!H13/1000+'Ingreso - Consumo OCULTO'!$D$37) -> 4.653115105 | H14: =+'Calculo - Pérdidas'!AO13 -> 0.4349109629 | I14: 5.088026067 | J14: 0.08547734566
A15: 10 | B15: ='Calculo - Consumo'!AF15+'Calculo - Consumo'!AH15 -> 18.86013619 | C15: ='Calculo - Consumo'!AM15 -> 19462.37184 | D15: =+'Calculo - Pérdidas'!AN14 -> 3605.003627 | E15: 23067.37546 | F15: 0.1562814822 | G15: =+'Ingreso - General OCULTO'!$D$38*(B15*(1+'Ingreso - Consumo OCULTO'!$D$39)*'Calculo - Pérdidas'!H14/1000+'Ingreso - Consumo OCULTO'!$D$37) -> 4.697335053 | H15: =+'Calculo - Pérdidas'!AO14 -> 0.4353624321 | I15: 5.132697485 | J15: 0.08482136993
A16: 11 | B16: ='Calculo - Consumo'!AF16+'Calculo - Consumo'!AH16 -> 18.95820889 | C16: ='Calculo - Consumo'!AM16 -> 19613.83235 | D16: =+'Calculo - Pérdidas'!AN15 -> 3605.671961 | E16: 23219.50431 | F16: 0.1552863452 | G16: =+'Ingreso - General OCULTO'!$D$38*(B16*(1+'Ingreso - Consumo OCULTO'!$D$39)*'Calculo - Pérdidas'!H15/1000+'Ingreso - Consumo OCULTO'!$D$37) -> 4.733808105 | H16: =+'Calculo - Pérdidas'!AO15 -> 0.4357163805 | I16: 5.169524485 | J16: 0.08428558211
A17: 12 | B17: ='Calculo - Consumo'!AF17+'Calculo - Consumo'!AH17 -> 19.05679158 | C17: ='Calculo - Consumo'!AM17 -> 19745.81221 | D17: =+'Calculo - Pérdidas'!AN16 -> 3606.228676 | E17: 23352.04089 | F17: 0.1544288438 | G17: =+'Ingreso - General OCULTO'!$D$38*(B17*(1+'Ingreso - Consumo OCULTO'!$D$39)*'Calculo - Pérdidas'!H16/1000+'Ingreso - Consumo OCULTO'!$D$37) -> 4.765632469 | H17: =+'Calculo - Pérdidas'!AO16 -> 0.4360115872 | I17: 5.201644056 | J17: 0.08382188065
A18: 13 | B18: ='Calculo - Consumo'!AF18+'Calculo - Consumo'!AH18 -> 19.1558869 | C18: ='Calculo - Consumo'!AM18 -> 19866.28011 | D18: =+'Calculo - Pérdidas'!AN17 -> 3606.719404 | E18: 23472.99951 | F18: 0.1536539632 | G18: =+'Ingreso - General OCULTO'!$D$38*(B18*(1+'Ingreso - Consumo OCULTO'!$D$39)*'Calculo - Pérdidas'!H17/1000+'Ingreso - Consumo OCULTO'!$D$37) -> 4.79469708 | H18: =+'Calculo - Pérdidas'!AO17 -> 0.4362719482 | I18: 5.230969029 | J18: 0.0834017456
A19: 14 | B19: ='Calculo - Consumo'!AF19+'Calculo - Consumo'!AH19 -> 19.25549751 | C19: ='Calculo - Consumo'!AM19 -> 19980.03297 | D19: =+'Calculo - Pérdidas'!AN18 -> 3607.17186 | E19: 23587.20483 | F19: 0.1529291786 | G19: =+'Ingreso - General OCULTO'!$D$38*(B19*(1+'Ingreso - Consumo OCULTO'!$D$39)*'Calculo - Pérdidas'!H18/1000+'Ingreso - Consumo OCULTO'!$D$37) -> 4.822147584 | H19: =+'Calculo - Pérdidas'!AO18 -> 0.4365120587 | I19: 5.258659643 | J19: 0.08300823562
A20: 15 | B20: ='Calculo - Consumo'!AF20+'Calculo - Consumo'!AH20 -> 19.3556261 | C20: ='Calculo - Consumo'!AM20 -> 20089.95888 | D20: =+'Calculo - Pérdidas'!AN19 -> 3607.602836 | E20: 23697.56172 | F20: 0.1522351911 | G20: =+'Ingreso - General OCULTO'!$D$38*(B20*(1+'Ingreso - Consumo OCULTO'!$D$39)*'Calculo - Pérdidas'!H19/1000+'Ingreso - Consumo OCULTO'!$D$37) -> 4.848676763 | H20: =+'Calculo - Pérdidas'!AO19 -> 0.43674079 | I20: 5.285417553 | J20: 0.08263127475
A21: 16 | B21: ='Calculo - Consumo'!AF21+'Calculo - Consumo'!AH21 -> 19.45627535 | C21: ='Calculo - Consumo'!AM21 -> 20197.79713 | D21: =+'Calculo - Pérdidas'!AN20 -> 3608.022491 | E21: 23805.81962 | F21: 0.1515605238 | G21: =+'Ingreso - General OCULTO'!$D$38*(B21*(1+'Ingreso - Consumo OCULTO'!$D$39)*'Calculo - Pérdidas'!H20/1000+'Ingreso - Consumo OCULTO'!$D$37) -> 4.874702897 | H21: =+'Calculo - Pérdidas'!AO20 -> 0.4369635208 | I21: 5.311666418 | J21: 0.08226486501
A22: 17 | B22: ='Calculo - Consumo'!AF22+'Calculo - Consumo'!AH22 -> 19.55744798 | C22: ='Calculo - Consumo'!AM22 -> 20304.59563 | D22: =+'Calculo - Pérdidas'!AN21 -> 3608.436976 | E22: 23913.03261 | F22: 0.1508983421 | G22: =+'Ingreso - General OCULTO'!$D$38*(B22*(1+'Ingreso - Consumo OCULTO'!$D$39)*'Calculo - Pérdidas'!H21/1000+'Ingreso - Consumo OCULTO'!$D$37) -> 4.900478373 | H22: =+'Calculo - Pérdidas'!AO21 -> 0.4371835102 | I22: 5.337661883 | J22: 0.08190543346
A23: 18 | B23: ='Calculo - Consumo'!AF23+'Calculo - Consumo'!AH23 -> 19.65914671 | C23: ='Calculo - Consumo'!AM23 -> 20410.9862 | D23: =+'Calculo - Pérdidas'!AN22 -> 3608.850017 | E23: 24019.83622 | F23: 0.1502445722 | G23: =+'Ingreso - General OCULTO'!$D$38*(B23*(1+'Ingreso - Consumo OCULTO'!$D$39)*'Calculo - Pérdidas'!H22/1000+'Ingreso - Consumo OCULTO'!$D$37) -> 4.926155495 | H23: =+'Calculo - Pérdidas'!AO22 -> 0.4374027344 | I23: 5.36355823 | J23: 0.08155085033
A24: 19 | B24: ='Calculo - Consumo'!AF24+'Calculo - Consumo'!AH24 -> 19.76137428 | C24: ='Calculo - Consumo'!AM24 -> 20517.35023 | D24: =+'Calculo - Pérdidas'!AN23 -> 3609.26388 | E24: 24126.61411 | F24: 0.149596784 | G24: =+'Ingreso - General OCULTO'!$D$38*(B24*(1+'Ingreso - Consumo OCULTO'!$D$39)*'Calculo - Pérdidas'!H23/1000+'Ingreso - Consumo OCULTO'!$D$37) -> 4.951826247 | H24: =+'Calculo - Pérdidas'!AO23 -> 0.4376223948 | I24: 5.389448642 | J24: 0.08119984507
A25: 20 | B25: ='Calculo - Consumo'!AF25+'Calculo - Consumo'!AH25 -> 19.86413342 | C25: ='Calculo - Consumo'!AM25 -> 20623.91841 | D25: =+'Calculo - Pérdidas'!AN24 -> 3609.679946 | E25: 24233.59836 | F25: 0.148953527 | G25: =+'Ingreso - General OCULTO'!$D$38*(B25*(1+'Ingreso - Consumo OCULTO'!$D$39)*'Calculo - Pérdidas'!H24/1000+'Ingreso - Consumo OCULTO'!$D$37) -> 4.977546282 | H25: =+'Calculo - Pérdidas'!AO24 -> 0.4378432249 | I25: 5.415389506 | J25: 0.08085165884
A26: 21 | B26: ='Calculo - Consumo'!AF26+'Calculo - Consumo'!AH26 -> 19.96742692 | C26: ='Calculo - Consumo'!AM26 -> 20730.83072 | D26: =+'Calculo - Pérdidas'!AN25 -> 3610.099068 | E26: 24340.92979 | F26: 0.1483139346 | G26: =+'Ingreso - General OCULTO'!$D$38*(B26*(1+'Ingreso - Consumo OCULTO'!$D$39)*'Calculo - Pérdidas'!H25/1000+'Ingreso - Consumo OCULTO'!$D$37) -> 5.003349376 | H26: =+'Calculo - Pérdidas'!AO25 -> 0.4380656765 | I26: 5.441415053 | J26: 0.08050583759
A27: 22 | B27: ='Calculo - Consumo'!AF27+'Calculo - Consumo'!AH27 -> 20.07125754 | C27: ='Calculo - Consumo'!AM27 -> 20838.17256 | D27: =+'Calculo - Pérdidas'!AN26 -> 3610.521775 | E27: 24448.69434 | F27: 0.1476774884 | G27: =+'Ingreso - General OCULTO'!$D$38*(B27*(1+'Ingreso - Consumo OCULTO'!$D$39)*'Calculo - Pérdidas'!H26/1000+'Ingreso - Consumo OCULTO'!$D$37) -> 5.02925614 | H27: =+'Calculo - Pérdidas'!AO26 -> 0.4382900315 | I27: 5.467546171 | J27: 0.08016210888
A28: 23 | B28: ='Calculo - Consumo'!AF28+'Calculo - Consumo'!AH28 -> 20.17562807 | C28: ='Calculo - Consumo'!AM28 -> 20945.9965 | D28: =+'Calculo - Pérdidas'!AN27 -> 3610.948407 | E28: 24556.94491 | F28: 0.1470438778 | G28: =+'Ingreso - General OCULTO'!$D$38*(B28*(1+'Ingreso - Consumo OCULTO'!$D$39)*'Calculo - Pérdidas'!H27/1000+'Ingreso - Consumo OCULTO'!$D$37) -> 5.055279257 | H28: =+'Calculo - Pérdidas'!AO27 -> 0.4385164694 | I28: 5.493795727 | J28: 0.07982030843
A29: 24 | B29: ='Calculo - Consumo'!AF29+'Calculo - Consumo'!AH29 -> 20.28054134 | C29: ='Calculo - Consumo'!AM29 -> 21054.33534 | D29: =+'Calculo - Pérdidas'!AN28 -> 3611.379185 | E29: 24665.71452 | F29: 0.1464129159 | G29: =+'Ingreso - General OCULTO'!$D$38*(B29*(1+'Ingreso - Consumo OCULTO'!$D$39)*'Calculo - Pérdidas'!H28/1000+'Ingreso - Consumo OCULTO'!$D$37) -> 5.081426643 | H29: =+'Calculo - Pérdidas'!AO28 -> 0.4387451079 | I29: 5.520171751 | J29: 0.07948033643
A30: 25 | B30: ='Calculo - Consumo'!AF30+'Calculo - Consumo'!AH30 -> 20.38600016 | C30: ='Calculo - Consumo'!AM30 -> 21163.20997 | D30: =+'Calculo - Pérdidas'!AN29 -> 3611.814262 | E30: 24775.02423 | F30: 0.1457844896 | G30: =+'Ingreso - General OCULTO'!$D$38*(B30*(1+'Ingreso - Consumo OCULTO'!$D$39)*'Calculo - Pérdidas'!H29/1000+'Ingreso - Consumo OCULTO'!$D$37) -> 5.107703343 | H30: =+'Calculo - Pérdidas'!AO29 -> 0.4389760281 | I30: 5.546679371 | J30: 0.07914213148
A31: 26 | B31: ='Calculo - Consumo'!AF31+'Calculo - Consumo'!AH31 -> 20.49200736 | C31: ='Calculo - Consumo'!AM31 -> 21272.63416 | D31: =+'Calculo - Pérdidas'!AN30 -> 3612.253748 | E31: 24884.8879 | F31: 0.14515853 | G31: =+'Ingreso - General OCULTO'!$D$38*(B31*(1+'Ingreso - Consumo OCULTO'!$D$39)*'Calculo - Pérdidas'!H30/1000+'Ingreso - Consumo OCULTO'!$D$37) -> 5.134112678 | H31: =+'Calculo - Pérdidas'!AO30 -> 0.4392092884 | I31: 5.573321966 | J31: 0.07880565506
A32: 27 | B32: ='Calculo - Consumo'!AF32+'Calculo - Consumo'!AH32 -> 20.59856579 | C32: ='Calculo - Consumo'!AM32 -> 21382.61737 | D32: =+'Calculo - Pérdidas'!AN31 -> 3612.697728 | E32: 24995.3151 | F32: 0.1445349944 | G32: =+'Ingreso - General OCULTO'!$D$38*(B32*(1+'Ingreso - Consumo OCULTO'!$D$39)*'Calculo - Pérdidas'!H31/1000+'Ingreso - Consumo OCULTO'!$D$37) -> 5.160656931 | H32: =+'Calculo - Pérdidas'!AO31 -> 0.4394449343 | I32: 5.600101866 | J32: 0.07847088228
A33: 28 | B33: ='Calculo - Consumo'!AF33+'Calculo - Consumo'!AH33 -> 20.70567834 | C33: ='Calculo - Consumo'!AM33 -> 21493.16648 | D33: =+'Calculo - Pérdidas'!AN32 -> 3613.146274 | E33: 25106.31276 | F33: 0.1439138558 | G33: =+'Ingreso - General OCULTO'!$D$38*(B33*(1+'Ingreso - Consumo OCULTO'!$D$39)*'Calculo - Pérdidas'!H32/1000+'Ingreso - Consumo OCULTO'!$D$37) -> 5.187337765 | H33: =+'Calculo - Pérdidas'!AO32 -> 0.4396830031 | I33: 5.627020768 | J33: 0.0781377964
A34: 29 | B34: ='Calculo - Consumo'!AF34+'Calculo - Consumo'!AH34 -> 20.81334786 | C34: ='Calculo - Consumo'!AM34 -> 21604.28683 | D34: =+'Calculo - Pérdidas'!AN33 -> 3613.599447 | E34: 25217.88628 | F34: 0.1432950964 | G34: =+'Ingreso - General OCULTO'!$D$38*(B34*(1+'Ingreso - Consumo OCULTO'!$D$39)*'Calculo - Pérdidas'!H33/1000+'Ingreso - Consumo OCULTO'!$D$37) -> 5.214156465 | H34: =+'Calculo - Pérdidas'!AO33 -> 0.4399235277 | I34: 5.654079993 | J34: 0.07780638553
A35: 30 | B35: ='Calculo - Consumo'!AF35+'Calculo - Consumo'!AH35 -> 20.92157727 | C35: ='Calculo - Consumo'!AM35 -> 21715.98283 | D35: =+'Calculo - Pérdidas'!AN34 -> 3614.057303 | E35: 25330.04013 | F35: 0.1426787042 | G35: =+'Ingreso - General OCULTO'!$D$38*(B35*(1+'Ingreso - Consumo OCULTO'!$D$39)*'Calculo - Pérdidas'!H34/1000+'Ingreso - Consumo OCULTO'!$D$37) -> 5.241114097 | H35: =+'Calculo - Pérdidas'!AO34 -> 0.4401665381 | I35: 5.681280636 | J35: 0.07747664064
A38: =+'Ingreso - General OCULTO'!A41:D41 -> Planilla de Evaluación Ministerio de Desarrollo Social - Versión 2016

Sheet Salida - Evaluación Privada
A1: PARTE VI : | B1: =+'Ingreso - General OCULTO'!A8 -> 0
A2: EVALUACION PRIVADA (EMPRESA)
A3: Año | B3: Inversión [M$] | C3: Ingresos x Vtas. [M$] | D3: Costos [M$] | E3: Beneficios Brutos [M$] | F3: Depreciación [M$] | G3: Utilidad Contable [M$] | H3: Impuesto [M$] | I3: Beneficios Neto [M$]
A4: ='Salida - Evaluación Privada OCU'!A4 -> 0 | B4: ='Salida - Evaluación Privada OCU'!B4 -> -130120.5685 | I4: ='Salida - Evaluación Privada OCU'!I4 -> -130120.5685
A5: ='Salida - Evaluación Privada OCU'!A5 -> 1 | B5: ='Salida - Evaluación Privada OCU'!B5 -> 0 | C5: ='Salida - Evaluación Privada OCU'!C5 -> 755.21484 | D5: ='Salida - Evaluación Privada OCU'!D5 -> 1635.552313 | E5: ='Salida - Evaluación Privada OCU'!E5 -> -880.3374734 | F5: ='Salida - Evaluación Privada OCU'!F5 -> 4337.352284 | G5: ='Salida - Evaluación Privada OCU'!G5 -> -5217.689757 | H5: ='Salida - Evaluación Privada OCU'!H5 -> -1173.980195 | I5: ='Salida - Evaluación Privada OCU'!I5 -> 293.642722
A6: ='Salida - Evaluación Privada OCU'!A6 -> 2 | B6: ='Salida - Evaluación Privada OCU'!B6 -> 0 | C6: ='Salida - Evaluación Privada OCU'!C6 -> 1190.401086 | D6: ='Salida - Evaluación Privada OCU'!D6 -> 1902.535227 | E6: ='Salida - Evaluación Privada OCU'!E6 -> -712.1341406 | F6: ='Salida - Evaluación Privada OCU'!F6 -> 4337.352284 | G6: ='Salida - Evaluación Privada OCU'!G6 -> -5049.486424 | H6: ='Salida - Evaluación Privada OCU'!H6 -> -1211.876742 | I6: ='Salida - Evaluación Privada OCU'!I6 -> 499.7426012
A7: ='Salida - Evaluación Privada OCU'!A7 -> 3 | B7: ='Salida - Evaluación Privada OCU'!B7 -> 0 | C7: ='Salida - Evaluación Privada OCU'!C7 -> 1456.10056 | D7: ='Salida - Evaluación Privada OCU'!D7 -> 2068.062289 | E7: ='Salida - Evaluación Privada OCU'!E7 -> -611.9617296 | F7: ='Salida - Evaluación Privada OCU'!F7 -> 4337.352284 | G7: ='Salida - Evaluación Privada OCU'!G7 -> -4949.314013 | H7: ='Salida - Evaluación Privada OCU'!H7 -> -1262.075073 | I7: ='Salida - Evaluación Privada OCU'!I7 -> 650.1133438
A8: ='Salida - Evaluación Privada OCU'!A8 -> 4 | B8: ='Salida - Evaluación Privada OCU'!B8 -> 0 | C8: ='Salida - Evaluación Privada OCU'!C8 -> 1619.824097 | D8: ='Salida - Evaluación Privada OCU'!D8 -> 2172.144649 | E8: ='Salida - Evaluación Privada OCU'!E8 -> -552.3205515 | F8: ='Salida - Evaluación Privada OCU'!F8 -> 4337.352284 | G8: ='Salida - Evaluación Privada OCU'!G8 -> -4889.672835 | H8: ='Salida - Evaluación Privada OCU'!H8 -> -1320.211666 | I8: ='Salida - Evaluación Privada OCU'!I8 -> 767.891114
A9: ='Salida - Evaluación Privada OCU'!A9 -> 5 | B9: ='Salida - Evaluación Privada OCU'!B9 -> 0 | C9: ='Salida - Evaluación Privada OCU'!C9 -> 1722.19861 | D9: ='Salida - Evaluación Privada OCU'!D9 -> 2238.139417 | E9: ='Salida - Evaluación Privada OCU'!E9 -> -515.9408073 | F9: ='Salida - Evaluación Privada OCU'!F9 -> 4337.352284 | G9: ='Salida - Evaluación Privada OCU'!G9 -> -4853.293091 | H9: ='Salida - Evaluación Privada OCU'!H9 -> -1310.389135 | I9: ='Salida - Evaluación Privada OCU'!I9 -> 794.4483273
A10: ='Salida - Evaluación Privada OCU'!A10 -> 6 | B10: ='Salida - Evaluación Privada OCU'!B10 -> 0 | C10: ='Salida - Evaluación Privada OCU'!C10 -> 1787.673019 | D10: ='Salida - Evaluación Privada OCU'!D10 -> 2280.61667 | E10: ='Salida - Evaluación Privada OCU'!E10 -> -492.9436504 | F10: ='Salida - Evaluación Privada OCU'!F10 -> 4337.352284 | G10: ='Salida - Evaluación Privada OCU'!G10 -> -4830.295934 | H10: ='Salida - Evaluación Privada OCU'!H10 -> -1304.179902 | I10: ='Salida - Evaluación Privada OCU'!I10 -> 811.2362519
A11: ='Salida - Evaluación Privada OCU'!A11 -> 7 | B11: ='Salida - Evaluación Privada OCU'!B11 -> 0 | C11: ='Salida - Evaluación Privada OCU'!C11 -> 1830.960672 | D11: ='Salida - Evaluación Privada OCU'!D11 -> 2308.684875 | E11: ='Salida - Evaluación Privada OCU'!E11 -> -477.724203 | F11: ='Salida - Evaluación Privada OCU'!F11 -> 4337.352284 | G11: ='Salida - Evaluación Privada OCU'!G11 -> -4815.076487 | H11: ='Salida - Evaluación Privada OCU'!H11 -> -1300.070651 | I11: ='Salida - Evaluación Privada OCU'!I11 -> 822.3464485
A12: ='Salida - Evaluación Privada OCU'!A12 -> 8 | B12: ='Salida - Evaluación Privada OCU'!B12 -> 0 | C12: ='Salida - Evaluación Privada OCU'!C12 -> 1860.916183 | D12: ='Salida - Evaluación Privada OCU'!D12 -> 2327.986274 | E12: ='Salida - Evaluación Privada OCU'!E12 -> -467.0700905 | F12: ='Salida - Evaluación Privada OCU'!F12 -> 4337.352284 | G12: ='Salida - Evaluación Privada OCU'!G12 -> -4804.422374 | H12: ='Salida - Evaluación Privada OCU'!H12 -> -1297.194041 | I12: ='Salida - Evaluación Privada OCU'!I12 -> 830.1239506
A13: ='Salida - Evaluación Privada OCU'!A13 -> 9 | B13: ='Salida - Evaluación Privada OCU'!B13 -> 0 | C13: ='Salida - Evaluación Privada OCU'!C13 -> 1882.868433 | D13: ='Salida - Evaluación Privada OCU'!D13 -> 2341.983088 | E13: ='Salida - Evaluación Privada OCU'!E13 -> -459.1146553 | F13: ='Salida - Evaluación Privada OCU'!F13 -> 4337.352284 | G13: ='Salida - Evaluación Privada OCU'!G13 -> -4796.466939 | H13: ='Salida - Evaluación Privada OCU'!H13 -> -1295.046074 | I13: ='Salida - Evaluación Privada OCU'!I13 -> 835.9314182
A14: ='Salida - Evaluación Privada OCU'!A14 -> 10 | B14: ='Salida - Evaluación Privada OCU'!B14 -> 0 | C14: ='Salida - Evaluación Privada OCU'!C14 -> 1900.024513 | D14: ='Salida - Evaluación Privada OCU'!D14 -> 2352.784764 | E14: ='Salida - Evaluación Privada OCU'!E14 -> -452.7602502 | F14: ='Salida - Evaluación Privada OCU'!F14 -> 4337.352284 | G14: ='Salida - Evaluación Privada OCU'!G14 -> -4790.112534 | H14: ='Salida - Evaluación Privada OCU'!H14 -> -1293.330384 | I14: ='Salida - Evaluación Privada OCU'!I14 -> 840.570134
A15: ='Salida - Evaluación Privada OCU'!A15 -> 11 | B15: ='Salida - Evaluación Privada OCU'!B15 -> 0 | C15: ='Salida - Evaluación Privada OCU'!C15 -> 1914.31462 | D15: ='Salida - Evaluación Privada OCU'!D15 -> 2361.670456 | E15: ='Salida - Evaluación Privada OCU'!E15 -> -447.3558354 | F15: ='Salida - Evaluación Privada OCU'!F15 -> 4337.352284 | G15: ='Salida - Evaluación Privada OCU'!G15 -> -4784.708119 | H15: ='Salida - Evaluación Privada OCU'!H15 -> -1291.871192 | I15: ='Salida - Evaluación Privada OCU'!I15 -> 844.5153568
A16: ='Salida - Evaluación Privada OCU'!A16 -> 12 | B16: ='Salida - Evaluación Privada OCU'!B16 -> 0 | C16: ='Salida - Evaluación Privada OCU'!C16 -> 1926.900498 | D16: ='Salida - Evaluación Privada OCU'!D16 -> 2369.413541 | E16: ='Salida - Evaluación Privada OCU'!E16 -> -442.5130429 | F16: ='Salida - Evaluación Privada OCU'!F16 -> 4337.352284 | G16: ='Salida - Evaluación Privada OCU'!G16 -> -4779.865327 | H16: ='Salida - Evaluación Privada OCU'!H16 -> -1290.563638 | I16: ='Salida - Evaluación Privada OCU'!I16 -> 848.0505953
A17: ='Salida - Evaluación Privada OCU'!A17 -> 13 | B17: ='Salida - Evaluación Privada OCU'!B17 -> 0 | C17: ='Salida - Evaluación Privada OCU'!C17 -> 1938.481424 | D17: ='Salida - Evaluación Privada OCU'!D17 -> 2376.480774 | E17: ='Salida - Evaluación Privada OCU'!E17 -> -437.9993498 | F17: ='Salida - Evaluación Privada OCU'!F17 -> 4337.352284 | G17: ='Salida - Evaluación Privada OCU'!G17 -> -4775.351634 | H17: ='Salida - Evaluación Privada OCU'!H17 -> -1289.344941 | I17: ='Salida - Evaluación Privada OCU'!I17 -> 851.3455913
A18: ='Salida - Evaluación Privada OCU'!A18 -> 14 | B18: ='Salida - Evaluación Privada OCU'!B18 -> 0 | C18: ='Salida - Evaluación Privada OCU'!C18 -> 1949.478358 | D18: ='Salida - Evaluación Privada OCU'!D18 -> 2383.153577 | E18: ='Salida - Evaluación Privada OCU'!E18 -> -433.6752192 | F18: ='Salida - Evaluación Privada OCU'!F18 -> 4337.352284 | G18: ='Salida - Evaluación Privada OCU'!G18 -> -4771.027503 | H18: ='Salida - Evaluación Privada OCU'!H18 -> -1288.177426 | I18: ='Salida - Evaluación Privada OCU'!I18 -> 854.5022066
A19: ='Salida - Evaluación Privada OCU'!A19 -> 15 | B19: ='Salida - Evaluación Privada OCU'!B19 -> 0 | C19: ='Salida - Evaluación Privada OCU'!C19 -> 1960.144755 | D19: ='Salida - Evaluación Privada OCU'!D19 -> 2389.601543 | E19: ='Salida - Evaluación Privada OCU'!E19 -> -429.456788 | F19: ='Salida - Evaluación Privada OCU'!F19 -> 4337.352284 | G19: ='Salida - Evaluación Privada OCU'!G19 -> -4766.809072 | H19: ='Salida - Evaluación Privada OCU'!H19 -> -1287.038449 | I19: ='Salida - Evaluación Privada OCU'!I19 -> 857.5816614
A20: ='Salida - Evaluación Privada OCU'!A20 -> 16 | B20: ='Salida - Evaluación Privada OCU'!B20 -> 0 | C20: ='Salida - Evaluación Privada OCU'!C20 -> 1970.633266 | D20: ='Salida - Evaluación Privada OCU'!D20 -> 2395.926863 | E20: ='Salida - Evaluación Privada OCU'!E20 -> -425.2935976 | F20: ='Salida - Evaluación Privada OCU'!F20 -> 4337.352284 | G20: ='Salida - Evaluación Privada OCU'!G20 -> -4762.645881 | H20: ='Salida - Evaluación Privada OCU'!H20 -> -1285.914388 | I20: ='Salida - Evaluación Privada OCU'!I20 -> 860.6207904
A21: ='Salida - Evaluación Privada OCU'!A21 -> 17 | B21: ='Salida - Evaluación Privada OCU'!B21 -> 0 | C21: ='Salida - Evaluación Privada OCU'!C21 -> 1981.035872 | D21: ='Salida - Evaluación Privada OCU'!D21 -> 2402.191129 | E21: ='Salida - Evaluación Privada OCU'!E21 -> -421.1552565 | F21: ='Salida - Evaluación Privada OCU'!F21 -> 4337.352284 | G21: ='Salida - Evaluación Privada OCU'!G21 -> -4758.50754 | H21: ='Salida - Evaluación Privada OCU'!H21 -> -1284.797036 | I21: ='Salida - Evaluación Privada OCU'!I21 -> 863.6417794
A22: ='Salida - Evaluación Privada OCU'!A22 -> 18 | B22: ='Salida - Evaluación Privada OCU'!B22 -> 0 | C22: ='Salida - Evaluación Privada OCU'!C22 -> 1991.408044 | D22: ='Salida - Evaluación Privada OCU'!D22 -> 2408.431482 | E22: ='Salida - Evaluación Privada OCU'!E22 -> -417.0234381 | F22: ='Salida - Evaluación Privada OCU'!F22 -> 4337.352284 | G22: ='Salida - Evaluación Privada OCU'!G22 -> -4754.375722 | H22: ='Salida - Evaluación Privada OCU'!H22 -> -1283.681445 | I22: ='Salida - Evaluación Privada OCU'!I22 -> 866.6580069
A23: ='Salida - Evaluación Privada OCU'!A23 -> 19 | B23: ='Salida - Evaluación Privada OCU'!B23 -> 0 | C23: ='Salida - Evaluación Privada OCU'!C23 -> 2001.783277 | D23: ='Salida - Evaluación Privada OCU'!D23 -> 2414.670348 | E23: ='Salida - Evaluación Privada OCU'!E23 -> -412.8870714 | F23: ='Salida - Evaluación Privada OCU'!F23 -> 4337.352284 | G23: ='Salida - Evaluación Privada OCU'!G23 -> -4750.239355 | H23: ='Salida - Evaluación Privada OCU'!H23 -> -1282.564626 | I23: ='Salida - Evaluación Privada OCU'!I23 -> 869.6775545
A24: ='Salida - Evaluación Privada OCU'!A24 -> 20 | B24: ='Salida - Evaluación Privada OCU'!B24 -> 0 | C24: ='Salida - Evaluación Privada OCU'!C24 -> 2012.18184 | D24: ='Salida - Evaluación Privada OCU'!D24 -> 2420.921291 | E24: ='Salida - Evaluación Privada OCU'!E24 -> -408.739451 | F24: ='Salida - Evaluación Privada OCU'!F24 -> 4337.352284 | G24: ='Salida - Evaluación Privada OCU'!G24 -> -4746.091735 | H24: ='Salida - Evaluación Privada OCU'!H24 -> -1281.444768 | I24: ='Salida - Evaluación Privada OCU'!I24 -> 872.7053174
A25: ='Salida - Evaluación Privada OCU'!A25 -> 21 | B25: ='Salida - Evaluación Privada OCU'!B25 -> 0 | C25: ='Salida - Evaluación Privada OCU'!C25 -> 2022.616047 | D25: ='Salida - Evaluación Privada OCU'!D25 -> 2427.192545 | E25: ='Salida - Evaluación Privada OCU'!E25 -> -404.576498 | F25: ='Salida - Evaluación Privada OCU'!F25 -> 4337.352284 | G25: ='Salida - Evaluación Privada OCU'!G25 -> -4741.928782 | H25: ='Salida - Evaluación Privada OCU'!H25 -> -1280.320771 | I25: ='Salida - Evaluación Privada OCU'!I25 -> 875.7442731
A26: ='Salida - Evaluación Privada OCU'!A26 -> 22 | B26: ='Salida - Evaluación Privada OCU'!B26 -> 0 | C26: ='Salida - Evaluación Privada OCU'!C26 -> 2033.093419 | D26: ='Salida - Evaluación Privada OCU'!D26 -> 2433.489133 | E26: ='Salida - Evaluación Privada OCU'!E26 -> -400.3957135 | F26: ='Salida - Evaluación Privada OCU'!F26 -> 4337.352284 | G26: ='Salida - Evaluación Privada OCU'!G26 -> -4737.747997 | H26: ='Salida - Evaluación Privada OCU'!H26 -> -1279.191959 | I26: ='Salida - Evaluación Privada OCU'!I26 -> 878.7962458
A27: ='Salida - Evaluación Privada OCU'!A27 -> 23 | B27: ='Salida - Evaluación Privada OCU'!B27 -> 0 | C27: ='Salida - Evaluación Privada OCU'!C27 -> 2043.618598 | D27: ='Salida - Evaluación Privada OCU'!D27 -> 2439.814147 | E27: ='Salida - Evaluación Privada OCU'!E27 -> -396.1955496 | F27: ='Salida - Evaluación Privada OCU'!F27 -> 4337.352284 | G27: ='Salida - Evaluación Privada OCU'!G27 -> -4733.547833 | H27: ='Salida - Evaluación Privada OCU'!H27 -> -1278.057915 | I27: ='Salida - Evaluación Privada OCU'!I27 -> 881.8623654
A28: ='Salida - Evaluación Privada OCU'!A28 -> 24 | B28: ='Salida - Evaluación Privada OCU'!B28 -> 0 | C28: ='Salida - Evaluación Privada OCU'!C28 -> 2054.194489 | D28: ='Salida - Evaluación Privada OCU'!D28 -> 2446.169519 | E28: ='Salida - Evaluación Privada OCU'!E28 -> -391.9750303 | F28: ='Salida - Evaluación Privada OCU'!F28 -> 4337.352284 | G28: ='Salida - Evaluación Privada OCU'!G28 -> -4729.327314 | H28: ='Salida - Evaluación Privada OCU'!H28 -> -1276.918375 | I28: ='Salida - Evaluación Privada OCU'!I28 -> 884.9433445
A29: ='Salida - Evaluación Privada OCU'!A29 -> 25 | B29: ='Salida - Evaluación Privada OCU'!B29 -> 0 | C29: ='Salida - Evaluación Privada OCU'!C29 -> 2064.822956 | D29: ='Salida - Evaluación Privada OCU'!D29 -> 2452.55648 | E29: ='Salida - Evaluación Privada OCU'!E29 -> -387.7335237 | F29: ='Salida - Evaluación Privada OCU'!F29 -> 4337.352284 | G29: ='Salida - Evaluación Privada OCU'!G29 -> -4725.085808 | H29: ='Salida - Evaluación Privada OCU'!H29 -> -1275.773168 | I29: ='Salida - Evaluación Privada OCU'!I29 -> 888.0396443
A30: ='Salida - Evaluación Privada OCU'!A30 -> 26 | B30: ='Salida - Evaluación Privada OCU'!B30 -> 0 | C30: ='Salida - Evaluación Privada OCU'!C30 -> 2075.505235 | D30: ='Salida - Evaluación Privada OCU'!D30 -> 2458.97584 | E30: ='Salida - Evaluación Privada OCU'!E30 -> -383.4706048 | F30: ='Salida - Evaluación Privada OCU'!F30 -> 4337.352284 | G30: ='Salida - Evaluación Privada OCU'!G30 -> -4720.822889 | H30: ='Salida - Evaluación Privada OCU'!H30 -> -1274.62218 | I30: ='Salida - Evaluación Privada OCU'!I30 -> 891.1515751
A31: ='Salida - Evaluación Privada OCU'!A31 -> 27 | B31: ='Salida - Evaluación Privada OCU'!B31 -> 0 | C31: ='Salida - Evaluación Privada OCU'!C31 -> 2086.242186 | D31: ='Salida - Evaluación Privada OCU'!D31 -> 2465.428159 | E31: ='Salida - Evaluación Privada OCU'!E31 -> -379.1859727 | F31: ='Salida - Evaluación Privada OCU'!F31 -> 4337.352284 | G31: ='Salida - Evaluación Privada OCU'!G31 -> -4716.538257 | H31: ='Salida - Evaluación Privada OCU'!H31 -> -1273.465329 | I31: ='Salida - Evaluación Privada OCU'!I31 -> 894.2793565
A32: ='Salida - Evaluación Privada OCU'!A32 -> 28 | B32: ='Salida - Evaluación Privada OCU'!B32 -> 0 | C32: ='Salida - Evaluación Privada OCU'!C32 -> 2097.034442 | D32: ='Salida - Evaluación Privada OCU'!D32 -> 2471.913843 | E32: ='Salida - Evaluación Privada OCU'!E32 -> -374.8794013 | F32: ='Salida - Evaluación Privada OCU'!F32 -> 4337.352284 | G32: ='Salida - Evaluación Privada OCU'!G32 -> -4712.231685 | H32: ='Salida - Evaluación Privada OCU'!H32 -> -1272.302555 | I32: ='Salida - Evaluación Privada OCU'!I32 -> 897.4231537
A33: ='Salida - Evaluación Privada OCU'!A33 -> 29 | B33: ='Salida - Evaluación Privada OCU'!B33 -> 0 | C33: ='Salida - Evaluación Privada OCU'!C33 -> 2107.8825 | D33: ='Salida - Evaluación Privada OCU'!D33 -> 2478.433209 | E33: ='Salida - Evaluación Privada OCU'!E33 -> -370.5507087 | F33: ='Salida - Evaluación Privada OCU'!F33 -> 4337.352284 | G33: ='Salida - Evaluación Privada OCU'!G33 -> -4707.902993 | H33: ='Salida - Evaluación Privada OCU'!H33 -> -1271.133808 | I33: ='Salida - Evaluación Privada OCU'!I33 -> 900.5830992
A34: ='Salida - Evaluación Privada OCU'!A34 -> 30 | B34: ='Salida - Evaluación Privada OCU'!B34 -> 0 | C34: ='Salida - Evaluación Privada OCU'!C34 -> 2118.786777 | D34: ='Salida - Evaluación Privada OCU'!D34 -> 2484.986517 | E34: ='Salida - Evaluación Privada OCU'!E34 -> -366.1997402 | F34: ='Salida - Evaluación Privada OCU'!F34 -> 4337.352284 | G34: ='Salida - Evaluación Privada OCU'!G34 -> -4703.552024 | H34: ='Salida - Evaluación Privada OCU'!H34 -> -1269.959046 | I34: ='Salida - Evaluación Privada OCU'!I34 -> 903.7593063
H36: VAN M$ | I36: ='Salida - Evaluación Privada OCU'!I36 -> -123149.1707
H37: TIR | I37: ='Salida - Evaluación Privada OCU'!I37 -> -0.08296076735
A40: =+'Ingreso - General OCULTO'!A41:D41 -> Planilla de Evaluación Ministerio de Desarrollo Social - Versión 2016

Sheet Salida - Evaluación Privada OCU (hidden)
A1: PARTE VI : | B1: =+'Ingreso - General OCULTO'!A8 -> 0
A2: EVALUACION PRIVADA (EMPRESA)
A3: Año | B3: Inversión [M$] | C3: Ingresos x Vtas. [M$] | D3: Costos [M$] | E3: Beneficios Brutos [M$] | F3: Depreciación [M$] | G3: Utilidad Contable [M$] | H3: Impuesto [M$] | I3: Beneficios Neto [M$]
A4: 0 | B4: =IF(('Ingreso - Inversión OCULTO'!E78+'Ingreso - Inversión OCULTO'!H56)<'Salida - Financiamiento OCULTO'!D5,-('Ingreso - Inversión OCULTO'!D60+'Ingreso - Inversión OCULTO'!E79)+'Salida - Financiamiento OCULTO'!D5,-('Ingreso - Inversión OCULTO'!D60+'Ingreso - Inversión OCULTO'!E79)+'Ingreso - Inversión OCULTO'!E78+'Ingreso - Inversión OCULTO'!H56) -> -130120.5685 | I4: =B4 -> -130120.5685
A5: 1 | C5: =('Ingreso - General OCULTO'!$D$22*'Calculo - Consumo'!AI6*12+'Ingreso - General OCULTO'!$D$23*'Calculo - Consumo'!AM6)/1000 -> 755.21484 | D5: =('Ingreso - General OCULTO'!$D$25*'Salida - Consumos Anuales OCULT'!E6+'Ingreso - General OCULTO'!$D$26*'Salida - Consumos Anuales OCULT'!I6*12)/1000+'Ingreso - Inversión OCULTO'!$D$60*'Ingreso - General OCULTO'!$D$27 -> 1635.552313 | E5: =C5-D5 -> -880.3374734 | F5: =('Ingreso - Inversión OCULTO'!$D$81-'Ingreso - Inversión OCULTO'!$H$56-'Ingreso - Inversión OCULTO'!$E$78)/'Ingreso - General OCULTO'!$D$16 -> 4337.352284 | G5: =E5-F5 -> -5217.689757 | H5: =IF('Ingreso - General OCULTO'!D12="Regimen Atribuido",IF('Ingreso - General OCULTO'!D13=2015,'Ingreso - General OCULTO'!G7,IF('Ingreso - General OCULTO'!D13=2016,'Ingreso - General OCULTO'!G8,IF('Ingreso - General OCULTO'!D13=2017,'Ingreso - General OCULTO'!G9,'Ingreso - General OCULTO'!G10))),IF('Ingreso - General OCULTO'!D13=2015,'Ingreso - General OCULTO'!H7,IF('Ingreso - General OCULTO'!D13=2016,'Ingreso - General OCULTO'!H8,IF('Ingreso - General OCULTO'!D13=2017,'Ingreso - General OCULTO'!H9,'Ingreso - General OCULTO'!H10))))*G5 -> -1173.980195 | I5: =E5-H5 -> 293.642722
A6: 2 | C6: =('Ingreso - General OCULTO'!$D$22*'Calculo - Consumo'!AI7*12+'Ingreso - General OCULTO'!$D$23*'Calculo - Consumo'!AM7)/1000 -> 1190.401086 | D6: =('Ingreso - General OCULTO'!$D$25*'Salida - Consumos Anuales OCULT'!E7+'Ingreso - General OCULTO'!$D$26*'Salida - Consumos Anuales OCULT'!I7*12)/1000+'Ingreso - Inversión OCULTO'!$D$60*'Ingreso - General OCULTO'!$D$27 -> 1902.535227 | E6: -712.1341406 | F6: =('Ingreso - Inversión OCULTO'!$D$81-'Ingreso - Inversión OCULTO'!$H$56-'Ingreso - Inversión OCULTO'!$E$78)/'Ingreso - General OCULTO'!$D$16 -> 4337.352284 | G6: -5049.486424 | H6: =IF('Ingreso - General OCULTO'!D12="Regimen Atribuido",IF('Ingreso - General OCULTO'!D13=2015,'Ingreso - General OCULTO'!G8,IF('Ingreso - General OCULTO'!D13=2016,'Ingreso - General OCULTO'!G9,'Ingreso - General OCULTO'!G10)),IF('Ingreso - General OCULTO'!D13=2015,'Ingreso - General OCULTO'!H8,IF('Ingreso - General OCULTO'!D13=2016,'Ingreso - General OCULTO'!H9,'Ingreso - General OCULTO'!H10)))*G6 -> -1211.876742 | I6: =E6-H6 -> 499.7426012
A7: 3 | C7: =('Ingreso - General OCULTO'!$D$22*'Calculo - Consumo'!AI8*12+'Ingreso - General OCULTO'!$D$23*'Calculo - Consumo'!AM8)/1000 -> 1456.10056 | D7: =('Ingreso - General OCULTO'!$D$25*'Salida - Consumos Anuales OCULT'!E8+'Ingreso - General OCULTO'!$D$26*'Salida - Consumos Anuales OCULT'!I8*12)/1000+'Ingreso - Inversión OCULTO'!$D$60*'Ingreso - General OCULTO'!$D$27 -> 2068.062289 | E7: -611.9617296 | F7: =('Ingreso - Inversión OCULTO'!$D$81-'Ingreso - Inversión OCULTO'!$H$56-'Ingreso - Inversión OCULTO'!$E$78)/'Ingreso - General OCULTO'!$D$16 -> 4337.352284 | G7: -4949.314013 | H7: =IF('Ingreso - General OCULTO'!D12="Regimen Atribuido",IF('Ingreso - General OCULTO'!D13=2015,'Ingreso - General OCULTO'!G9,'Ingreso - General OCULTO'!G10),IF('Ingreso - General OCULTO'!D13=2015,'Ingreso - General OCULTO'!H9,'Ingreso - General OCULTO'!H10))*G7 -> -1262.075073 | I7: 650.1133438
A8: 4 | C8: =('Ingreso - General OCULTO'!$D$22*'Calculo - Consumo'!AI9*12+'Ingreso - General OCULTO'!$D$23*'Calculo - Consumo'!AM9)/1000 -> 1619.824097 | D8: =('Ingreso - General OCULTO'!$D$25*'Salida - Consumos Anuales OCULT'!E9+'Ingreso - General OCULTO'!$D$26*'Salida - Consumos Anuales OCULT'!I9*12)/1000+'Ingreso - Inversión OCULTO'!$D$60*'Ingreso - General OCULTO'!$D$27 -> 2172.144649 | E8: -552.3205515 | F8: =('Ingreso - Inversión OCULTO'!$D$81-'Ingreso - Inversión OCULTO'!$H$56-'Ingreso - Inversión OCULTO'!$E$78)/'Ingreso - General OCULTO'!$D$16 -> 4337.352284 | G8: -4889.672835 | H8: =IF('Ingreso - General OCULTO'!$D$12="Regimen Atribuido",'Ingreso - General OCULTO'!$G$10,'Ingreso - General OCULTO'!$H$10)*G8 -> -1320.211666 | I8: 767.891114
A9: 5 | C9: =('Ingreso - General OCULTO'!$D$22*'Calculo - Consumo'!AI10*12+'Ingreso - General OCULTO'!$D$23*'Calculo - Consumo'!AM10)/1000 -> 1722.19861 | D9: =('Ingreso - General OCULTO'!$D$25*'Salida - Consumos Anuales OCULT'!E10+'Ingreso - General OCULTO'!$D$26*'Salida - Consumos Anuales OCULT'!I10*12)/1000+'Ingreso - Inversión OCULTO'!$D$60*'Ingreso - General OCULTO'!$D$27 -> 2238.139417 | E9: -515.9408073 | F9: =('Ingreso - Inversión OCULTO'!$D$81-'Ingreso - Inversión OCULTO'!$H$56-'Ingreso - Inversión OCULTO'!$E$78)/'Ingreso - General OCULTO'!$D$16 -> 4337.352284 | G9: -4853.293091 | H9: =IF('Ingreso - General OCULTO'!$D$12="Regimen Atribuido",'Ingreso - General OCULTO'!$G$10,'Ingreso - General OCULTO'!$H$10)*G9 -> -1310.389135 | I9: 794.4483273
A10: 6 | C10: =('Ingreso - General OCULTO'!$D$22*'Calculo - Consumo'!AI11*12+'Ingreso - General OCULTO'!$D$23*'Calculo - Consumo'!AM11)/1000 -> 1787.673019 | D10: =('Ingreso - General OCULTO'!$D$25*'Salida - Consumos Anuales OCULT'!E11+'Ingreso - General OCULTO'!$D$26*'Salida - Consumos Anuales OCULT'!I11*12)/1000+'Ingreso - Inversión OCULTO'!$D$60*'Ingreso - General OCULTO'!$D$27 -> 2280.61667 | E10: -492.9436504 | F10: =('Ingreso - Inversión OCULTO'!$D$81-'Ingreso - Inversión OCULTO'!$H$56-'Ingreso - Inversión OCULTO'!$E$78)/'Ingreso - General OCULTO'!$D$16 -> 4337.352284 | G10: -4830.295934 | H10: =IF('Ingreso - General OCULTO'!$D$12="Regimen Atribuido",'Ingreso - General OCULTO'!$G$10,'Ingreso - General OCULTO'!$H$10)*G10 -> -1304.179902 | I10: 811.2362519
A11: 7 | C11: =('Ingreso - General OCULTO'!$D$22*'Calculo - Consumo'!AI12*12+'Ingreso - General OCULTO'!$D$23*'Calculo - Consumo'!AM12)/1000 -> 1830.960672 | D11: =('Ingreso - General OCULTO'!$D$25*'Salida - Consumos Anuales OCULT'!E12+'Ingreso - General OCULTO'!$D$26*'Salida - Consumos Anuales OCULT'!I12*12)/1000+'Ingreso - Inversión OCULTO'!$D$60*'Ingreso - General OCULTO'!$D$27 -> 2308.684875 | E11: -477.724203 | F11: =('Ingreso - Inversión OCULTO'!$D$81-'Ingreso - Inversión OCULTO'!$H$56-'Ingreso - Inversión OCULTO'!$E$78)/'Ingreso - General OCULTO'!$D$16 -> 4337.352284 | G11: -4815.076487 | H11: =IF('Ingreso - General OCULTO'!$D$12="Regimen Atribuido",'Ingreso - General OCULTO'!$G$10,'Ingreso - General OCULTO'!$H$10)*G11 -> -1300.070651 | I11: 822.3464485
A12: 8 | C12: =('Ingreso - General OCULTO'!$D$22*'Calculo - Consumo'!AI13*12+'Ingreso - General OCULTO'!$D$23*'Calculo - Consumo'!AM13)/1000 -> 1860.916183 | D12: =('Ingreso - General OCULTO'!$D$25*'Salida - Consumos Anuales OCULT'!E13+'Ingreso - General OCULTO'!$D$26*'Salida - Consumos Anuales OCULT'!I13*12)/1000+'Ingreso - Inversión OCULTO'!$D$60*'Ingreso - General OCULTO'!$D$27 -> 2327.986274 | E12: -467.0700905 | F12: =('Ingreso - Inversión OCULTO'!$D$81-'Ingreso - Inversión OCULTO'!$H$56-'Ingreso - Inversión OCULTO'!$E$78)/'Ingreso - General OCULTO'!$D$16 -> 4337.352284 | G12: -4804.422374 | H12: =IF('Ingreso - General OCULTO'!$D$12="Regimen Atribuido",'Ingreso - General OCULTO'!$G$10,'Ingreso - General OCULTO'!$H$10)*G12 -> -1297.194041 | I12: 830.1239506
A13: 9 | C13: =('Ingreso - General OCULTO'!$D$22*'Calculo - Consumo'!AI14*12+'Ingreso - General OCULTO'!$D$23*'Calculo - Consumo'!AM14)/1000 -> 1882.868433 | D13: =('Ingreso - General OCULTO'!$D$25*'Salida - Consumos Anuales OCULT'!E14+'Ingreso - General OCULTO'!$D$26*'Salida - Consumos Anuales OCULT'!I14*12)/1000+'Ingreso - Inversión OCULTO'!$D$60*'Ingreso - General OCULTO'!$D$27 -> 2341.983088 | E13: -459.1146553 | F13: =('Ingreso - Inversión OCULTO'!$D$81-'Ingreso - Inversión OCULTO'!$H$56-'Ingreso - Inversión OCULTO'!$E$78)/'Ingreso - General OCULTO'!$D$16 -> 4337.352284 | G13: -4796.466939 | H13: =IF('Ingreso - General OCULTO'!$D$12="Regimen Atribuido",'Ingreso - General OCULTO'!$G$10,'Ingreso - General OCULTO'!$H$10)*G13 -> -1295.046074 | I13: 835.9314182
A14: 10 | C14: =('Ingreso - General OCULTO'!$D$22*'Calculo - Consumo'!AI15*12+'Ingreso - General OCULTO'!$D$23*'Calculo - Consumo'!AM15)/1000 -> 1900.024513 | D14: =('Ingreso - General OCULTO'!$D$25*'Salida - Consumos Anuales OCULT'!E15+'Ingreso - General OCULTO'!$D$26*'Salida - Consumos Anuales OCULT'!I15*12)/1000+'Ingreso - Inversión OCULTO'!$D$60*'Ingreso - General OCULTO'!$D$27 -> 2352.784764 | E14: -452.7602502 | F14: =('Ingreso - Inversión OCULTO'!$D$81-'Ingreso - Inversión OCULTO'!$H$56-'Ingreso - Inversión OCULTO'!$E$78)/'Ingreso - General OCULTO'!$D$16 -> 4337.352284 | G14: -4790.112534 | H14: =IF('Ingreso - General OCULTO'!$D$12="Regimen Atribuido",'Ingreso - General OCULTO'!$G$10,'Ingreso - General OCULTO'!$H$10)*G14 -> -1293.330384 | I14: 840.570134
A15: 11 | C15: =('Ingreso - General OCULTO'!$D$22*'Calculo - Consumo'!AI16*12+'Ingreso - General OCULTO'!$D$23*'Calculo - Consumo'!AM16)/1000 -> 1914.31462 | D15: =('Ingreso - General OCULTO'!$D$25*'Salida - Consumos Anuales OCULT'!E16+'Ingreso - General OCULTO'!$D$26*'Salida - Consumos Anuales OCULT'!I16*12)/1000+'Ingreso - Inversión OCULTO'!$D$60*'Ingreso - General OCULTO'!$D$27 -> 2361.670456 | E15: -447.3558354 | F15: =('Ingreso - Inversión OCULTO'!$D$81-'Ingreso - Inversión OCULTO'!$H$56-'Ingreso - Inversión OCULTO'!$E$78)/'Ingreso - General OCULTO'!$D$16 -> 4337.352284 | G15: -4784.708119 | H15: =IF('Ingreso - General OCULTO'!$D$12="Regimen Atribuido",'Ingreso - General OCULTO'!$G$10,'Ingreso - General OCULTO'!$H$10)*G15 -> -1291.871192 | I15: 844.5153568
A16: 12 | C16: =('Ingreso - General OCULTO'!$D$22*'Calculo - Consumo'!AI17*12+'Ingreso - General OCULTO'!$D$23*'Calculo - Consumo'!AM17)/1000 -> 1926.900498 | D16: =('Ingreso - General OCULTO'!$D$25*'Salida - Consumos Anuales OCULT'!E17+'Ingreso - General OCULTO'!$D$26*'Salida - Consumos Anuales OCULT'!I17*12)/1000+'Ingreso - Inversión OCULTO'!$D$60*'Ingreso - General OCULTO'!$D$27 -> 2369.413541 | E16: -442.5130429 | F16: =('Ingreso - Inversión OCULTO'!$D$81-'Ingreso - Inversión OCULTO'!$H$56-'Ingreso - Inversión OCULTO'!$E$78)/'Ingreso - General OCULTO'!$D$16 -> 4337.352284 | G16: -4779.865327 | H16: =IF('Ingreso - General OCULTO'!$D$12="Regimen Atribuido",'Ingreso - General OCULTO'!$G$10,'Ingreso - General OCULTO'!$H$10)*G16 -> -1290.563638 | I16: 848.0505953
A17: 13 | C17: =('Ingreso - General OCULTO'!$D$22*'Calculo - Consumo'!AI18*12+'Ingreso - General OCULTO'!$D$23*'Calculo - Consumo'!AM18)/1000 -> 1938.481424 | D17: =('Ingreso - General OCULTO'!$D$25*'Salida - Consumos Anuales OCULT'!E18+'Ingreso - General OCULTO'!$D$26*'Salida - Consumos Anuales OCULT'!I18*12)/1000+'Ingreso - Inversión OCULTO'!$D$60*'Ingreso - General OCULTO'!$D$27 -> 2376.480774 | E17: -437.9993498 | F17: =('Ingreso - Inversión OCULTO'!$D$81-'Ingreso - Inversión OCULTO'!$H$56-'Ingreso - Inversión OCULTO'!$E$78)/'Ingreso - General OCULTO'!$D$16 -> 4337.352284 | G17: -4775.351634 | H17: =IF('Ingreso - General OCULTO'!$D$12="Regimen Atribuido",'Ingreso - General OCULTO'!$G$10,'Ingreso - General OCULTO'!$H$10)*G17 -> -1289.344941 | I17: 851.3455913
A18: 14 | C18: =('Ingreso - General OCULTO'!$D$22*'Calculo - Consumo'!AI19*12+'Ingreso - General OCULTO'!$D$23*'Calculo - Consumo'!AM19)/1000 -> 1949.478358 | D18: =('Ingreso - General OCULTO'!$D$25*'Salida - Consumos Anuales OCULT'!E19+'Ingreso - General OCULTO'!$D$26*'Salida - Consumos Anuales OCULT'!I19*12)/1000+'Ingreso - Inversión OCULTO'!$D$60*'Ingreso - General OCULTO'!$D$27 -> 2383.153577 | E18: -433.6752192 | F18: =('Ingreso - Inversión OCULTO'!$D$81-'Ingreso - Inversión OCULTO'!$H$56-'Ingreso - Inversión OCULTO'!$E$78)/'Ingreso - General OCULTO'!$D$16 -> 4337.352284 | G18: -4771.027503 | H18: =IF('Ingreso - General OCULTO'!$D$12="Regimen Atribuido",'Ingreso - General OCULTO'!$G$10,'Ingreso - General OCULTO'!$H$10)*G18 -> -1288.177426 | I18: 854.5022066
A19: 15 | C19: =('Ingreso - General OCULTO'!$D$22*'Calculo - Consumo'!AI20*12+'Ingreso - General OCULTO'!$D$23*'Calculo - Consumo'!AM20)/1000 -> 1960.144755 | D19: =('Ingreso - General OCULTO'!$D$25*'Salida - Consumos Anuales OCULT'!E20+'Ingreso - General OCULTO'!$D$26*'Salida - Consumos Anuales OCULT'!I20*12)/1000+'Ingreso - Inversión OCULTO'!$D$60*'Ingreso - General OCULTO'!$D$27 -> 2389.601543 | E19: -429.456788 | F19: =('Ingreso - Inversión OCULTO'!$D$81-'Ingreso - Inversión OCULTO'!$H$56-'Ingreso - Inversión OCULTO'!$E$78)/'Ingreso - General OCULTO'!$D$16 -> 4337.352284 | G19: -4766.809072 | H19: =IF('Ingreso - General OCULTO'!$D$12="Regimen Atribuido",'Ingreso - General OCULTO'!$G$10,'Ingreso - General OCULTO'!$H$10)*G19 -> -1287.038449 | I19: 857.5816614
A20: 16 | C20: =('Ingreso - General OCULTO'!$D$22*'Calculo - Consumo'!AI21*12+'Ingreso - General OCULTO'!$D$23*'Calculo - Consumo'!AM21)/1000 -> 1970.633266 | D20: =('Ingreso - General OCULTO'!$D$25*'Salida - Consumos Anuales OCULT'!E21+'Ingreso - General OCULTO'!$D$26*'Salida - Consumos Anuales OCULT'!I21*12)/1000+'Ingreso - Inversión OCULTO'!$D$60*'Ingreso - General OCULTO'!$D$27 -> 2395.926863 | E20: -425.2935976 | F20: =('Ingreso - Inversión OCULTO'!$D$81-'Ingreso - Inversión OCULTO'!$H$56-'Ingreso - Inversión OCULTO'!$E$78)/'Ingreso - General OCULTO'!$D$16 -> 4337.352284 | G20: -4762.645881 | H20: =IF('Ingreso - General OCULTO'!$D$12="Regimen Atribuido",'Ingreso - General OCULTO'!$G$10,'Ingreso - General OCULTO'!$H$10)*G20 -> -1285.914388 | I20: 860.6207904
A21: 17 | C21: =('Ingreso - General OCULTO'!$D$22*'Calculo - Consumo'!AI22*12+'Ingreso - General OCULTO'!$D$23*'Calculo - Consumo'!AM22)/1000 -> 1981.035872 | D21: =('Ingreso - General OCULTO'!$D$25*'Salida - Consumos Anuales OCULT'!E22+'Ingreso - General OCULTO'!$D$26*'Salida - Consumos Anuales OCULT'!I22*12)/1000+'Ingreso - Inversión OCULTO'!$D$60*'Ingreso - General OCULTO'!$D$27 -> 2402.191129 | E21: -421.1552565 | F21: =('Ingreso - Inversión OCULTO'!$D$81-'Ingreso - Inversión OCULTO'!$H$56-'Ingreso - Inversión OCULTO'!$E$78)/'Ingreso - General OCULTO'!$D$16 -> 4337.352284 | G21: -4758.50754 | H21: =IF('Ingreso - General OCULTO'!$D$12="Regimen Atribuido",'Ingreso - General OCULTO'!$G$10,'Ingreso - General OCULTO'!$H$10)*G21 -> -1284.797036 | I21: 863.6417794
A22: 18 | C22: =('Ingreso - General OCULTO'!$D$22*'Calculo - Consumo'!AI23*12+'Ingreso - General OCULTO'!$D$23*'Calculo - Consumo'!AM23)/1000 -> 1991.408044 | D22: =('Ingreso - General OCULTO'!$D$25*'Salida - Consumos Anuales OCULT'!E23+'Ingreso - General OCULTO'!$D$26*'Salida - Consumos Anuales OCULT'!I23*12)/1000+'Ingreso - Inversión OCULTO'!$D$60*'Ingreso - General OCULTO'!$D$27 -> 2408.431482 | E22: -417.0234381 | F22: =('Ingreso - Inversión OCULTO'!$D$81-'Ingreso - Inversión OCULTO'!$H$56-'Ingreso - Inversión OCULTO'!$E$78)/'Ingreso - General OCULTO'!$D$16 -> 4337.352284 | G22: -4754.375722 | H22: =IF('Ingreso - General OCULTO'!$D$12="Regimen Atribuido",'Ingreso - General OCULTO'!$G$10,'Ingreso - General OCULTO'!$H$10)*G22 -> -1283.681445 | I22: 866.6580069
A23: 19 | C23: =('Ingreso - General OCULTO'!$D$22*'Calculo - Consumo'!AI24*12+'Ingreso - General OCULTO'!$D$23*'Calculo - Consumo'!AM24)/1000 -> 2001.783277 | D23: =('Ingreso - General OCULTO'!$D$25*'Salida - Consumos Anuales OCULT'!E24+'Ingreso - General OCULTO'!$D$26*'Salida - Consumos Anuales OCULT'!I24*12)/1000+'Ingreso - Inversión OCULTO'!$D$60*'Ingreso - General OCULTO'!$D$27 -> 2414.670348 | E23: -412.8870714 | F23: =('Ingreso - Inversión OCULTO'!$D$81-'Ingreso - Inversión OCULTO'!$H$56-'Ingreso - Inversión OCULTO'!$E$78)/'Ingreso - General OCULTO'!$D$16 -> 4337.352284 | G23: -4750.239355 | H23: =IF('Ingreso - General OCULTO'!$D$12="Regimen Atribuido",'Ingreso - General OCULTO'!$G$10,'Ingreso - General OCULTO'!$H$10)*G23 -> -1282.564626 | I23: 869.6775545
A24: 20 | C24: =('Ingreso - General OCULTO'!$D$22*'Calculo - Consumo'!AI25*12+'Ingreso - General OCULTO'!$D$23*'Calculo - Consumo'!AM25)/1000 -> 2012.18184 | D24: =('Ingreso - General OCULTO'!$D$25*'Salida - Consumos Anuales OCULT'!E25+'Ingreso - General OCULTO'!$D$26*'Salida - Consumos Anuales OCULT'!I25*12)/1000+'Ingreso - Inversión OCULTO'!$D$60*'Ingreso - General OCULTO'!$D$27 -> 2420.921291 | E24: -408.739451 | F24: =('Ingreso - Inversión OCULTO'!$D$81-'Ingreso - Inversión OCULTO'!$H$56-'Ingreso - Inversión OCULTO'!$E$78)/'Ingreso - General OCULTO'!$D$16 -> 4337.352284 | G24: -4746.091735 | H24: =IF('Ingreso - General OCULTO'!$D$12="Regimen Atribuido",'Ingreso - General OCULTO'!$G$10,'Ingreso - General OCULTO'!$H$10)*G24 -> -1281.444768 | I24: 872.7053174
A25: 21 | C25: =('Ingreso - General OCULTO'!$D$22*'Calculo - Consumo'!AI26*12+'Ingreso - General OCULTO'!$D$23*'Calculo - Consumo'!AM26)/1000 -> 2022.616047 | D25: =('Ingreso - General OCULTO'!$D$25*'Salida - Consumos Anuales OCULT'!E26+'Ingreso - General OCULTO'!$D$26*'Salida - Consumos Anuales OCULT'!I26*12)/1000+'Ingreso - Inversión OCULTO'!$D$60*'Ingreso - General OCULTO'!$D$27 -> 2427.192545 | E25: -404.576498 | F25: =('Ingreso - Inversión OCULTO'!$D$81-'Ingreso - Inversión OCULTO'!$H$56-'Ingreso - Inversión OCULTO'!$E$78)/'Ingreso - General OCULTO'!$D$16 -> 4337.352284 | G25: -4741.928782 | H25: =IF('Ingreso - General OCULTO'!$D$12="Regimen Atribuido",'Ingreso - General OCULTO'!$G$10,'Ingreso - General OCULTO'!$H$10)*G25 -> -1280.320771 | I25: 875.7442731
A26: 22 | C26: =('Ingreso - General OCULTO'!$D$22*'Calculo - Consumo'!AI27*12+'Ingreso - General OCULTO'!$D$23*'Calculo - Consumo'!AM27)/1000 -> 2033.093419 | D26: =('Ingreso - General OCULTO'!$D$25*'Salida - Consumos Anuales OCULT'!E27+'Ingreso - General OCULTO'!$D$26*'Salida - Consumos Anuales OCULT'!I27*12)/1000+'Ingreso - Inversión OCULTO'!$D$60*'Ingreso - General OCULTO'!$D$27 -> 2433.489133 | E26: -400.3957135 | F26: =('Ingreso - Inversión OCULTO'!$D$81-'Ingreso - Inversión OCULTO'!$H$56-'Ingreso - Inversión OCULTO'!$E$78)/'Ingreso - General OCULTO'!$D$16 -> 4337.352284 | G26: -4737.747997 | H26: =IF('Ingreso - General OCULTO'!$D$12="Regimen Atribuido",'Ingreso - General OCULTO'!$G$10,'Ingreso - General OCULTO'!$H$10)*G26 -> -1279.191959 | I26: 878.7962458
A27: 23 | C27: =('Ingreso - General OCULTO'!$D$22*'Calculo - Consumo'!AI28*12+'Ingreso - General OCULTO'!$D$23*'Calculo - Consumo'!AM28)/1000 -> 2043.618598 | D27: =('Ingreso - General OCULTO'!$D$25*'Salida - Consumos Anuales OCULT'!E28+'Ingreso - General OCULTO'!$D$26*'Salida - Consumos Anuales OCULT'!I28*12)/1000+'Ingreso - Inversión OCULTO'!$D$60*'Ingreso - General OCULTO'!$D$27 -> 2439.814147 | E27: -396.1955496 | F27: =('Ingreso - Inversión OCULTO'!$D$81-'Ingreso - Inversión OCULTO'!$H$56-'Ingreso - Inversión OCULTO'!$E$78)/'Ingreso - General OCULTO'!$D$16 -> 4337.352284 | G27: -4733.547833 | H27: =IF('Ingreso - General OCULTO'!$D$12="Regimen Atribuido",'Ingreso - General OCULTO'!$G$10,'Ingreso - General OCULTO'!$H$10)*G27 -> -1278.057915 | I27: 881.8623654
A28: 24 | C28: =('Ingreso - General OCULTO'!$D$22*'Calculo - Consumo'!AI29*12+'Ingreso - General OCULTO'!$D$23*'Calculo - Consumo'!AM29)/1000 -> 2054.194489 | D28: =('Ingreso - General OCULTO'!$D$25*'Salida - Consumos Anuales OCULT'!E29+'Ingreso - General OCULTO'!$D$26*'Salida - Consumos Anuales OCULT'!I29*12)/1000+'Ingreso - Inversión OCULTO'!$D$60*'Ingreso - General OCULTO'!$D$27 -> 2446.169519 | E28: -391.9750303 | F28: =('Ingreso - Inversión OCULTO'!$D$81-'Ingreso - Inversión OCULTO'!$H$56-'Ingreso - Inversión OCULTO'!$E$78)/'Ingreso - General OCULTO'!$D$16 -> 4337.352284 | G28: -4729.327314 | H28: =IF('Ingreso - General OCULTO'!$D$12="Regimen Atribuido",'Ingreso - General OCULTO'!$G$10,'Ingreso - General OCULTO'!$H$10)*G28 -> -1276.918375 | I28: 884.9433445
A29: 25 | C29: =('Ingreso - General OCULTO'!$D$22*'Calculo - Consumo'!AI30*12+'Ingreso - General OCULTO'!$D$23*'Calculo - Consumo'!AM30)/1000 -> 2064.822956 | D29: =('Ingreso - General OCULTO'!$D$25*'Salida - Consumos Anuales OCULT'!E30+'Ingreso - General OCULTO'!$D$26*'Salida - Consumos Anuales OCULT'!I30*12)/1000+'Ingreso - Inversión OCULTO'!$D$60*'Ingreso - General OCULTO'!$D$27 -> 2452.55648 | E29: -387.7335237 | F29: =('Ingreso - Inversión OCULTO'!$D$81-'Ingreso - Inversión OCULTO'!$H$56-'Ingreso - Inversión OCULTO'!$E$78)/'Ingreso - General OCULTO'!$D$16 -> 4337.352284 | G29: -4725.085808 | H29: =IF('Ingreso - General OCULTO'!$D$12="Regimen Atribuido",'Ingreso - General OCULTO'!$G$10,'Ingreso - General OCULTO'!$H$10)*G29 -> -1275.773168 | I29: 888.0396443
A30: 26 | C30: =('Ingreso - General OCULTO'!$D$22*'Calculo - Consumo'!AI31*12+'Ingreso - General OCULTO'!$D$23*'Calculo - Consumo'!AM31)/1000 -> 2075.505235 | D30: =('Ingreso - General OCULTO'!$D$25*'Salida - Consumos Anuales OCULT'!E31+'Ingreso - General OCULTO'!$D$26*'Salida - Consumos Anuales OCULT'!I31*12)/1000+'Ingreso - Inversión OCULTO'!$D$60*'Ingreso - General OCULTO'!$D$27 -> 2458.97584 | E30: -383.4706048 | F30: =('Ingreso - Inversión OCULTO'!$D$81-'Ingreso - Inversión OCULTO'!$H$56-'Ingreso - Inversión OCULTO'!$E$78)/'Ingreso - General OCULTO'!$D$16 -> 4337.352284 | G30: -4720.822889 | H30: =IF('Ingreso - General OCULTO'!$D$12="Regimen Atribuido",'Ingreso - General OCULTO'!$G$10,'Ingreso - General OCULTO'!$H$10)*G30 -> -1274.62218 | I30: 891.1515751
A31: 27 | C31: =('Ingreso - General OCULTO'!$D$22*'Calculo - Consumo'!AI32*12+'Ingreso - General OCULTO'!$D$23*'Calculo - Consumo'!AM32)/1000 -> 2086.242186 | D31: =('Ingreso - General OCULTO'!$D$25*'Salida - Consumos Anuales OCULT'!E32+'Ingreso - General OCULTO'!$D$26*'Salida - Consumos Anuales OCULT'!I32*12)/1000+'Ingreso - Inversión OCULTO'!$D$60*'Ingreso - General OCULTO'!$D$27 -> 2465.428159 | E31: -379.1859727 | F31: =('Ingreso - Inversión OCULTO'!$D$81-'Ingreso - Inversión OCULTO'!$H$56-'Ingreso - Inversión OCULTO'!$E$78)/'Ingreso - General OCULTO'!$D$16 -> 4337.352284 | G31: -4716.538257 | H31: =IF('Ingreso - General OCULTO'!$D$12="Regimen Atribuido",'Ingreso - General OCULTO'!$G$10,'Ingreso - General OCULTO'!$H$10)*G31 -> -1273.465329 | I31: 894.2793565
A32: 28 | C32: =('Ingreso - General OCULTO'!$D$22*'Calculo - Consumo'!AI33*12+'Ingreso - General OCULTO'!$D$23*'Calculo - Consumo'!AM33)/1000 -> 2097.034442 | D32: =('Ingreso - General OCULTO'!$D$25*'Salida - Consumos Anuales OCULT'!E33+'Ingreso - General OCULTO'!$D$26*'Salida - Consumos Anuales OCULT'!I33*12)/1000+'Ingreso - Inversión OCULTO'!$D$60*'Ingreso - General OCULTO'!$D$27 -> 2471.913843 | E32: -374.8794013 | F32: =('Ingreso - Inversión OCULTO'!$D$81-'Ingreso - Inversión OCULTO'!$H$56-'Ingreso - Inversión OCULTO'!$E$78)/'Ingreso - General OCULTO'!$D$16 -> 4337.352284 | G32: -4712.231685 | H32: =IF('Ingreso - General OCULTO'!$D$12="Regimen Atribuido",'Ingreso - General OCULTO'!$G$10,'Ingreso - General OCULTO'!$H$10)*G32 -> -1272.302555 | I32: 897.4231537
A33: 29 | C33: =('Ingreso - General OCULTO'!$D$22*'Calculo - Consumo'!AI34*12+'Ingreso - General OCULTO'!$D$23*'Calculo - Consumo'!AM34)/1000 -> 2107.8825 | D33: =('Ingreso - General OCULTO'!$D$25*'Salida - Consumos Anuales OCULT'!E34+'Ingreso - General OCULTO'!$D$26*'Salida - Consumos Anuales OCULT'!I34*12)/1000+'Ingreso - Inversión OCULTO'!$D$60*'Ingreso - General OCULTO'!$D$27 -> 2478.433209 | E33: -370.5507087 | F33: =('Ingreso - Inversión OCULTO'!$D$81-'Ingreso - Inversión OCULTO'!$H$56-'Ingreso - Inversión OCULTO'!$E$78)/'Ingreso - General OCULTO'!$D$16 -> 4337.352284 | G33: -4707.902993 | H33: =IF('Ingreso - General OCULTO'!$D$12="Regimen Atribuido",'Ingreso - General OCULTO'!$G$10,'Ingreso - General OCULTO'!$H$10)*G33 -> -1271.133808 | I33: 900.5830992
A34: 30 | C34: =('Ingreso - General OCULTO'!$D$22*'Calculo - Consumo'!AI35*12+'Ingreso - General OCULTO'!$D$23*'Calculo - Consumo'!AM35)/1000 -> 2118.786777 | D34: =('Ingreso - General OCULTO'!$D$25*'Salida - Consumos Anuales OCULT'!E35+'Ingreso - General OCULTO'!$D$26*'Salida - Consumos Anuales OCULT'!I35*12)/1000+'Ingreso - Inversión OCULTO'!$D$60*'Ingreso - General OCULTO'!$D$27 -> 2484.986517 | E34: -366.1997402 | F34: =('Ingreso - Inversión OCULTO'!$D$81-'Ingreso - Inversión OCULTO'!$H$56-'Ingreso - Inversión OCULTO'!$E$78)/'Ingreso - General OCULTO'!$D$16 -> 4337.352284 | G34: -4703.552024 | H34: =IF('Ingreso - General OCULTO'!$D$12="Regimen Atribuido",'Ingreso - General OCULTO'!$G$10,'Ingreso - General OCULTO'!$H$10)*G34 -> -1269.959046 | I34: 903.7593063
H36: VAN M$ | I36: =I4+NPV('Ingreso - General OCULTO'!D14,I5:I34) -> -123149.1707
H37: TIR | I37: =IRR(I4:I34,0) -> -0.08296076735
A40: =+'Ingreso - General OCULTO'!A41:D41 -> Planilla de Evaluación Ministerio de Desarrollo Social - Versión 2016

Sheet Salida - Financiamiento
A1: ='Salida - Financiamiento OCULTO'!A1 -> PARTE VIII : | B1: ='Salida - Financiamiento OCULTO'!B1 -> 0 | C1: ='Salida - Financiamiento OCULTO'!C1 -> 0 | D1: ='Salida - Financiamiento OCULTO'!D1 -> 0 | E1: ='Salida - Financiamiento OCULTO'!E1 -> 0
A2: FINANCIAMIENTO
A4: Financiamiento Calculado por la Metodología
A5: Aporte Mínimo de la Comunidad | D5: ='Salida - Financiamiento OCULTO'!D5 -> 3150 | E5: [M$]
A6: Subsidio Estatal Máximo | D6: ='Salida - Financiamiento OCULTO'!D6 -> 123149.1707 | E6: [M$]
A7: Aporte Mínimo de la Empresa | D7: ='Salida - Financiamiento OCULTO'!D7 -> 6971.397765 | E7: [M$]
A8: Total Inversión | D8: ='Salida - Financiamiento OCULTO'!D8 -> 133270.5685 | E8: [M$]
A10: Otros Aportes | C10: Otros Aportes
A11: FUENTE DEL APORTE | D11: MONTO
A12: Extra Comunidad | D12: 0 | E12: [M$]
A13: Extra Empresa | D13: 0 | E13: [M$]
A14: Otro (especificar) | D14: 0 | E14: [M$]
A15: Total Otros Aportes | D15: ='Salida - Financiamiento OCULTO'!D15 -> 0 | E15: M$
A17: Desglose Final de Financiamiento
A18: Aporte de la Comunidad | D18: ='Salida - Financiamiento OCULTO'!D18 -> 3150 | E18: ='Salida - Financiamiento OCULTO'!E18 -> [M$]
A19: Aporte Empresa | D19: ='Salida - Financiamiento OCULTO'!D19 -> 6971.397765 | E19: ='Salida - Financiamiento OCULTO'!E19 -> [M$]
A20: Aporte Otra Fuente | D20: ='Salida - Financiamiento OCULTO'!D20 -> 0 | E20: ='Salida - Financiamiento OCULTO'!E20 -> [M$]
A21: Subsidio Estatal Máximo | D21: ='Salida - Financiamiento OCULTO'!D21 -> 123149.1707 | E21: ='Salida - Financiamiento OCULTO'!E21 -> [M$]
A22: Total Inversión | D22: ='Salida - Financiamiento OCULTO'!D22 -> 133270.5685 | E22: ='Salida - Financiamiento OCULTO'!E22 -> [M$]
A24: INDICADORES ECONÓMICOS Y OBSERVACIONES
A25: - VAN SOCIAL | D25: =#REF! ->  | E25: [M$]
A26: =IF(D25<0," ¡ Proyecto no cumple condición : VAN SOCIAL >= 0 !"," Proyecto cumple condición : VAN SOCIAL >= 0") -> 
A27: - VAN PRIVADO | D27: ='Salida - Financiamiento OCULTO'!D27:D28 -> -123149.1707 | E27: ='Salida - Financiamiento OCULTO'!E27:E28 -> [M$]
A28: =IF(D27<0," Proyecto cumple condición : VAN PRIVADO < 0"," ¡ Proyecto no cumple condición : VAN PRIVADO < 0 !") -> Proyecto cumple condición : VAN PRIVADO < 0
A29: - VAN PRIVADO CON APORTE COMUNIDAD, SUBSIDIO ESTATAL Y OTROS | D29: ='Salida - Financiamiento OCULTO'!D29:D30 -> 0 | E29: ='Salida - Financiamiento OCULTO'!E29:E30 -> [M$]
A31: - FLUJOS PRIVADOS FUTUROS (VPN FLUJOS FUTUROS) | D31: ='Salida - Financiamiento OCULTO'!D31:D32 -> 6971.397765 | E31: ='Salida - Financiamiento OCULTO'!E31:E32 -> [M$]
A32: =IF(D31<0," ¡ Proyecto no cumple condición : Subsidio < Inversión ! "," Proyecto cumple condición : Subsidio < Inversión") -> Proyecto cumple condición : Subsidio < Inversión
A33: - PERDIDAS PROMEDIO DE ENERGIA EN PROYECTO | D33: ='Salida - Financiamiento OCULTO'!D33:D34 -> 0.1637755883 | E33: ='Salida - Financiamiento OCULTO'!E33:E34 -> [M$]
A34: =IF(D33<0.1,"",IF(D33<0.15," Pérdidas Energía : Se recomienda revisión diseño"," Pérdidas Energía : Alta Probabilidad de diseño sobredimensionado")) -> Pérdidas Energía : Alta Probabilidad de diseño sobredimensionado
A35: - INVERSION (Sin Instalaciones Interiores) | D35: ='Salida - Financiamiento OCULTO'!D35 -> 130120.5685 | E35: ='Salida - Financiamiento OCULTO'!E35 -> [M$]
A36: - BAUE SOCIAL | D36: ='Salida - Financiamiento OCULTO'!D36 ->  | E36: ='Salida - Financiamiento OCULTO'!E36 -> [M$]
A37: - IVAN SOCIAL | D37: ='Salida - Financiamiento OCULTO'!D37 ->  | E37: ='Salida - Financiamiento OCULTO'!E37 -> 0
A38: - INVERSION (Con instalaciones Interiores) | D38: ='Salida - Financiamiento OCULTO'!D38 -> 133270.5685 | E38: ='Salida - Financiamiento OCULTO'!E38 -> [M$]
A39: - Nº BENEFICIARIOS RESIDENCIALES | D39: ='Salida - Financiamiento OCULTO'!D39 -> 18 | E39: ='Salida - Financiamiento OCULTO'!E39 -> Cant.
A40: - N°BENEFICIARIOS ESTABLECIMIENTOS | D40: ='Salida - Financiamiento OCULTO'!D40 -> 0 | E40: ='Salida - Financiamiento OCULTO'!E40 -> Cant.
A41: - N°BENEFICIARIOS TOTALES | D41: ='Salida - Financiamiento OCULTO'!D41 -> 18 | E41: ='Salida - Financiamiento OCULTO'!E41 -> Cant.
A42: - INVERSION / Nº BENEFICIARIOS RESIDENCIALES | D42: ='Salida - Financiamiento OCULTO'!D42 -> 7403.920473 | E42: ='Salida - Financiamiento OCULTO'!E42 -> [M$]
A43: - SUBSIDIO / Nº BENEFICIARIOS RESIDENCIALES | D43: ='Salida - Financiamiento OCULTO'!D43 -> 6841.620597 | E43: ='Salida - Financiamiento OCULTO'!E43 -> [M$]
A44: - INVERSIÓN INCLUÍDA IVA / Nº BENEFICIARIOS TOTALES | D44: ='Salida - Financiamiento OCULTO'!D44 -> 8810.665363 | E44: ='Salida - Financiamiento OCULTO'!E44 -> [M$]
A45: - INVERSIÓN INCLUÍDA IVA / Nº BENEFICIARIOS TOTALES | D45: ='Salida - Financiamiento OCULTO'!D45 -> 376.5241608 | E45: ='Salida - Financiamiento OCULTO'!E45 -> [UF]
A47: =+'Ingreso - General OCULTO'!A41:D41 -> Planilla de Evaluación Ministerio de Desarrollo Social - Versión 2016

Sheet Salida - Financiamiento OCULTO (hidden)
A1: PARTE VIII : | B1: =+'Ingreso - General OCULTO'!A8 -> 0
A2: FINANCIAMIENTO
A4: Financiamiento Calculado por la Metodología
A5: Aporte Mínimo de la Comunidad | D5: ='Ingreso - Inversión OCULTO'!E78+'Ingreso - Inversión OCULTO'!H56 -> 3150 | E5: [M$]
A6: Subsidio Estatal Máximo | D6: =-IF('Salida - Evaluación Privada OCU'!I36>=0,0,IF('Salida - Evaluación Privada OCU'!I36>='Salida - Evaluación Privada OCU'!B4,'Salida - Evaluación Privada OCU'!I36,'Salida - Evaluación Privada OCU'!B4)) -> 123149.1707 | E6: [M$]
A7: Aporte Mínimo de la Empresa | D7: =IF('Salida - Evaluación Privada OCU'!I36>=0,'Salida - Evaluación Privada OCU'!B4,(IF('Salida - Evaluación Privada OCU'!B4>'Salida - Evaluación Privada OCU'!I36,"VAN PRIVADO<0",-('Salida - Evaluación Privada OCU'!B4-'Salida - Evaluación Privada OCU'!I36)))) -> 6971.397765 | E7: [M$]
A8: Total Inversión | D8: =SUM(D5:D7) -> 133270.5685 | E8: [M$]
A10: Otros Aportes | C10: Otros Aportes
A11: FUENTE DEL APORTE | D11: MONTO
A12: Extra Comunidad | D12: ='Salida - Financiamiento'!D12 -> 0 | E12: [M$]
A13: Extra Empresa | D13: ='Salida - Financiamiento'!D13 -> 0 | E13: [M$]
A14: Otro (especificar) | B14: 0 | D14: ='Salida - Financiamiento'!D14 -> 0 | E14: [M$]
A15: Total Otros Aportes | D15: =SUM(D12:D14) -> 0 | E15: M$
A17: Desglose Final de Financiamiento
A18: Aporte de la Comunidad | D18: =D5+D12 -> 3150 | E18: [M$]
A19: Aporte Empresa | D19: =IF(D7="VAN PRIVADO<0",D13,D7+D13) -> 6971.397765 | E19: [M$]
A20: Aporte Otra Fuente | D20: =D14 -> 0 | E20: [M$]
A21: Subsidio Estatal Máximo | D21: =IF(D6+'Salida - Evaluación Privada OCU'!I36+D12+D13+D14>=0,-'Salida - Evaluación Privada OCU'!I36-(D12+D13+D14)+0,D6) -> 123149.1707 | E21: [M$]
A22: Total Inversión | D22: =SUM(D18:D21) -> 133270.5685 | E22: [M$]
A24: INDICADORES ECONÓMICOS Y OBSERVACIONES
A25: - VAN SOCIAL | D25: =#REF! ->  | E25: [M$]
A26: =IF(D25<0," ¡ Proyecto no cumple condición : VAN SOCIAL >= 0 !"," Proyecto cumple condición : VAN SOCIAL >= 0") -> 
A27: - VAN PRIVADO | D27: ='Salida - Evaluación Privada OCU'!I36 -> -123149.1707 | E27: [M$]
A28: =IF(D27<0," Proyecto cumple condición : VAN PRIVADO < 0"," ¡ Proyecto no cumple condición : VAN PRIVADO < 0 !") -> Proyecto cumple condición : VAN PRIVADO < 0
A29: - VAN PRIVADO CON APORTE COMUNIDAD, SUBSIDIO ESTATAL Y OTROS | D29: ='Salida - Evaluación Privada OCU'!I36+D12+D14+D6 -> 0 | E29: [M$]
A31: - FLUJOS PRIVADOS FUTUROS (VPN FLUJOS FUTUROS) | D31: ='Salida - Evaluación Privada OCU'!I36-'Salida - Evaluación Privada OCU'!B4 -> 6971.397765 | E31: [M$]
A32: =IF(D31<0," ¡ Proyecto no cumple condición : Subsidio < Inversión ! "," Proyecto cumple condición : Subsidio < Inversión") -> Proyecto cumple condición : Subsidio < Inversión
A33: - PERDIDAS PROMEDIO DE ENERGIA EN PROYECTO | D33: =AVERAGE('Salida - Consumos Anuales OCULT'!F6:F35) -> 0.1637755883 | E33: [M$]
A34: =IF(D33<0.1,"",IF(D33<0.15," Pérdidas Energía : Se recomienda revisión diseño"," Pérdidas Energía : Alta Probabilidad de diseño sobredimensionado")) -> Pérdidas Energía : Alta Probabilidad de diseño sobredimensionado
A35: - INVERSION (Sin Instalaciones Interiores) | D35: =-'Salida - Evaluación Privada OCU'!B4 -> 130120.5685 | E35: [M$]
A36: - BAUE SOCIAL | D36: =+D25*(((1+'Ingreso - General OCULTO'!$D$15)^'Ingreso - General OCULTO'!$D$16*'Ingreso - General OCULTO'!$D$15)/((1+'Ingreso - General OCULTO'!$D$15)^'Ingreso - General OCULTO'!$D$16-1)) ->  | E36: [M$]
A37: - IVAN SOCIAL | D37: =+D25/D38 -> 
A38: - INVERSION (Con instalaciones Interiores) | D38: =+'Ingreso - Inversión OCULTO'!D81 -> 133270.5685 | E38: [M$]
A39: - Nº BENEFICIARIOS RESIDENCIALES | D39: ='Ingreso - Consumo OCULTO'!$B$10 -> 18 | E39: Cant.
A40: - N°BENEFICIARIOS ESTABLECIMIENTOS | D40: ='Ingreso - Consumo OCULTO'!C31 -> 0 | E40: Cant.
A41: - N°BENEFICIARIOS TOTALES | D41: =SUM(D39:D40) -> 18 | E41: Cant.
A42: - INVERSION / Nº BENEFICIARIOS RESIDENCIALES | D42: =+D38/D39 -> 7403.920473 | E42: [M$]
A43: - SUBSIDIO / Nº BENEFICIARIOS RESIDENCIALES | D43: =+D21/D39 -> 6841.620597 | E43: [M$]
A44: - INVERSIÓN INCLUÍDA IVA / Nº BENEFICIARIOS TOTALES | D44: =+D38*1.19/(D39+D40) -> 8810.665363 | E44: [M$]
A45: - INVERSIÓN INCLUÍDA IVA / Nº BENEFICIARIOS TOTALES | D45: =+D38*1.19/(D39+D40)/'Ingreso - General OCULTO'!D18*1000 -> 376.5241608 | E45: [UF]
A47: =+'Ingreso - General OCULTO'!A41:D41 -> Planilla de Evaluación Ministerio de Desarrollo Social - Versión 2016

Sheet Calculo - Consumo (hidden)
A1: CALCULO CONSUMOS Y BENEFICIOS RESIDENCIALES SEGÚN CAS | U1: CALCULO DE CONSUMOS PRODUCTIVOS | AA1: CALCULO DE CONSUMO PARA OTROS ESTABLECIMIENTOS | AF1: CUADRO RESUMEN
A2: Año | B2: CAS 1 | F2: CAS 2 | J2: CAS 3 | N2: CAS 4 | R2: Cantidad Total de Familias | S2: Consumo Residencial Qcp [kWh/Año] | U2: Consumo Productivo Generado Qcp [kWh/Año] | V2: Consumo Productivo Transferido Qcp [kWh/Año] | X2: Total Consumos Productivos | AA2: ¿Dispone de Energía Electrica? | AC2: Total Consumos Otros Establecimientos | AF2: CANTIDAD | AJ2: CONSUMO
B3: Qcp inicio | C3: A | D3: B | E3: C | F3: Qcp inicio | G3: A | H3: B | I3: C | J3: Qcp inicio | K3: A | L3: B | M3: C | N3: Qcp inicio | O3: A | P3: B | Q3: C | X3: Cantidad de Consumos Productivos Transferidos | Y3: Consumo Productivo Qcp [kWh/Año] | AA3: No | AB3: Sí | AF3: RESIDENCIAL | AG3: PRODUCTIVO | AH3: OTROS | AI3: TOTAL | AJ3: RESIDENCIAL Qcp [kWh/Año] | AK3: PRODUCTIVO Qcp [kWh/Año] | AL3: OTROS Qcp [kWh/Año] | AM3: TOTAL Qcp [kWh/Año]
B4: =+C6 -> 20 | C4: ='Ingreso - Consumo OCULTO'!B14 -> 42 | D4: ='Ingreso - Consumo OCULTO'!C14 -> 22 | E4: ='Ingreso - Consumo OCULTO'!D14*-1 -> -2.13 | F4: =+G6 -> 20 | G4: ='Ingreso - Consumo OCULTO'!B15 -> 68 | H4: ='Ingreso - Consumo OCULTO'!C15 -> 48 | I4: ='Ingreso - Consumo OCULTO'!D15*-1 -> -1.89 | J4: =+K6 -> 30 | K4: ='Ingreso - Consumo OCULTO'!B16 -> 86 | L4: ='Ingreso - Consumo OCULTO'!C16 -> 56 | M4: ='Ingreso - Consumo OCULTO'!D16*-1 -> -1.95 | N4: =+O6 -> 30 | O4: ='Ingreso - Consumo OCULTO'!B17 -> 151 | P4: ='Ingreso - Consumo OCULTO'!C17 -> 121 | Q4: ='Ingreso - Consumo OCULTO'!D17*-1 -> -1.8 | AA4: Consumo Qcp [kWh/Año] | AB4: Consumo Qcp [kWh/Año] | AC4: Cantidad Otros Establecimientos | AD4: Consumo Qcp [kWh/Año]
B5: Nº Fam | C5: Qcp Residencial | D5: Qcp Prod Generado | E5: Qcp Total | F5: Nº Fam | G5: Qcp Residencial | H5: Qcp Prod Generado | I5: Qcp Total | J5: Nº Fam | K5: Qcp Residencial | L5: Qcp Prod Generado | M5: Qcp Total | N5: Nº Fam | O5: Qcp Residencial | P5: Qcp Prod Generado | Q5: Qcp Total
A6: 0 | B6: ='Ingreso - Consumo OCULTO'!$B$6 -> 0 | C6: =IF($E$4=0,0,($C$4-$D$4*EXP($A6/$E$4))) -> 20 | D6: =IF($E$4=0,0,($C$4-$D$4*EXP($A6/$E$4))*'Ingreso - Consumo OCULTO'!$D$39) -> 0.6 | E6: =+C6+D6 -> 20.6 | F6: ='Ingreso - Consumo OCULTO'!$B$7 -> 0 | G6: =IF($I$4=0,0,($G$4-$H$4*EXP($A6/$I$4))) -> 20 | H6: =IF($I$4=0,0,($G$4-$H$4*EXP($A6/$I$4))*'Ingreso - Consumo OCULTO'!$D$39) -> 0.6 | I6: =+G6+H6 -> 20.6 | J6: ='Ingreso - Consumo OCULTO'!$B$8 -> 18 | K6: =IF($M$4=0,0,($K$4-$L$4*EXP($A6/$M$4))) -> 30 | L6: =IF($M$4=0,0,($K$4-$L$4*EXP($A6/$M$4))*'Ingreso - Consumo OCULTO'!$D$39) -> 0.9 | M6: =+K6+L6 -> 30.9 | N6: ='Ingreso - Consumo OCULTO'!$B$9 -> 0 | O6: =IF($Q$4=0,0,($O$4-$P$4*EXP($A6/$Q$4))) -> 30 | P6: =IF($Q$4=0,0,($O$4-$P$4*EXP($A6/$Q$4))*+'Ingreso - Consumo OCULTO'!$D$39) -> 0.9 | Q6: =+O6+P6 -> 30.9 | R6: =B6+F6+J6+N6 -> 18 | S6: =(B6*C6+F6*G6+J6*K6+N6*O6)*12 -> 6480 | U6: =(+D6+H6+L6+P6)*12 -> 36 | V6: =+'Ingreso - Consumo OCULTO'!$D$36*12 -> 0 | X6: =+'Ingreso - Consumo OCULTO'!$D$35 -> 0 | Y6: =+U6+V6 -> 36 | AA6: =IF($Q$4=0,0,($O$4-$P$4*EXP($A6/$Q$4))*12*(+'Ingreso - Consumo OCULTO'!$C$22*1+'Ingreso - Consumo OCULTO'!$C$24*2+'Ingreso - Consumo OCULTO'!$C$26*2+'Ingreso - Consumo OCULTO'!$C$28*1)) -> 0 | AB6: =12*'Ingreso - Consumo OCULTO'!$D$29*(1+'Ingreso - General OCULTO'!$D$11)^A6 -> 0 | AC6: =+'Ingreso - Consumo OCULTO'!$C$31 -> 0 | AD6: =+AA6+AB6 -> 0 | AF6: =+R6 -> 18 | AG6: =+X6 -> 0 | AH6: =+AC6 -> 0 | AI6: =+AF6+AG6+AH6 -> 18 | AJ6: =+S6 -> 6480 | AK6: =+Y6 -> 36 | AL6: =+AD6 -> 0 | AM6: =+AJ6+AK6+AL6 -> 6516
A7: 1 | B7: =B6*(1+'Ingreso - General OCULTO'!$D$11) -> 0 | C7: =IF($E$4=0,0,($C$4-$D$4*EXP($A7/$E$4))) -> 28.2428473 | D7: =IF($E$4=0,0,($C$4-$D$4*EXP($A7/$E$4))*'Ingreso - Consumo OCULTO'!$D$39) -> 0.847285419 | E7: =+C7+D7 -> 29.09013272 | F7: =F6*(1+'Ingreso - General OCULTO'!$D$11) -> 0 | G7: 39.72153724 | H7: =IF($I$4=0,0,($G$4-$H$4*EXP($A7/$I$4))*'Ingreso - Consumo OCULTO'!$D$39) -> 1.191646117 | I7: =+G7+H7 -> 40.91318335 | J7: =J6*(1+'Ingreso - General OCULTO'!$D$11) -> 18.0936 | K7: 52.46696146 | L7: =IF($M$4=0,0,($K$4-$L$4*EXP($A7/$M$4))*'Ingreso - Consumo OCULTO'!$D$39) -> 1.574008844 | M7: =+K7+L7 -> 54.0409703 | N7: =N6*(1+'Ingreso - General OCULTO'!$D$11) -> 0 | O7: 81.57583609 | P7: =IF($Q$4=0,0,($O$4-$P$4*EXP($A7/$Q$4))*+'Ingreso - Consumo OCULTO'!$D$39) -> 2.447275083 | Q7: =+O7+P7 -> 84.02311117 | R7: 18.0936 | S7: 11391.79457 | U7: 72.72258555 | V7: =+'Ingreso - Consumo OCULTO'!$D$36*12 -> 0 | X7: =+'Ingreso - Consumo OCULTO'!$D$35 -> 0 | Y7: 72.72258555 | AA7: =IF($Q$4=0,0,($O$4-$P$4*EXP($A7/$Q$4))*12*(+'Ingreso - Consumo OCULTO'!$C$22*1+'Ingreso - Consumo OCULTO'!$C$24*2+'Ingreso - Consumo OCULTO'!$C$26*2+'Ingreso - Consumo OCULTO'!$C$28*1)) -> 0 | AB7: =12*'Ingreso - Consumo OCULTO'!$D$29*(1+'Ingreso - General OCULTO'!$D$11)^A7 -> 0 | AC7: =+'Ingreso - Consumo OCULTO'!$C$31 -> 0 | AD7: 0 | AF7: =+R7 -> 18.0936 | AG7: =+X7 -> 0 | AH7: =+AC7 -> 0 | AI7: =+AF7+AG7+AH7 -> 18.0936 | AJ7: =+S7 -> 11391.79457 | AK7: =+Y7 -> 72.72258555 | AL7: =+AD7 -> 0 | AM7: =+AJ7+AK7+AL7 -> 11464.51715
A8: 2 | B8: =B7*(1+'Ingreso - General OCULTO'!$D$11) -> 0 | C8: 33.3973068 | D8: =IF($E$4=0,0,($C$4-$D$4*EXP($A8/$E$4))*'Ingreso - Consumo OCULTO'!$D$39) -> 1.001919204 | E8: 34.399226 | F8: =F7*(1+'Ingreso - General OCULTO'!$D$11) -> 0 | G8: 51.340178 | H8: =IF($I$4=0,0,($G$4-$H$4*EXP($A8/$I$4))*'Ingreso - Consumo OCULTO'!$D$39) -> 1.54020534 | I8: 52.88038333 | J8: =J7*(1+'Ingreso - General OCULTO'!$D$11) -> 18.18768672 | K8: 65.92027368 | L8: =IF($M$4=0,0,($K$4-$L$4*EXP($A8/$M$4))*'Ingreso - Consumo OCULTO'!$D$39) -> 1.97760821 | M8: 67.89788189 | N8: =N7*(1+'Ingreso - General OCULTO'!$D$11) -> 0 | O8: 111.1676485 | P8: =IF($Q$4=0,0,($O$4-$P$4*EXP($A8/$Q$4))*+'Ingreso - Consumo OCULTO'!$D$39) -> 3.335029454 | Q8: 114.5026779 | R8: 18.18768672 | S8: 14387.24743 | U8: 94.2571465 | V8: =+'Ingreso - Consumo OCULTO'!$D$36*12 -> 0 | X8: =+'Ingreso - Consumo OCULTO'!$D$35 -> 0 | Y8: 94.2571465 | AA8: =IF($Q$4=0,0,($O$4-$P$4*EXP($A8/$Q$4))*12*(+'Ingreso - Consumo OCULTO'!$C$22*1+'Ingreso - Consumo OCULTO'!$C$24*2+'Ingreso - Consumo OCULTO'!$C$26*2+'Ingreso - Consumo OCULTO'!$C$28*1)) -> 0 | AB8: =12*'Ingreso - Consumo OCULTO'!$D$29*(1+'Ingreso - General OCULTO'!$D$11)^A8 -> 0 | AC8: =+'Ingreso - Consumo OCULTO'!$C$31 -> 0 | AD8: 0 | AF8: 18.18768672 | AG8: 0 | AH8: 0 | AI8: 18.18768672 | AJ8: 14387.24743 | AK8: 94.2571465 | AL8: 0 | AM8: 14481.50458
A9: 3 | B9: =B8*(1+'Ingreso - General OCULTO'!$D$11) -> 0 | C9: 36.62051982 | D9: =IF($E$4=0,0,($C$4-$D$4*EXP($A9/$E$4))*'Ingreso - Consumo OCULTO'!$D$39) -> 1.098615595 | E9: 37.71913541 | F9: =F8*(1+'Ingreso - General OCULTO'!$D$11) -> 0 | G9: 58.18512175 | H9: =IF($I$4=0,0,($G$4-$H$4*EXP($A9/$I$4))*'Ingreso - Consumo OCULTO'!$D$39) -> 1.745553652 | I9: 59.9306754 | J9: =J8*(1+'Ingreso - General OCULTO'!$D$11) -> 18.28226269 | K9: 73.97617435 | L9: =IF($M$4=0,0,($K$4-$L$4*EXP($A9/$M$4))*'Ingreso - Consumo OCULTO'!$D$39) -> 2.21928523 | M9: 76.19545958 | N9: =N8*(1+'Ingreso - General OCULTO'!$D$11) -> 0 | O9: 128.1460521 | P9: =IF($Q$4=0,0,($O$4-$P$4*EXP($A9/$Q$4))*+'Ingreso - Consumo OCULTO'!$D$39) -> 3.844381562 | Q9: 131.9904336 | R9: 18.28226269 | S9: 16229.42223 | U9: 106.8940325 | V9: =+'Ingreso - Consumo OCULTO'!$D$36*12 -> 0 | X9: =+'Ingreso - Consumo OCULTO'!$D$35 -> 0 | Y9: 106.8940325 | AA9: =IF($Q$4=0,0,($O$4-$P$4*EXP($A9/$Q$4))*12*(+'Ingreso - Consumo OCULTO'!$C$22*1+'Ingreso - Consumo OCULTO'!$C$24*2+'Ingreso - Consumo OCULTO'!$C$26*2+'Ingreso - Consumo OCULTO'!$C$28*1)) -> 0 | AB9: =12*'Ingreso - Consumo OCULTO'!$D$29*(1+'Ingreso - General OCULTO'!$D$11)^A9 -> 0 | AC9: =+'Ingreso - Consumo OCULTO'!$C$31 -> 0 | AD9: 0 | AF9: 18.28226269 | AG9: 0 | AH9: 0 | AI9: 18.28226269 | AJ9: 16229.42223 | AK9: 106.8940325 | AL9: 0 | AM9: 16336.31626
A10: 4 | B10: =B9*(1+'Ingreso - General OCULTO'!$D$11) -> 0 | C10: 38.63607589 | D10: =IF($E$4=0,0,($C$4-$D$4*EXP($A10/$E$4))*'Ingreso - Consumo OCULTO'!$D$39) -> 1.159082277 | E10: 39.79515817 | F10: =F9*(1+'Ingreso - General OCULTO'!$D$11) -> 0 | G10: 62.21771522 | H10: =IF($I$4=0,0,($G$4-$H$4*EXP($A10/$I$4))*'Ingreso - Consumo OCULTO'!$D$39) -> 1.866531457 | I10: 64.08424668 | J10: =J9*(1+'Ingreso - General OCULTO'!$D$11) -> 18.37733046 | K10: 78.80008198 | L10: =IF($M$4=0,0,($K$4-$L$4*EXP($A10/$M$4))*'Ingreso - Consumo OCULTO'!$D$39) -> 2.364002459 | M10: 81.16408444 | N10: =N9*(1+'Ingreso - General OCULTO'!$D$11) -> 0 | O10: 137.8874692 | P10: =IF($Q$4=0,0,($O$4-$P$4*EXP($A10/$Q$4))*+'Ingreso - Consumo OCULTO'!$D$39) -> 4.136624076 | Q10: 142.0240933 | R10: 18.37733046 | S10: 17377.62176 | U10: 114.3148832 | V10: =+'Ingreso - Consumo OCULTO'!$D$36*12 -> 0 | X10: =+'Ingreso - Consumo OCULTO'!$D$35 -> 0 | Y10: 114.3148832 | AA10: =IF($Q$4=0,0,($O$4-$P$4*EXP($A10/$Q$4))*12*(+'Ingreso - Consumo OCULTO'!$C$22*1+'Ingreso - Consumo OCULTO'!$C$24*2+'Ingreso - Consumo OCULTO'!$C$26*2+'Ingreso - Consumo OCULTO'!$C$28*1)) -> 0 | AB10: =12*'Ingreso - Consumo OCULTO'!$D$29*(1+'Ingreso - General OCULTO'!$D$11)^A10 -> 0 | AC10: =+'Ingreso - Consumo OCULTO'!$C$31 -> 0 | AD10: 0 | AF10: 18.37733046 | AG10: 0 | AH10: 0 | AI10: 18.37733046 | AJ10: 17377.62176 | AK10: 114.3148832 | AL10: 0 | AM10: 17491.93664
A11: 5 | B11: =B10*(1+'Ingreso - General OCULTO'!$D$11) -> 0 | C11: 39.89645375 | D11: =IF($E$4=0,0,($C$4-$D$4*EXP($A11/$E$4))*'Ingreso - Consumo OCULTO'!$D$39) -> 1.196893612 | E11: 41.09334736 | F11: =F10*(1+'Ingreso - General OCULTO'!$D$11) -> 0 | G11: 64.59345574 | H11: =IF($I$4=0,0,($G$4-$H$4*EXP($A11/$I$4))*'Ingreso - Consumo OCULTO'!$D$39) -> 1.937803672 | I11: 66.53125941 | J11: =J10*(1+'Ingreso - General OCULTO'!$D$11) -> 18.47289258 | K11: 81.68865842 | L11: =IF($M$4=0,0,($K$4-$L$4*EXP($A11/$M$4))*'Ingreso - Consumo OCULTO'!$D$39) -> 2.450659753 | M11: 84.13931817 | N11: =N10*(1+'Ingreso - General OCULTO'!$D$11) -> 0 | O11: 143.4766406 | P11: =IF($Q$4=0,0,($O$4-$P$4*EXP($A11/$Q$4))*+'Ingreso - Consumo OCULTO'!$D$39) -> 4.304299218 | Q11: 147.7809398 | R11: 18.47289258 | S11: 18108.30974 | U11: 118.6758751 | V11: =+'Ingreso - Consumo OCULTO'!$D$36*12 -> 0 | X11: =+'Ingreso - Consumo OCULTO'!$D$35 -> 0 | Y11: 118.6758751 | AA11: =IF($Q$4=0,0,($O$4-$P$4*EXP($A11/$Q$4))*12*(+'Ingreso - Consumo OCULTO'!$C$22*1+'Ingreso - Consumo OCULTO'!$C$24*2+'Ingreso - Consumo OCULTO'!$C$26*2+'Ingreso - Consumo OCULTO'!$C$28*1)) -> 0 | AB11: =12*'Ingreso - Consumo OCULTO'!$D$29*(1+'Ingreso - General OCULTO'!$D$11)^A11 -> 0 | AC11: =+'Ingreso - Consumo OCULTO'!$C$31 -> 0 | AD11: 0 | AF11: 18.47289258 | AG11: 0 | AH11: 0 | AI11: 18.47289258 | AJ11: 18108.30974 | AK11: 118.6758751 | AL11: 0 | AM11: 18226.98561
A12: 6 | B12: =B11*(1+'Ingreso - General OCULTO'!$D$11) -> 0 | C12: 40.68459968 | D12: =IF($E$4=0,0,($C$4-$D$4*EXP($A12/$E$4))*'Ingreso - Consumo OCULTO'!$D$39) -> 1.22053799 | E12: 41.90513767 | F12: =F11*(1+'Ingreso - General OCULTO'!$D$11) -> 0 | G12: 65.99308677 | H12: =IF($I$4=0,0,($G$4-$H$4*EXP($A12/$I$4))*'Ingreso - Consumo OCULTO'!$D$39) -> 1.979792603 | I12: 67.97287937 | J12: =J11*(1+'Ingreso - General OCULTO'!$D$11) -> 18.56895162 | K12: 83.4183503 | L12: =IF($M$4=0,0,($K$4-$L$4*EXP($A12/$M$4))*'Ingreso - Consumo OCULTO'!$D$39) -> 2.502550509 | M12: 85.92090081 | N12: =N11*(1+'Ingreso - General OCULTO'!$D$11) -> 0 | O12: 146.6834468 | P12: =IF($Q$4=0,0,($O$4-$P$4*EXP($A12/$Q$4))*+'Ingreso - Consumo OCULTO'!$D$39) -> 4.400503404 | Q12: 151.0839502 | R12: 18.56895162 | S12: 18587.89573 | U12: 121.2406141 | V12: =+'Ingreso - Consumo OCULTO'!$D$36*12 -> 0 | X12: =+'Ingreso - Consumo OCULTO'!$D$35 -> 0 | Y12: 121.2406141 | AA12: =IF($Q$4=0,0,($O$4-$P$4*EXP($A12/$Q$4))*12*(+'Ingreso - Consumo OCULTO'!$C$22*1+'Ingreso - Consumo OCULTO'!$C$24*2+'Ingreso - Consumo OCULTO'!$C$26*2+'Ingreso - Consumo OCULTO'!$C$28*1)) -> 0 | AB12: =12*'Ingreso - Consumo OCULTO'!$D$29*(1+'Ingreso - General OCULTO'!$D$11)^A12 -> 0 | AC12: =+'Ingreso - Consumo OCULTO'!$C$31 -> 0 | AD12: 0 | AF12: 18.56895162 | AG12: 0 | AH12: 0 | AI12: 18.56895162 | AJ12: 18587.89573 | AK12: 121.2406141 | AL12: 0 | AM12: 18709.13634
A13: 7 | B13: =B12*(1+'Ingreso - General OCULTO'!$D$11) -> 0 | C13: 41.17744713 | D13: =IF($E$4=0,0,($C$4-$D$4*EXP($A13/$E$4))*'Ingreso - Consumo OCULTO'!$D$39) -> 1.235323414 | E13: 42.41277055 | F13: =F12*(1+'Ingreso - General OCULTO'!$D$11) -> 0 | G13: 66.81765789 | H13: =IF($I$4=0,0,($G$4-$H$4*EXP($A13/$I$4))*'Ingreso - Consumo OCULTO'!$D$39) -> 2.004529737 | I13: 68.82218763 | J13: =J12*(1+'Ingreso - General OCULTO'!$D$11) -> 18.66551017 | K13: 84.45409716 | L13: =IF($M$4=0,0,($K$4-$L$4*EXP($A13/$M$4))*'Ingreso - Consumo OCULTO'!$D$39) -> 2.533622915 | M13: 86.98772008 | N13: =N12*(1+'Ingreso - General OCULTO'!$D$11) -> 0 | O13: 148.5233628 | P13: =IF($Q$4=0,0,($O$4-$P$4*EXP($A13/$Q$4))*+'Ingreso - Consumo OCULTO'!$D$39) -> 4.455700885 | Q13: 152.9790637 | R13: 18.66551017 | S13: 18916.54571 | U13: 122.7501234 | V13: =+'Ingreso - Consumo OCULTO'!$D$36*12 -> 0 | X13: =+'Ingreso - Consumo OCULTO'!$D$35 -> 0 | Y13: 122.7501234 | AA13: =IF($Q$4=0,0,($O$4-$P$4*EXP($A13/$Q$4))*12*(+'Ingreso - Consumo OCULTO'!$C$22*1+'Ingreso - Consumo OCULTO'!$C$24*2+'Ingreso - Consumo OCULTO'!$C$26*2+'Ingreso - Consumo OCULTO'!$C$28*1)) -> 0 | AB13: =12*'Ingreso - Consumo OCULTO'!$D$29*(1+'Ingreso - General OCULTO'!$D$11)^A13 -> 0 | AC13: =+'Ingreso - Consumo OCULTO'!$C$31 -> 0 | AD13: 0 | AF13: 18.66551017 | AG13: 0 | AH13: 0 | AI13: 18.66551017 | AJ13: 18916.54571 | AK13: 122.7501234 | AL13: 0 | AM13: 19039.29583
A14: 8 | B14: =B13*(1+'Ingreso - General OCULTO'!$D$11) -> 0 | C14: 41.48563703 | D14: =IF($E$4=0,0,($C$4-$D$4*EXP($A14/$E$4))*'Ingreso - Consumo OCULTO'!$D$39) -> 1.244569111 | E14: 42.73020614 | F14: =F13*(1+'Ingreso - General OCULTO'!$D$11) -> 0 | G14: 67.30344131 | H14: =IF($I$4=0,0,($G$4-$H$4*EXP($A14/$I$4))*'Ingreso - Consumo OCULTO'!$D$39) -> 2.019103239 | I14: 69.32254455 | J14: =J13*(1+'Ingreso - General OCULTO'!$D$11) -> 18.76257082 | K14: 85.0743068 | L14: =IF($M$4=0,0,($K$4-$L$4*EXP($A14/$M$4))*'Ingreso - Consumo OCULTO'!$D$39) -> 2.552229204 | M14: 87.626536 | N14: =N13*(1+'Ingreso - General OCULTO'!$D$11) -> 0 | O14: 149.579021 | P14: =IF($Q$4=0,0,($O$4-$P$4*EXP($A14/$Q$4))*+'Ingreso - Consumo OCULTO'!$D$39) -> 4.487370629 | Q14: 154.0663916 | R14: 18.76257082 | S14: 19154.55247 | U14: 123.6392662 | V14: =+'Ingreso - Consumo OCULTO'!$D$36*12 -> 0 | X14: =+'Ingreso - Consumo OCULTO'!$D$35 -> 0 | Y14: 123.6392662 | AA14: =IF($Q$4=0,0,($O$4-$P$4*EXP($A14/$Q$4))*12*(+'Ingreso - Consumo OCULTO'!$C$22*1+'Ingreso - Consumo OCULTO'!$C$24*2+'Ingreso - Consumo OCULTO'!$C$26*2+'Ingreso - Consumo OCULTO'!$C$28*1)) -> 0 | AB14: =12*'Ingreso - Consumo OCULTO'!$D$29*(1+'Ingreso - General OCULTO'!$D$11)^A14 -> 0 | AC14: =+'Ingreso - Consumo OCULTO'!$C$31 -> 0 | AD14: 0 | AF14: 18.76257082 | AG14: 0 | AH14: 0 | AI14: 18.76257082 | AJ14: 19154.55247 | AK14: 123.6392662 | AL14: 0 | AM14: 19278.19174
A15: 9 | B15: =B14*(1+'Ingreso - General OCULTO'!$D$11) -> 0 | C15: 41.67835591 | D15: =IF($E$4=0,0,($C$4-$D$4*EXP($A15/$E$4))*'Ingreso - Consumo OCULTO'!$D$39) -> 1.250350677 | E15: 42.92870659 | F15: =F14*(1+'Ingreso - General OCULTO'!$D$11) -> 0 | G15: 67.58963314 | H15: =IF($I$4=0,0,($G$4-$H$4*EXP($A15/$I$4))*'Ingreso - Consumo OCULTO'!$D$39) -> 2.027688994 | I15: 69.61732214 | J15: =J14*(1+'Ingreso - General OCULTO'!$D$11) -> 18.86013619 | K15: 85.44569097 | L15: =IF($M$4=0,0,($K$4-$L$4*EXP($A15/$M$4))*'Ingreso - Consumo OCULTO'!$D$39) -> 2.563370729 | M15: 88.00906169 | N15: =N14*(1+'Ingreso - General OCULTO'!$D$11) -> 0 | O15: 150.1847084 | P15: =IF($Q$4=0,0,($O$4-$P$4*EXP($A15/$Q$4))*+'Ingreso - Consumo OCULTO'!$D$39) -> 4.505541252 | Q15: 154.6902497 | R15: 18.86013619 | S15: 19338.20842 | U15: 124.1634198 | V15: =+'Ingreso - Consumo OCULTO'!$D$36*12 -> 0 | X15: =+'Ingreso - Consumo OCULTO'!$D$35 -> 0 | Y15: 124.1634198 | AA15: =IF($Q$4=0,0,($O$4-$P$4*EXP($A15/$Q$4))*12*(+'Ingreso - Consumo OCULTO'!$C$22*1+'Ingreso - Consumo OCULTO'!$C$24*2+'Ingreso - Consumo OCULTO'!$C$26*2+'Ingreso - Consumo OCULTO'!$C$28*1)) -> 0 | AB15: =12*'Ingreso - Consumo OCULTO'!$D$29*(1+'Ingreso - General OCULTO'!$D$11)^A15 -> 0 | AC15: =+'Ingreso - Consumo OCULTO'!$C$31 -> 0 | AD15: 0 | AF15: 18.86013619 | AG15: 0 | AH15: 0 | AI15: 18.86013619 | AJ15: 19338.20842 | AK15: 124.1634198 | AL15: 0 | AM15: 19462.37184
A16: 10 | B16: =B15*(1+'Ingreso - General OCULTO'!$D$11) -> 0 | C16: 41.79886787 | D16: =IF($E$4=0,0,($C$4-$D$4*EXP($A16/$E$4))*'Ingreso - Consumo OCULTO'!$D$39) -> 1.253966036 | E16: 43.05283391 | F16: =F15*(1+'Ingreso - General OCULTO'!$D$11) -> 0 | G16: 67.75823867 | H16: =IF($I$4=0,0,($G$4-$H$4*EXP($A16/$I$4))*'Ingreso - Consumo OCULTO'!$D$39) -> 2.03274716 | I16: 69.79098583 | J16: =J15*(1+'Ingreso - General OCULTO'!$D$11) -> 18.95820889 | K16: 85.66807739 | L16: =IF($M$4=0,0,($K$4-$L$4*EXP($A16/$M$4))*'Ingreso - Consumo OCULTO'!$D$39) -> 2.570042322 | M16: 88.23811971 | N16: =N15*(1+'Ingreso - General OCULTO'!$D$11) -> 0 | O16: 150.5322237 | P16: =IF($Q$4=0,0,($O$4-$P$4*EXP($A16/$Q$4))*+'Ingreso - Consumo OCULTO'!$D$39) -> 4.51596671 | Q16: 155.0481904 | R16: 18.95820889 | S16: 19489.35968 | U16: 124.4726667 | V16: =+'Ingreso - Consumo OCULTO'!$D$36*12 -> 0 | X16: =+'Ingreso - Consumo OCULTO'!$D$35 -> 0 | Y16: 124.4726667 | AA16: =IF($Q$4=0,0,($O$4-$P$4*EXP($A16/$Q$4))*12*(+'Ingreso - Consumo OCULTO'!$C$22*1+'Ingreso - Consumo OCULTO'!$C$24*2+'Ingreso - Consumo OCULTO'!$C$26*2+'Ingreso - Consumo OCULTO'!$C$28*1)) -> 0 | AB16: =12*'Ingreso - Consumo OCULTO'!$D$29*(1+'Ingreso - General OCULTO'!$D$11)^A16 -> 0 | AC16: =+'Ingreso - Consumo OCULTO'!$C$31 -> 0 | AD16: 0 | AF16: 18.95820889 | AG16: 0 | AH16: 0 | AI16: 18.95820889 | AJ16: 19489.35968 | AK16: 124.4726667 | AL16: 0 | AM16: 19613.83235
A17: 11 | B17: =B16*(1+'Ingreso - General OCULTO'!$D$11) -> 0 | C17: 41.87422703 | D17: =IF($E$4=0,0,($C$4-$D$4*EXP($A17/$E$4))*'Ingreso - Consumo OCULTO'!$D$39) -> 1.256226811 | E17: 43.13045384 | F17: =F16*(1+'Ingreso - General OCULTO'!$D$11) -> 0 | G17: 67.85757003 | H17: =IF($I$4=0,0,($G$4-$H$4*EXP($A17/$I$4))*'Ingreso - Consumo OCULTO'!$D$39) -> 2.035727101 | I17: 69.89329713 | J17: =J16*(1+'Ingreso - General OCULTO'!$D$11) -> 19.05679158 | K17: 85.80124333 | L17: =IF($M$4=0,0,($K$4-$L$4*EXP($A17/$M$4))*'Ingreso - Consumo OCULTO'!$D$39) -> 2.5740373 | M17: 88.37528063 | N17: =N16*(1+'Ingreso - General OCULTO'!$D$11) -> 0 | O17: 150.7316117 | P17: =IF($Q$4=0,0,($O$4-$P$4*EXP($A17/$Q$4))*+'Ingreso - Consumo OCULTO'!$D$39) -> 4.521948352 | Q17: 155.2535601 | R17: 19.05679158 | S17: 19621.15694 | U17: 124.6552748 | V17: =+'Ingreso - Consumo OCULTO'!$D$36*12 -> 0 | X17: =+'Ingreso - Consumo OCULTO'!$D$35 -> 0 | Y17: 124.6552748 | AA17: =IF($Q$4=0,0,($O$4-$P$4*EXP($A17/$Q$4))*12*(+'Ingreso - Consumo OCULTO'!$C$22*1+'Ingreso - Consumo OCULTO'!$C$24*2+'Ingreso - Consumo OCULTO'!$C$26*2+'Ingreso - Consumo OCULTO'!$C$28*1)) -> 0 | AB17: =12*'Ingreso - Consumo OCULTO'!$D$29*(1+'Ingreso - General OCULTO'!$D$11)^A17 -> 0 | AC17: =+'Ingreso - Consumo OCULTO'!$C$31 -> 0 | AD17: 0 | AF17: 19.05679158 | AG17: 0 | AH17: 0 | AI17: 19.05679158 | AJ17: 19621.15694 | AK17: 124.6552748 | AL17: 0 | AM17: 19745.81221
A18: 12 | B18: =B17*(1+'Ingreso - General OCULTO'!$D$11) -> 0 | C18: 41.921351 | D18: =IF($E$4=0,0,($C$4-$D$4*EXP($A18/$E$4))*'Ingreso - Consumo OCULTO'!$D$39) -> 1.25764053 | E18: 43.17899153 | F18: =F17*(1+'Ingreso - General OCULTO'!$D$11) -> 0 | G18: 67.91608957 | H18: =IF($I$4=0,0,($G$4-$H$4*EXP($A18/$I$4))*'Ingreso - Consumo OCULTO'!$D$39) -> 2.037482687 | I18: 69.95357226 | J18: =J17*(1+'Ingreso - General OCULTO'!$D$11) -> 19.1558869 | K18: 85.88098366 | L18: =IF($M$4=0,0,($K$4-$L$4*EXP($A18/$M$4))*'Ingreso - Consumo OCULTO'!$D$39) -> 2.57642951 | M18: 88.45741317 | N18: =N17*(1+'Ingreso - General OCULTO'!$D$11) -> 0 | O18: 150.8460113 | P18: =IF($Q$4=0,0,($O$4-$P$4*EXP($A18/$Q$4))*+'Ingreso - Consumo OCULTO'!$D$39) -> 4.525380339 | Q18: 155.3713916 | R18: 19.1558869 | S18: 19741.51691 | U18: 124.7631968 | V18: =+'Ingreso - Consumo OCULTO'!$D$36*12 -> 0 | X18: =+'Ingreso - Consumo OCULTO'!$D$35 -> 0 | Y18: 124.7631968 | AA18: =IF($Q$4=0,0,($O$4-$P$4*EXP($A18/$Q$4))*12*(+'Ingreso - Consumo OCULTO'!$C$22*1+'Ingreso - Consumo OCULTO'!$C$24*2+'Ingreso - Consumo OCULTO'!$C$26*2+'Ingreso - Consumo OCULTO'!$C$28*1)) -> 0 | AB18: =12*'Ingreso - Consumo OCULTO'!$D$29*(1+'Ingreso - General OCULTO'!$D$11)^A18 -> 0 | AC18: =+'Ingreso - Consumo OCULTO'!$C$31 -> 0 | AD18: 0 | AF18: 19.1558869 | AG18: 0 | AH18: 0 | AI18: 19.1558869 | AJ18: 19741.51691 | AK18: 124.7631968 | AL18: 0 | AM18: 19866.28011
A19: 13 | B19: =B18*(1+'Ingreso - General OCULTO'!$D$11) -> 0 | C19: 41.9508188 | D19: =IF($E$4=0,0,($C$4-$D$4*EXP($A19/$E$4))*'Ingreso - Consumo OCULTO'!$D$39) -> 1.258524564 | E19: 43.20934337 | F19: =F18*(1+'Ingreso - General OCULTO'!$D$11) -> 0 | G19: 67.95056546 | H19: =IF($I$4=0,0,($G$4-$H$4*EXP($A19/$I$4))*'Ingreso - Consumo OCULTO'!$D$39) -> 2.038516964 | I19: 69.98908242 | J19: =J18*(1+'Ingreso - General OCULTO'!$D$11) -> 19.25549751 | K19: 85.92873251 | L19: =IF($M$4=0,0,($K$4-$L$4*EXP($A19/$M$4))*'Ingreso - Consumo OCULTO'!$D$39) -> 2.577861975 | M19: 88.50659448 | N19: =N18*(1+'Ingreso - General OCULTO'!$D$11) -> 0 | O19: 150.9116485 | P19: =IF($Q$4=0,0,($O$4-$P$4*EXP($A19/$Q$4))*+'Ingreso - Consumo OCULTO'!$D$39) -> 4.527349454 | Q19: 155.4389979 | R19: 19.25549751 | S19: 19855.20594 | U19: 124.8270355 | V19: =+'Ingreso - Consumo OCULTO'!$D$36*12 -> 0 | X19: =+'Ingreso - Consumo OCULTO'!$D$35 -> 0 | Y19: 124.8270355 | AA19: =IF($Q$4=0,0,($O$4-$P$4*EXP($A19/$Q$4))*12*(+'Ingreso - Consumo OCULTO'!$C$22*1+'Ingreso - Consumo OCULTO'!$C$24*2+'Ingreso - Consumo OCULTO'!$C$26*2+'Ingreso - Consumo OCULTO'!$C$28*1)) -> 0 | AB19: =12*'Ingreso - Consumo OCULTO'!$D$29*(1+'Ingreso - General OCULTO'!$D$11)^A19 -> 0 | AC19: =+'Ingreso - Consumo OCULTO'!$C$31 -> 0 | AD19: 0 | AF19: 19.25549751 | AG19: 0 | AH19: 0 | AI19: 19.25549751 | AJ19: 19855.20594 | AK19: 124.8270355 | AL19: 0 | AM19: 19980.03297
A20: 14 | B20: =B19*(1+'Ingreso - General OCULTO'!$D$11) -> 0 | C20: 41.96924576 | D20: =IF($E$4=0,0,($C$4-$D$4*EXP($A20/$E$4))*'Ingreso - Consumo OCULTO'!$D$39) -> 1.259077373 | E20: 43.22832314 | F20: =F19*(1+'Ingreso - General OCULTO'!$D$11) -> 0 | G20: 67.9708764 | H20: =IF($I$4=0,0,($G$4-$H$4*EXP($A20/$I$4))*'Ingreso - Consumo OCULTO'!$D$39) -> 2.039126292 | I20: 70.01000269 | J20: =J19*(1+'Ingreso - General OCULTO'!$D$11) -> 19.3556261 | K20: 85.95732472 | L20: =IF($M$4=0,0,($K$4-$L$4*EXP($A20/$M$4))*'Ingreso - Consumo OCULTO'!$D$39) -> 2.578719742 | M20: 88.53604446 | N20: =N19*(1+'Ingreso - General OCULTO'!$D$11) -> 0 | O20: 150.949308 | P20: =IF($Q$4=0,0,($O$4-$P$4*EXP($A20/$Q$4))*+'Ingreso - Consumo OCULTO'!$D$39) -> 4.52847924 | Q20: 155.4777872 | R20: 19.3556261 | S20: 19965.09405 | U20: 124.8648318 | V20: =+'Ingreso - Consumo OCULTO'!$D$36*12 -> 0 | X20: =+'Ingreso - Consumo OCULTO'!$D$35 -> 0 | Y20: 124.8648318 | AA20: =IF($Q$4=0,0,($O$4-$P$4*EXP($A20/$Q$4))*12*(+'Ingreso - Consumo OCULTO'!$C$22*1+'Ingreso - Consumo OCULTO'!$C$24*2+'Ingreso - Consumo OCULTO'!$C$26*2+'Ingreso - Consumo OCULTO'!$C$28*1)) -> 0 | AB20: =12*'Ingreso - Consumo OCULTO'!$D$29*(1+'Ingreso - General OCULTO'!$D$11)^A20 -> 0 | AC20: =+'Ingreso - Consumo OCULTO'!$C$31 -> 0 | AD20: 0 | AF20: 19.3556261 | AG20: 0 | AH20: 0 | AI20: 19.3556261 | AJ20: 19965.09405 | AK20: 124.8648318 | AL20: 0 | AM20: 20089.95888
A21: 15 | B21: =B20*(1+'Ingreso - General OCULTO'!$D$11) -> 0 | C21: 41.9807686 | D21: =IF($E$4=0,0,($C$4-$D$4*EXP($A21/$E$4))*'Ingreso - Consumo OCULTO'!$D$39) -> 1.259423058 | E21: 43.24019166 | F21: =F20*(1+'Ingreso - General OCULTO'!$D$11) -> 0 | G21: 67.98284228 | H21: =IF($I$4=0,0,($G$4-$H$4*EXP($A21/$I$4))*'Ingreso - Consumo OCULTO'!$D$39) -> 2.039485268 | I21: 70.02232755 | J21: =J20*(1+'Ingreso - General OCULTO'!$D$11) -> 19.45627535 | K21: 85.97444586 | L21: =IF($M$4=0,0,($K$4-$L$4*EXP($A21/$M$4))*'Ingreso - Consumo OCULTO'!$D$39) -> 2.579233376 | M21: 88.55367924 | N21: =N20*(1+'Ingreso - General OCULTO'!$D$11) -> 0 | O21: 150.9709153 | P21: =IF($Q$4=0,0,($O$4-$P$4*EXP($A21/$Q$4))*+'Ingreso - Consumo OCULTO'!$D$39) -> 4.529127459 | Q21: 155.5000428 | R21: 19.45627535 | S21: 20072.9099 | U21: 124.8872299 | V21: =+'Ingreso - Consumo OCULTO'!$D$36*12 -> 0 | X21: =+'Ingreso - Consumo OCULTO'!$D$35 -> 0 | Y21: 124.8872299 | AA21: =IF($Q$4=0,0,($O$4-$P$4*EXP($A21/$Q$4))*12*(+'Ingreso - Consumo OCULTO'!$C$22*1+'Ingreso - Consumo OCULTO'!$C$24*2+'Ingreso - Consumo OCULTO'!$C$26*2+'Ingreso - Consumo OCULTO'!$C$28*1)) -> 0 | AB21: =12*'Ingreso - Consumo OCULTO'!$D$29*(1+'Ingreso - General OCULTO'!$D$11)^A21 -> 0 | AC21: =+'Ingreso - Consumo OCULTO'!$C$31 -> 0 | AD21: 0 | AF21: 19.45627535 | AG21: 0 | AH21: 0 | AI21: 19.45627535 | AJ21: 20072.9099 | AK21: 124.8872299 | AL21: 0 | AM21: 20197.79713
A22: 16 | B22: =B21*(1+'Ingreso - General OCULTO'!$D$11) -> 0 | C22: 41.98797412 | D22: =IF($E$4=0,0,($C$4-$D$4*EXP($A22/$E$4))*'Ingreso - Consumo OCULTO'!$D$39) -> 1.259639224 | E22: 43.24761335 | F22: =F21*(1+'Ingreso - General OCULTO'!$D$11) -> 0 | G22: 67.98989179 | H22: =IF($I$4=0,0,($G$4-$H$4*EXP($A22/$I$4))*'Ingreso - Consumo OCULTO'!$D$39) -> 2.039696754 | I22: 70.02958855 | J22: =J21*(1+'Ingreso - General OCULTO'!$D$11) -> 19.55744798 | K22: 85.98469807 | L22: =IF($M$4=0,0,($K$4-$L$4*EXP($A22/$M$4))*'Ingreso - Consumo OCULTO'!$D$39) -> 2.579540942 | M22: 88.56423902 | N22: =N21*(1+'Ingreso - General OCULTO'!$D$11) -> 0 | O22: 150.9833126 | P22: =IF($Q$4=0,0,($O$4-$P$4*EXP($A22/$Q$4))*+'Ingreso - Consumo OCULTO'!$D$39) -> 4.529499377 | Q22: 155.5128119 | R22: 19.55744798 | S22: 20179.69512 | U22: 124.9005156 | V22: =+'Ingreso - Consumo OCULTO'!$D$36*12 -> 0 | X22: =+'Ingreso - Consumo OCULTO'!$D$35 -> 0 | Y22: 124.9005156 | AA22: =IF($Q$4=0,0,($O$4-$P$4*EXP($A22/$Q$4))*12*(+'Ingreso - Consumo OCULTO'!$C$22*1+'Ingreso - Consumo OCULTO'!$C$24*2+'Ingreso - Consumo OCULTO'!$C$26*2+'Ingreso - Consumo OCULTO'!$C$28*1)) -> 0 | AB22: =12*'Ingreso - Consumo OCULTO'!$D$29*(1+'Ingreso - General OCULTO'!$D$11)^A22 -> 0 | AC22: =+'Ingreso - Consumo OCULTO'!$C$31 -> 0 | AD22: 0 | AF22: 19.55744798 | AG22: 0 | AH22: 0 | AI22: 19.55744798 | AJ22: 20179.69512 | AK22: 124.9005156 | AL22: 0 | AM22: 20304.59563
A23: 17 | B23: =B22*(1+'Ingreso - General OCULTO'!$D$11) -> 0 | C23: 41.99247992 | D23: =IF($E$4=0,0,($C$4-$D$4*EXP($A23/$E$4))*'Ingreso - Consumo OCULTO'!$D$39) -> 1.259774398 | E23: 43.25225432 | F23: =F22*(1+'Ingreso - General OCULTO'!$D$11) -> 0 | G23: 67.9940449 | H23: =IF($I$4=0,0,($G$4-$H$4*EXP($A23/$I$4))*'Ingreso - Consumo OCULTO'!$D$39) -> 2.039821347 | I23: 70.03386625 | J23: =J22*(1+'Ingreso - General OCULTO'!$D$11) -> 19.65914671 | K23: 85.99083714 | L23: =IF($M$4=0,0,($K$4-$L$4*EXP($A23/$M$4))*'Ingreso - Consumo OCULTO'!$D$39) -> 2.579725114 | M23: 88.57056226 | N23: =N22*(1+'Ingreso - General OCULTO'!$D$11) -> 0 | O23: 150.9904255 | P23: =IF($Q$4=0,0,($O$4-$P$4*EXP($A23/$Q$4))*+'Ingreso - Consumo OCULTO'!$D$39) -> 4.529712766 | Q23: 155.5201383 | R23: 19.65914671 | S23: 20286.0778 | U23: 124.9084035 | V23: =+'Ingreso - Consumo OCULTO'!$D$36*12 -> 0 | X23: =+'Ingreso - Consumo OCULTO'!$D$35 -> 0 | Y23: 124.9084035 | AA23: =IF($Q$4=0,0,($O$4-$P$4*EXP($A23/$Q$4))*12*(+'Ingreso - Consumo OCULTO'!$C$22*1+'Ingreso - Consumo OCULTO'!$C$24*2+'Ingreso - Consumo OCULTO'!$C$26*2+'Ingreso - Consumo OCULTO'!$C$28*1)) -> 0 | AB23: =12*'Ingreso - Consumo OCULTO'!$D$29*(1+'Ingreso - General OCULTO'!$D$11)^A23 -> 0 | AC23: =+'Ingreso - Consumo OCULTO'!$C$31 -> 0 | AD23: 0 | AF23: 19.65914671 | AG23: 0 | AH23: 0 | AI23: 19.65914671 | AJ23: 20286.0778 | AK23: 124.9084035 | AL23: 0 | AM23: 20410.9862
A24: 18 | B24: =B23*(1+'Ingreso - General OCULTO'!$D$11) -> 0 | C24: 41.9952975 | D24: =IF($E$4=0,0,($C$4-$D$4*EXP($A24/$E$4))*'Ingreso - Consumo OCULTO'!$D$39) -> 1.259858925 | E24: 43.25515643 | F24: =F23*(1+'Ingreso - General OCULTO'!$D$11) -> 0 | G24: 67.99649165 | H24: =IF($I$4=0,0,($G$4-$H$4*EXP($A24/$I$4))*'Ingreso - Consumo OCULTO'!$D$39) -> 2.039894749 | I24: 70.0363864 | J24: =J23*(1+'Ingreso - General OCULTO'!$D$11) -> 19.76137428 | K24: 85.99451324 | L24: =IF($M$4=0,0,($K$4-$L$4*EXP($A24/$M$4))*'Ingreso - Consumo OCULTO'!$D$39) -> 2.579835397 | M24: 88.57434864 | N24: =N23*(1+'Ingreso - General OCULTO'!$D$11) -> 0 | O24: 150.9945066 | P24: =IF($Q$4=0,0,($O$4-$P$4*EXP($A24/$Q$4))*+'Ingreso - Consumo OCULTO'!$D$39) -> 4.529835198 | Q24: 155.5243418 | R24: 19.76137428 | S24: 20392.43714 | U24: 124.9130912 | V24: =+'Ingreso - Consumo OCULTO'!$D$36*12 -> 0 | X24: =+'Ingreso - Consumo OCULTO'!$D$35 -> 0 | Y24: 124.9130912 | AA24: =IF($Q$4=0,0,($O$4-$P$4*EXP($A24/$Q$4))*12*(+'Ingreso - Consumo OCULTO'!$C$22*1+'Ingreso - Consumo OCULTO'!$C$24*2+'Ingreso - Consumo OCULTO'!$C$26*2+'Ingreso - Consumo OCULTO'!$C$28*1)) -> 0 | AB24: =12*'Ingreso - Consumo OCULTO'!$D$29*(1+'Ingreso - General OCULTO'!$D$11)^A24 -> 0 | AC24: =+'Ingreso - Consumo OCULTO'!$C$31 -> 0 | AD24: 0 | AF24: 19.76137428 | AG24: 0 | AH24: 0 | AI24: 19.76137428 | AJ24: 20392.43714 | AK24: 124.9130912 | AL24: 0 | AM24: 20517.35023
A25: 19 | B25: =B24*(1+'Ingreso - General OCULTO'!$D$11) -> 0 | C25: 41.99705941 | D25: =IF($E$4=0,0,($C$4-$D$4*EXP($A25/$E$4))*'Ingreso - Consumo OCULTO'!$D$39) -> 1.259911782 | E25: 43.25697119 | F25: =F24*(1+'Ingreso - General OCULTO'!$D$11) -> 0 | G25: 67.99793311 | H25: =IF($I$4=0,0,($G$4-$H$4*EXP($A25/$I$4))*'Ingreso - Consumo OCULTO'!$D$39) -> 2.039937993 | I25: 70.0378711 | J25: =J24*(1+'Ingreso - General OCULTO'!$D$11) -> 19.86413342 | K25: 85.99671451 | L25: =IF($M$4=0,0,($K$4-$L$4*EXP($A25/$M$4))*'Ingreso - Consumo OCULTO'!$D$39) -> 2.579901435 | M25: 88.57661594 | N25: =N24*(1+'Ingreso - General OCULTO'!$D$11) -> 0 | O25: 150.9968481 | P25: =IF($Q$4=0,0,($O$4-$P$4*EXP($A25/$Q$4))*+'Ingreso - Consumo OCULTO'!$D$39) -> 4.529905444 | Q25: 155.5267536 | R25: 19.86413342 | S25: 20499.00253 | U25: 124.9158799 | V25: =+'Ingreso - Consumo OCULTO'!$D$36*12 -> 0 | X25: =+'Ingreso - Consumo OCULTO'!$D$35 -> 0 | Y25: 124.9158799 | AA25: =IF($Q$4=0,0,($O$4-$P$4*EXP($A25/$Q$4))*12*(+'Ingreso - Consumo OCULTO'!$C$22*1+'Ingreso - Consumo OCULTO'!$C$24*2+'Ingreso - Consumo OCULTO'!$C$26*2+'Ingreso - Consumo OCULTO'!$C$28*1)) -> 0 | AB25: =12*'Ingreso - Consumo OCULTO'!$D$29*(1+'Ingreso - General OCULTO'!$D$11)^A25 -> 0 | AC25: =+'Ingreso - Consumo OCULTO'!$C$31 -> 0 | AD25: 0 | AF25: 19.86413342 | AG25: 0 | AH25: 0 | AI25: 19.86413342 | AJ25: 20499.00253 | AK25: 124.9158799 | AL25: 0 | AM25: 20623.91841
A26: 20 | B26: =B25*(1+'Ingreso - General OCULTO'!$D$11) -> 0 | C26: 41.99816118 | D26: =IF($E$4=0,0,($C$4-$D$4*EXP($A26/$E$4))*'Ingreso - Consumo OCULTO'!$D$39) -> 1.259944835 | E26: 43.25810601 | F26: =F25*(1+'Ingreso - General OCULTO'!$D$11) -> 0 | G26: 67.99878232 | H26: =IF($I$4=0,0,($G$4-$H$4*EXP($A26/$I$4))*'Ingreso - Consumo OCULTO'!$D$39) -> 2.03996347 | I26: 70.03874579 | J26: =J25*(1+'Ingreso - General OCULTO'!$D$11) -> 19.96742692 | K26: 85.99803263 | L26: =IF($M$4=0,0,($K$4-$L$4*EXP($A26/$M$4))*'Ingreso - Consumo OCULTO'!$D$39) -> 2.579940979 | M26: 88.57797361 | N26: =N25*(1+'Ingreso - General OCULTO'!$D$11) -> 0 | O26: 150.9981916 | P26: =IF($Q$4=0,0,($O$4-$P$4*EXP($A26/$Q$4))*+'Ingreso - Consumo OCULTO'!$D$39) -> 4.529945748 | Q26: 155.5281374 | R26: 19.96742692 | S26: 20605.91318 | U26: 124.9175404 | V26: =+'Ingreso - Consumo OCULTO'!$D$36*12 -> 0 | X26: =+'Ingreso - Consumo OCULTO'!$D$35 -> 0 | Y26: 124.9175404 | AA26: =IF($Q$4=0,0,($O$4-$P$4*EXP($A26/$Q$4))*12*(+'Ingreso - Consumo OCULTO'!$C$22*1+'Ingreso - Consumo OCULTO'!$C$24*2+'Ingreso - Consumo OCULTO'!$C$26*2+'Ingreso - Consumo OCULTO'!$C$28*1)) -> 0 | AB26: =12*'Ingreso - Consumo OCULTO'!$D$29*(1+'Ingreso - General OCULTO'!$D$11)^A26 -> 0 | AC26: =+'Ingreso - Consumo OCULTO'!$C$31 -> 0 | AD26: 0 | AF26: 19.96742692 | AG26: 0 | AH26: 0 | AI26: 19.96742692 | AJ26: 20605.91318 | AK26: 124.9175404 | AL26: 0 | AM26: 20730.83072
A27: 21 | B27: =B26*(1+'Ingreso - General OCULTO'!$D$11) -> 0 | C27: 41.99885014 | D27: =IF($E$4=0,0,($C$4-$D$4*EXP($A27/$E$4))*'Ingreso - Consumo OCULTO'!$D$39) -> 1.259965504 | E27: 43.25881564 | F27: =F26*(1+'Ingreso - General OCULTO'!$D$11) -> 0 | G27: 67.99928262 | H27: =IF($I$4=0,0,($G$4-$H$4*EXP($A27/$I$4))*'Ingreso - Consumo OCULTO'!$D$39) -> 2.039978479 | I27: 70.0392611 | J27: =J26*(1+'Ingreso - General OCULTO'!$D$11) -> 20.07125754 | K27: 85.99882193 | L27: =IF($M$4=0,0,($K$4-$L$4*EXP($A27/$M$4))*'Ingreso - Consumo OCULTO'!$D$39) -> 2.579964658 | M27: 88.57878659 | N27: =N26*(1+'Ingreso - General OCULTO'!$D$11) -> 0 | O27: 150.9989624 | P27: =IF($Q$4=0,0,($O$4-$P$4*EXP($A27/$Q$4))*+'Ingreso - Consumo OCULTO'!$D$39) -> 4.529968873 | Q27: 155.5289313 | R27: 20.07125754 | S27: 20713.25403 | U27: 124.9185302 | V27: =+'Ingreso - Consumo OCULTO'!$D$36*12 -> 0 | X27: =+'Ingreso - Consumo OCULTO'!$D$35 -> 0 | Y27: 124.9185302 | AA27: =IF($Q$4=0,0,($O$4-$P$4*EXP($A27/$Q$4))*12*(+'Ingreso - Consumo OCULTO'!$C$22*1+'Ingreso - Consumo OCULTO'!$C$24*2+'Ingreso - Consumo OCULTO'!$C$26*2+'Ingreso - Consumo OCULTO'!$C$28*1)) -> 0 | AB27: =12*'Ingreso - Consumo OCULTO'!$D$29*(1+'Ingreso - General OCULTO'!$D$11)^A27 -> 0 | AC27: =+'Ingreso - Consumo OCULTO'!$C$31 -> 0 | AD27: 0 | AF27: 20.07125754 | AG27: 0 | AH27: 0 | AI27: 20.07125754 | AJ27: 20713.25403 | AK27: 124.9185302 | AL27: 0 | AM27: 20838.17256
A28: 22 | B28: =B27*(1+'Ingreso - General OCULTO'!$D$11) -> 0 | C28: 41.99928096 | D28: =IF($E$4=0,0,($C$4-$D$4*EXP($A28/$E$4))*'Ingreso - Consumo OCULTO'!$D$39) -> 1.259978429 | E28: 43.25925939 | F28: =F27*(1+'Ingreso - General OCULTO'!$D$11) -> 0 | G28: 67.99957737 | H28: =IF($I$4=0,0,($G$4-$H$4*EXP($A28/$I$4))*'Ingreso - Consumo OCULTO'!$D$39) -> 2.039987321 | I28: 70.03956469 | J28: =J27*(1+'Ingreso - General OCULTO'!$D$11) -> 20.17562807 | K28: 85.99929457 | L28: =IF($M$4=0,0,($K$4-$L$4*EXP($A28/$M$4))*'Ingreso - Consumo OCULTO'!$D$39) -> 2.579978837 | M28: 88.5792734 | N28: =N27*(1+'Ingreso - General OCULTO'!$D$11) -> 0 | O28: 150.9994047 | P28: =IF($Q$4=0,0,($O$4-$P$4*EXP($A28/$Q$4))*+'Ingreso - Consumo OCULTO'!$D$39) -> 4.529982141 | Q28: 155.5293868 | R28: 20.17562807 | S28: 20821.07738 | U28: 124.9191207 | V28: =+'Ingreso - Consumo OCULTO'!$D$36*12 -> 0 | X28: =+'Ingreso - Consumo OCULTO'!$D$35 -> 0 | Y28: 124.9191207 | AA28: =IF($Q$4=0,0,($O$4-$P$4*EXP($A28/$Q$4))*12*(+'Ingreso - Consumo OCULTO'!$C$22*1+'Ingreso - Consumo OCULTO'!$C$24*2+'Ingreso - Consumo OCULTO'!$C$26*2+'Ingreso - Consumo OCULTO'!$C$28*1)) -> 0 | AB28: =12*'Ingreso - Consumo OCULTO'!$D$29*(1+'Ingreso - General OCULTO'!$D$11)^A28 -> 0 | AC28: =+'Ingreso - Consumo OCULTO'!$C$31 -> 0 | AD28: 0 | AF28: 20.17562807 | AG28: 0 | AH28: 0 | AI28: 20.17562807 | AJ28: 20821.07738 | AK28: 124.9191207 | AL28: 0 | AM28: 20945.9965
A29: 23 | B29: =B28*(1+'Ingreso - General OCULTO'!$D$11) -> 0 | C29: 41.99955037 | D29: =IF($E$4=0,0,($C$4-$D$4*EXP($A29/$E$4))*'Ingreso - Consumo OCULTO'!$D$39) -> 1.259986511 | E29: 43.25953688 | F29: =F28*(1+'Ingreso - General OCULTO'!$D$11) -> 0 | G29: 67.99975101 | H29: =IF($I$4=0,0,($G$4-$H$4*EXP($A29/$I$4))*'Ingreso - Consumo OCULTO'!$D$39) -> 2.03999253 | I29: 70.03974354 | J29: =J28*(1+'Ingreso - General OCULTO'!$D$11) -> 20.28054134 | K29: 85.99957758 | L29: =IF($M$4=0,0,($K$4-$L$4*EXP($A29/$M$4))*'Ingreso - Consumo OCULTO'!$D$39) -> 2.579987328 | M29: 88.57956491 | N29: =N28*(1+'Ingreso - General OCULTO'!$D$11) -> 0 | O29: 150.9996584 | P29: =IF($Q$4=0,0,($O$4-$P$4*EXP($A29/$Q$4))*+'Ingreso - Consumo OCULTO'!$D$39) -> 4.529989753 | Q29: 155.5296482 | R29: 20.28054134 | S29: 20929.41586 | U29: 124.9194735 | V29: =+'Ingreso - Consumo OCULTO'!$D$36*12 -> 0 | X29: =+'Ingreso - Consumo OCULTO'!$D$35 -> 0 | Y29: 124.9194735 | AA29: =IF($Q$4=0,0,($O$4-$P$4*EXP($A29/$Q$4))*12*(+'Ingreso - Consumo OCULTO'!$C$22*1+'Ingreso - Consumo OCULTO'!$C$24*2+'Ingreso - Consumo OCULTO'!$C$26*2+'Ingreso - Consumo OCULTO'!$C$28*1)) -> 0 | AB29: =12*'Ingreso - Consumo OCULTO'!$D$29*(1+'Ingreso - General OCULTO'!$D$11)^A29 -> 0 | AC29: =+'Ingreso - Consumo OCULTO'!$C$31 -> 0 | AD29: 0 | AF29: 20.28054134 | AG29: 0 | AH29: 0 | AI29: 20.28054134 | AJ29: 20929.41586 | AK29: 124.9194735 | AL29: 0 | AM29: 21054.33534
A30: 24 | B30: =B29*(1+'Ingreso - General OCULTO'!$D$11) -> 0 | C30: 41.99971883 | D30: =IF($E$4=0,0,($C$4-$D$4*EXP($A30/$E$4))*'Ingreso - Consumo OCULTO'!$D$39) -> 1.259991565 | E30: 43.2597104 | F30: =F29*(1+'Ingreso - General OCULTO'!$D$11) -> 0 | G30: 67.99985331 | H30: =IF($I$4=0,0,($G$4-$H$4*EXP($A30/$I$4))*'Ingreso - Consumo OCULTO'!$D$39) -> 2.039995599 | I30: 70.03984891 | J30: =J29*(1+'Ingreso - General OCULTO'!$D$11) -> 20.38600016 | K30: 85.99974706 | L30: =IF($M$4=0,0,($K$4-$L$4*EXP($A30/$M$4))*'Ingreso - Consumo OCULTO'!$D$39) -> 2.579992412 | M30: 88.57973947 | N30: =N29*(1+'Ingreso - General OCULTO'!$D$11) -> 0 | O30: 150.999804 | P30: =IF($Q$4=0,0,($O$4-$P$4*EXP($A30/$Q$4))*+'Ingreso - Consumo OCULTO'!$D$39) -> 4.529994121 | Q30: 155.5297981 | R30: 20.38600016 | S30: 21038.29028 | U30: 124.9196844 | V30: =+'Ingreso - Consumo OCULTO'!$D$36*12 -> 0 | X30: =+'Ingreso - Consumo OCULTO'!$D$35 -> 0 | Y30: 124.9196844 | AA30: =IF($Q$4=0,0,($O$4-$P$4*EXP($A30/$Q$4))*12*(+'Ingreso - Consumo OCULTO'!$C$22*1+'Ingreso - Consumo OCULTO'!$C$24*2+'Ingreso - Consumo OCULTO'!$C$26*2+'Ingreso - Consumo OCULTO'!$C$28*1)) -> 0 | AB30: =12*'Ingreso - Consumo OCULTO'!$D$29*(1+'Ingreso - General OCULTO'!$D$11)^A30 -> 0 | AC30: =+'Ingreso - Consumo OCULTO'!$C$31 -> 0 | AD30: 0 | AF30: 20.38600016 | AG30: 0 | AH30: 0 | AI30: 20.38600016 | AJ30: 21038.29028 | AK30: 124.9196844 | AL30: 0 | AM30: 21163.20997
A31: 25 | B31: =B30*(1+'Ingreso - General OCULTO'!$D$11) -> 0 | C31: 41.99982418 | D31: =IF($E$4=0,0,($C$4-$D$4*EXP($A31/$E$4))*'Ingreso - Consumo OCULTO'!$D$39) -> 1.259994725 | E31: 43.2598189 | F31: =F30*(1+'Ingreso - General OCULTO'!$D$11) -> 0 | G31: 67.99991358 | H31: =IF($I$4=0,0,($G$4-$H$4*EXP($A31/$I$4))*'Ingreso - Consumo OCULTO'!$D$39) -> 2.039997407 | I31: 70.03991099 | J31: =J30*(1+'Ingreso - General OCULTO'!$D$11) -> 20.49200736 | K31: 85.99984854 | L31: =IF($M$4=0,0,($K$4-$L$4*EXP($A31/$M$4))*'Ingreso - Consumo OCULTO'!$D$39) -> 2.579995456 | M31: 88.57984399 | N31: =N30*(1+'Ingreso - General OCULTO'!$D$11) -> 0 | O31: 150.9998876 | P31: =IF($Q$4=0,0,($O$4-$P$4*EXP($A31/$Q$4))*+'Ingreso - Consumo OCULTO'!$D$39) -> 4.529996627 | Q31: 155.5298842 | R31: 20.49200736 | S31: 21147.71435 | U31: 124.9198106 | V31: =+'Ingreso - Consumo OCULTO'!$D$36*12 -> 0 | X31: =+'Ingreso - Consumo OCULTO'!$D$35 -> 0 | Y31: 124.9198106 | AA31: =IF($Q$4=0,0,($O$4-$P$4*EXP($A31/$Q$4))*12*(+'Ingreso - Consumo OCULTO'!$C$22*1+'Ingreso - Consumo OCULTO'!$C$24*2+'Ingreso - Consumo OCULTO'!$C$26*2+'Ingreso - Consumo OCULTO'!$C$28*1)) -> 0 | AB31: =12*'Ingreso - Consumo OCULTO'!$D$29*(1+'Ingreso - General OCULTO'!$D$11)^A31 -> 0 | AC31: =+'Ingreso - Consumo OCULTO'!$C$31 -> 0 | AD31: 0 | AF31: 20.49200736 | AG31: 0 | AH31: 0 | AI31: 20.49200736 | AJ31: 21147.71435 | AK31: 124.9198106 | AL31: 0 | AM31: 21272.63416
A32: 26 | B32: =B31*(1+'Ingreso - General OCULTO'!$D$11) -> 0 | C32: 41.99989005 | D32: =IF($E$4=0,0,($C$4-$D$4*EXP($A32/$E$4))*'Ingreso - Consumo OCULTO'!$D$39) -> 1.259996702 | E32: 43.25988676 | F32: =F31*(1+'Ingreso - General OCULTO'!$D$11) -> 0 | G32: 67.99994909 | H32: =IF($I$4=0,0,($G$4-$H$4*EXP($A32/$I$4))*'Ingreso - Consumo OCULTO'!$D$39) -> 2.039998473 | I32: 70.03994756 | J32: =J31*(1+'Ingreso - General OCULTO'!$D$11) -> 20.59856579 | K32: 85.9999093 | L32: =IF($M$4=0,0,($K$4-$L$4*EXP($A32/$M$4))*'Ingreso - Consumo OCULTO'!$D$39) -> 2.579997279 | M32: 88.57990658 | N32: =N31*(1+'Ingreso - General OCULTO'!$D$11) -> 0 | O32: 150.9999355 | P32: =IF($Q$4=0,0,($O$4-$P$4*EXP($A32/$Q$4))*+'Ingreso - Consumo OCULTO'!$D$39) -> 4.529998065 | Q32: 155.5299336 | R32: 20.59856579 | S32: 21257.69748 | U32: 124.9198862 | V32: =+'Ingreso - Consumo OCULTO'!$D$36*12 -> 0 | X32: =+'Ingreso - Consumo OCULTO'!$D$35 -> 0 | Y32: 124.9198862 | AA32: =IF($Q$4=0,0,($O$4-$P$4*EXP($A32/$Q$4))*12*(+'Ingreso - Consumo OCULTO'!$C$22*1+'Ingreso - Consumo OCULTO'!$C$24*2+'Ingreso - Consumo OCULTO'!$C$26*2+'Ingreso - Consumo OCULTO'!$C$28*1)) -> 0 | AB32: =12*'Ingreso - Consumo OCULTO'!$D$29*(1+'Ingreso - General OCULTO'!$D$11)^A32 -> 0 | AC32: =+'Ingreso - Consumo OCULTO'!$C$31 -> 0 | AD32: 0 | AF32: 20.59856579 | AG32: 0 | AH32: 0 | AI32: 20.59856579 | AJ32: 21257.69748 | AK32: 124.9198862 | AL32: 0 | AM32: 21382.61737
A33: 27 | B33: =B32*(1+'Ingreso - General OCULTO'!$D$11) -> 0 | C33: 41.99993125 | D33: =IF($E$4=0,0,($C$4-$D$4*EXP($A33/$E$4))*'Ingreso - Consumo OCULTO'!$D$39) -> 1.259997937 | E33: 43.25992919 | F33: =F32*(1+'Ingreso - General OCULTO'!$D$11) -> 0 | G33: 67.99997001 | H33: =IF($I$4=0,0,($G$4-$H$4*EXP($A33/$I$4))*'Ingreso - Consumo OCULTO'!$D$39) -> 2.0399991 | I33: 70.03996911 | J33: =J32*(1+'Ingreso - General OCULTO'!$D$11) -> 20.70567834 | K33: 85.99994569 | L33: =IF($M$4=0,0,($K$4-$L$4*EXP($A33/$M$4))*'Ingreso - Consumo OCULTO'!$D$39) -> 2.579998371 | M33: 88.57994406 | N33: =N32*(1+'Ingreso - General OCULTO'!$D$11) -> 0 | O33: 150.999963 | P33: =IF($Q$4=0,0,($O$4-$P$4*EXP($A33/$Q$4))*+'Ingreso - Consumo OCULTO'!$D$39) -> 4.52999889 | Q33: 155.5299619 | R33: 20.70567834 | S33: 21368.24655 | U33: 124.9199316 | V33: =+'Ingreso - Consumo OCULTO'!$D$36*12 -> 0 | X33: =+'Ingreso - Consumo OCULTO'!$D$35 -> 0 | Y33: 124.9199316 | AA33: =IF($Q$4=0,0,($O$4-$P$4*EXP($A33/$Q$4))*12*(+'Ingreso - Consumo OCULTO'!$C$22*1+'Ingreso - Consumo OCULTO'!$C$24*2+'Ingreso - Consumo OCULTO'!$C$26*2+'Ingreso - Consumo OCULTO'!$C$28*1)) -> 0 | AB33: =12*'Ingreso - Consumo OCULTO'!$D$29*(1+'Ingreso - General OCULTO'!$D$11)^A33 -> 0 | AC33: =+'Ingreso - Consumo OCULTO'!$C$31 -> 0 | AD33: 0 | AF33: 20.70567834 | AG33: 0 | AH33: 0 | AI33: 20.70567834 | AJ33: 21368.24655 | AK33: 124.9199316 | AL33: 0 | AM33: 21493.16648
A34: 28 | B34: =B33*(1+'Ingreso - General OCULTO'!$D$11) -> 0 | C34: 41.99995701 | D34: =IF($E$4=0,0,($C$4-$D$4*EXP($A34/$E$4))*'Ingreso - Consumo OCULTO'!$D$39) -> 1.25999871 | E34: 43.25995572 | F34: =F33*(1+'Ingreso - General OCULTO'!$D$11) -> 0 | G34: 67.99998233 | H34: =IF($I$4=0,0,($G$4-$H$4*EXP($A34/$I$4))*'Ingreso - Consumo OCULTO'!$D$39) -> 2.03999947 | I34: 70.0399818 | J34: =J33*(1+'Ingreso - General OCULTO'!$D$11) -> 20.81334786 | K34: 85.99996748 | L34: =IF($M$4=0,0,($K$4-$L$4*EXP($A34/$M$4))*'Ingreso - Consumo OCULTO'!$D$39) -> 2.579999024 | M34: 88.5799665 | N34: =N33*(1+'Ingreso - General OCULTO'!$D$11) -> 0 | O34: 150.9999788 | P34: =IF($Q$4=0,0,($O$4-$P$4*EXP($A34/$Q$4))*+'Ingreso - Consumo OCULTO'!$D$39) -> 4.529999363 | Q34: 155.5299781 | R34: 20.81334786 | S34: 21479.36687 | U34: 124.9199588 | V34: =+'Ingreso - Consumo OCULTO'!$D$36*12 -> 0 | X34: =+'Ingreso - Consumo OCULTO'!$D$35 -> 0 | Y34: 124.9199588 | AA34: =IF($Q$4=0,0,($O$4-$P$4*EXP($A34/$Q$4))*12*(+'Ingreso - Consumo OCULTO'!$C$22*1+'Ingreso - Consumo OCULTO'!$C$24*2+'Ingreso - Consumo OCULTO'!$C$26*2+'Ingreso - Consumo OCULTO'!$C$28*1)) -> 0 | AB34: =12*'Ingreso - Consumo OCULTO'!$D$29*(1+'Ingreso - General OCULTO'!$D$11)^A34 -> 0 | AC34: =+'Ingreso - Consumo OCULTO'!$C$31 -> 0 | AD34: 0 | AF34: 20.81334786 | AG34: 0 | AH34: 0 | AI34: 20.81334786 | AJ34: 21479.36687 | AK34: 124.9199588 | AL34: 0 | AM34: 21604.28683
A35: 29 | B35: =B34*(1+'Ingreso - General OCULTO'!$D$11) -> 0 | C35: 41.99997312 | D35: =IF($E$4=0,0,($C$4-$D$4*EXP($A35/$E$4))*'Ingreso - Consumo OCULTO'!$D$39) -> 1.259999193 | E35: 43.25997231 | F35: =F34*(1+'Ingreso - General OCULTO'!$D$11) -> 0 | G35: 67.99998959 | H35: =IF($I$4=0,0,($G$4-$H$4*EXP($A35/$I$4))*'Ingreso - Consumo OCULTO'!$D$39) -> 2.039999688 | I35: 70.03998928 | J35: =J34*(1+'Ingreso - General OCULTO'!$D$11) -> 20.92157727 | K35: 85.99998053 | L35: =IF($M$4=0,0,($K$4-$L$4*EXP($A35/$M$4))*'Ingreso - Consumo OCULTO'!$D$39) -> 2.579999416 | M35: 88.57997994 | N35: =N34*(1+'Ingreso - General OCULTO'!$D$11) -> 0 | O35: 150.9999878 | P35: =IF($Q$4=0,0,($O$4-$P$4*EXP($A35/$Q$4))*+'Ingreso - Consumo OCULTO'!$D$39) -> 4.529999634 | Q35: 155.5299874 | R35: 20.92157727 | S35: 21591.06286 | U35: 124.9199752 | V35: =+'Ingreso - Consumo OCULTO'!$D$36*12 -> 0 | X35: =+'Ingreso - Consumo OCULTO'!$D$35 -> 0 | Y35: 124.9199752 | AA35: =IF($Q$4=0,0,($O$4-$P$4*EXP($A35/$Q$4))*12*(+'Ingreso - Consumo OCULTO'!$C$22*1+'Ingreso - Consumo OCULTO'!$C$24*2+'Ingreso - Consumo OCULTO'!$C$26*2+'Ingreso - Consumo OCULTO'!$C$28*1)) -> 0 | AB35: =12*'Ingreso - Consumo OCULTO'!$D$29*(1+'Ingreso - General OCULTO'!$D$11)^A35 -> 0 | AC35: =+'Ingreso - Consumo OCULTO'!$C$31 -> 0 | AD35: 0 | AF35: 20.92157727 | AG35: 0 | AH35: 0 | AI35: 20.92157727 | AJ35: 21591.06286 | AK35: 124.9199752 | AL35: 0 | AM35: 21715.98283
